{"text_format":"1","workbook":"xlsx","n_sheets":4,"sheets":["Search engine","Treaty status of each country","Rights in UK for each country","Countries 2016+2021 Order"],"not_rendered":{"charts":0,"images":0,"macros":1,"external_links":0,"defined_names":12,"comments":0,"pivot_tables":0},"unopened":[],"bounds":{"document_bytes":16777216,"sheet_cells":100000,"rows_first":2000,"rows_last":500,"rows_between":2000,"halvings":0,"cell_chars":16384,"cell_head_chars":4096},"cells_cut":0,"cells_raw":0,"read":"whole","date_system":"1900"}

{"sheet":"Search engine","index":0,"n_rows":13,"n_cols":11,"rows_kept":13,"cut":false,"hidden":false,"merged":[[8,9,8,10],[2,9,2,10]]}
[]
[]
[null,null,null,"World Trade Organisation (WTO)","Berne convention ","World Intellectual Property Organization (WIPO) Copyright Treaty (WCT)","Rome Convention ","WIPO Performances and Phonograms Treaty (WPPT)",null,"Key"]
[null,"Search the country of origin","Turkey",{"$f":"VLOOKUP(C4,TREATY1,2,FALSE)","v":"X"},{"$f":"VLOOKUP(C4,TREATY1,3,FALSE)","v":"X"},{"$f":"VLOOKUP(C4,TREATY1,4,FALSE)","v":"X"},{"$f":"VLOOKUP(C4,TREATY1,5,FALSE)","v":"X"},{"$f":"VLOOKUP(C4,TREATY1,6,FALSE)","v":"X"},null,"-","Country is not a member of the Treaty"]
[null,null,null,null,null,null,null,null,null,"X","Country is a member of the Treaty which is in force"]
[null,null,null,null,null,null,null,null,null,"X*","Country is member of the Treaty but has declared that it will limit or not apply right of equitable remuneration for performers and producers (Rome Convention and WPPT only)"]
[]
[]
[null,null,null,null,null,null,null,null,null,"Key"]
[null,null,null,"Literary, dramatic, musical and artistic works, films and typographical arrangements","Sound recordings","Broadcasts","Performances in sound recordings","Performances in films",null,"Sound recordings","Y - full protection\nY* - partial protection -- see Art. 3 of 2016 Order\nY** - more limited protection -- see Art. 4 of 2016 Order"]
[null,"Search the country of origin","New Zealand",{"$f":"VLOOKUP(C11,Data,2,FALSE)","v":"Y"},{"$f":"VLOOKUP(C11,Data,3,FALSE)","v":"Y*"},{"$f":"VLOOKUP(C11,Data,4,FALSE)","v":"Y"},{"$f":"VLOOKUP(C11,Data,5,FALSE)","v":"Y*-"},{"$f":"VLOOKUP(C11,Data,6,FALSE)","v":"-"},null,"Broadcasts","Y -- protection for wired and wireless broadcasts\nY* -- protection only for wireless broadcasts\nY** -- partial protection for wireless broadcasts, no protection for wired broadcasts\n"]
[null,null,null,null,null,null,null,null,null,"Performances in sound recordings","Y -- full protection\nY- -- right to remuneration for broadcasting and public playing may be limited or not apply, subject to country's declaration under Rome Convention -- see Art. 9 of the 2016 Order\nY-* -- partial protection, and right to remuneration for broadcasting and public playing may be lmited or not apply, subject to country's declarations under WPPT - see Art. 11 of 2016 Order\nY** -- more limited protection -- see Art. 12 of 2016 Order"]
[null,null,null,null,null,null,null,null,null,"Performances in films","Y -- full protection\n"]

{"sheet":"Treaty status of each country","index":1,"n_rows":191,"n_cols":9,"rows_kept":191,"cut":false,"hidden":false,"merged":[[2,7,2,8]]}
[]
[]
["Country","World Trade Organisation (WTO)","Berne convention ","World Intellectual Property Organization (WIPO) Copyright Treaty (WCT)","Rome Convention","WIPO Performances and Phonograms Treaty (WPPT) ",null,"Key"]
["Afghanistan","X","X","X","-","X",null,"-","Country is not a member of the Treaty"]
["Albania","X","X","X","X","X",null,"X","Country is a member of the Treaty which is in force"]
["Algeria","-","X","X","X","X",null,"X*","Country is member of the Treaty but has declared that it will limit or not apply right of equitable remuneration for performers and producers (Rome Convention and WPPT only)"]
["Andorra","-","X","-","X","-"]
["Angola","X","-","-","-","-"]
["Antigua and Barbuda","X","X","-","-","-"]
["Argentina","X","X","X","X","X"]
["Armenia","X","X","X","X","X"]
["Australia","X","X","X","X*","X*"]
["Austria","X","X","X","X","X"]
["Azerbaijan","-","X","X","X","X"]
["Bahamas","-","X","-","-","-"]
["Bahrain","X","X","X","X","X"]
["Bangladesh","X","X","-","-","-"]
["Barbados","X","X","X","X","X"]
["Belarus","-","X","X","X","X"]
["Belgium","X","X","X","X","X"]
["Belize","X","X","X","X","X"]
["Benin","X","X","X","-","X"]
["Bhutan","-","X","-","-","-"]
["Bolivia (Plurinational State of)","X","X","-","X","-"]
["Bosnia and Herzegovina","-","X","X","X","X"]
["Botswana","X","X","X","-","X"]
["Brazil","X","X","-","X","-"]
["Brunei Darussalam","X","X","X","-","X"]
["Bulgaria","X","X","X","X","X"]
["Burkina Faso","X","X","X","X","X"]
["Burundi","X","X","X","-","-"]
["Cabo Verde","X","X","X","X","X"]
["Cambodia","X","-","-","-","-"]
["Cameroon","X","X","-","-","-"]
["Canada","X","X","X","X","X*"]
["Central African Republic","X","X","-","-","-"]
["Chad","X","X","-","-","-"]
["Chile","X","X","X","X","X*"]
["China","X","X","X","-","X*"]
["Colombia","X","X","X","X","X"]
["Comoros","-","X","X","-","X"]
["Congo","X","X","-","X*","-"]
["Cook Islands","-","X","X","-","X"]
["Costa Rica","X","X","X","X","X"]
["Côte d'Ivoire","X","X","-","-","-"]
["Croatia","X","X","X","X","X"]
["Cuba","X","X","-","-","-"]
["Cyprus","X","X","X","X","X"]
["Czech Republic","X","X","X","X","X"]
["Democratic People's Republic of Korea","-","X","-","-","-"]
["Democratic Republic of the Congo","X","X","-","-","-"]
["Denmark","X","X","X","X","X"]
["Djibouti","X","X","-","-","-"]
["Dominica","X","X","-","X","-"]
["Dominican Republic","X","X","X","X","X"]
["Ecuador","X","X","X","X","X"]
["Egypt","X","X","-","-","-"]
["El Salvador","X","X","X","X","X"]
["Equatorial Guinea","-","X","-","-","-"]
["Estonia","X","X","X","X","X"]
["Eswatini","X","X","-","-","-"]
["Fiji","X","X","-","X*","-"]
["Finland","X","X","X","X*","X"]
["France","X","X","X","X","X"]
["Gabon","X","X","X","-","X"]
["Gambia","X","X","X","-","-"]
["Georgia","X","X","X","X","X"]
["Germany","X","X","X","X","X"]
["Ghana","X","X","X","-","X"]
["Greece","X","X","X","X","X"]
["Grenada","X","X","-","-","-"]
["Guatemala","X","X","X","X","X"]
["Guinea","X","X","X","-","X"]
["Guinea-Bissau","X","X","-","-","-"]
["Guyana","X","X","-","-","-"]
["Haiti","X","X","-","-","-"]
["Holy See","-","X","-","-","-"]
["Honduras","X","X","X","X","X"]
["Hungary","X","X","X","X","X"]
["Iceland","X","X","-","X* ","-"]
["India","X","X","X","-","X*"]
["Indonesia","X","X","X","-","X"]
["Ireland","X","X","X","X* ","X"]
["Israel","X","X","-","X","-"]
["Italy","X","X","X","X*","X"]
["Jamaica","X","X","X","X","X"]
["Japan","X","X","X","X*","X*"]
["Jordan","X","X","X","-","X"]
["Kazakhstan","X","X","X","X","X"]
["Kenya","X","X","-","-","-"]
["Kiribati","-","X","X","-","X"]
["Kuwait","X","X","-","-","-"]
["Kyrgyzstan","X","X","X","X","X"]
["Lao People's Democratic Republic","X","X","-","-","-"]
["Latvia","X","X","X","X","X"]
["Lebanon","-","X","-","X","-"]
["Lesotho","X","X","-","X*","-"]
["Liberia","X","X","-","X","-"]
["Libya","-","X","-","-","-"]
["Liechtenstein","X","X","X","X","X"]
["Lithuania","X","X","X","X","X"]
["Luxembourg","X","X","X","X*","X"]
["Madagascar","X","X","X","-","X"]
["Malawi","X","X","-","-","-"]
["Malaysia","X","X","X","-","X"]
["Maldives","X","-","-","-","-"]
["Mali","X","X","X","-","X"]
["Malta","X","X","X","-","X"]
["Mauritania","X","X","-","-","-"]
["Mauritius","X","X","-","-","-"]
["Mexico","X","X","X","X","X"]
["Micronesia (Federated States of)","-","X","-","-","-"]
["Monaco","-","X","-","X*","-"]
["Mongolia","X","X","X","-","X"]
["Montenegro","X","X","X","X","X"]
["Morocco","X","X","X","-","X"]
["Mozambique","X","X","-","-","-"]
["Myanmar","X","-","-","-","-"]
["Namibia","X","X","-","-","-"]
["Nauru","-","X","X","-","-"]
["Nepal","X","X","-","-","-"]
["Netherlands","X","X","X","X","X"]
["New Zealand","X","X","X","-","X*"]
["Nicaragua","X","X","X","X","X"]
["Niger","X","X","-","X*","-"]
["Nigeria","X","X","X","X* ","X"]
["Niue","-","X","-","-","-"]
["North Macedonia","X","X","X","X*","X*"]
["Norway","X","X","-","X","-"]
["Oman","X","X","X","-","X"]
["Pakistan","X","X","-","-","-"]
["Panama","X","X","X","X","X"]
["Papua New Guinea","X","-","-","-","-"]
["Paraguay","X","X","X","X","X"]
["Peru","X","X","X","X","X"]
["Philippines","X","X","X","X","X"]
["Poland","X","X","X","X*","X"]
["Portugal","X","X","X","X","X"]
["Qatar","X","X","X","X","X"]
["Republic of Korea","-","X","X","X*","X*"]
["Republic of Moldova","-","X","X","X*","X"]
["Romania","X","X","X","X","X"]
["Russian Federation","X","X","X","X*","X"]
["Rwanda","X","X","-","-","-"]
["Saint Kitts and Nevis","X","X","-","-","-"]
["Saint Lucia","X","X","X","X","X"]
["Saint Vincent and the Grenadines","X","X","-","-","X"]
["Samoa","X","X","-","-","-"]
["San Marino","-","X","X","-","X"]
["Sao Tome and Principe","-","X","X","-","X"]
["Saudi Arabia","X","X","-","-","-"]
["Senegal","X","X","X","-","X"]
["Serbia","-","X","X","X","X"]
["Seychelles","X","-","-","-","-"]
["Sierra Leone","X","-","-","-","-"]
["Singapore","-","X","X","-","X*"]
["Slovakia","-","X","X","X","X"]
["Slovenia","X","X","X","X*","X"]
["Solomon Islands","X","X","-","-","-"]
["South Africa","X","X","-","-","-"]
["Spain","X","X","X","X","X"]
["Sri Lanka","X","X","-","-","-"]
["Sudan","-","X","-","-","-"]
["Suriname","X","X","-","-","-"]
["Sweden","X","X","X","X","X"]
["Switzerland","X","X","X","X","X"]
["Syrian Arab Republic","-","X","-","X","-"]
["Taiwan","X","-","-","-","-"]
["Tajikistan","X","X","X","X","X"]
["Thailand","X","X","X","-","-"]
["Togo","X","X","X","X","X"]
["Tonga","X","X","-","-","-"]
["Trinidad and Tobago","X","X","X","X","X"]
["Tunisia","X","X","-","-","-"]
["Turkey","X","X","X","X","X"]
["Turkmenistan","-","X","-","X","-"]
["Tuvalu","-","X","-","-","-"]
["Uganda","X","-","X","-","X"]
["Ukraine","X","X","X","X","X"]
["United Arab Emirates","X","X","X","X","X"]
["United Kingdom","X","X","X","X*","X"]
["United Republic of Tanzania","X","X","-","-","-"]
["United States of America","X","X","X","-","X*"]
["Uruguay","X","X","X","X","X"]
["Uzbekistan","-","X","X","-","X"]
["Vanuatu","X","X","X","-","X"]
["Venezuela (Bolivarian Republic of)","X","X","-","X","-"]
["Viet Nam","X","X","X","X*","X"]
["Yemen","X","X","-","-","-"]
["Zambia","X","X","-","-","-"]
["Zimbabwe","X","X","-","-","-"]

{"sheet":"Rights in UK for each country","index":2,"n_rows":191,"n_cols":9,"rows_kept":191,"cut":false,"hidden":false,"merged":[[2,7,2,8]]}
[]
[]
["Country","Literary, dramatic, musical and artistic works, films and typographical arrangements","Sound recordings","Broadcasts","Performances in sound recordings","Performances in films",null,"Key\nThe protection accorded to works and performances from a country depends largely on the treaty status of that country. However, in some cases, UK law extends protection to a country even where it is not a member of the relevant treaty (typically where the UK has an agreement with the other country that provides for reciprocal protection). See the Copyright and Performances (Application to Other Countries) Order 2016 for further details."]
["Afghanistan",{"$f":"IF(OR('Treaty status of each country'!B4=\"X\", 'Treaty status of each country'!C4=\"X\"), \"Y\", \"\")","v":"Y"},{"$f":"IF(OR('Treaty status of each country'!E4=\"X\",'Treaty status of each country'!E4=\"X*\", COUNTIF('Countries 2016+2021 Order'!C$3:C$15,A4)=1),\"Y\",IF(OR('Treaty status of each country'!F4=\"X\",'Treaty status of each country'!F4=\"X*\"),\"Y*\",IF(OR('Treaty status of each country'!B4=\"X\",'Treaty status of each country'!C4=\"X\"),\"Y**\",\"\")))","v":"Y*"},{"$f":"IF(COUNTIF('Countries 2016+2021 Order'!B$56:B$90,'Rights in UK for each country'!A4)=1,\"Y\",IF(OR('Treaty status of each country'!E4=\"X\",'Treaty status of each country'!E4=\"X*\",COUNTIF('Countries 2016+2021 Order'!B$20:B$52,'Rights in UK for each country'!A4)=1),\"Y*\",IF('Treaty status of each country'!B4=\"X\",\"Y**\",\"-\")))","v":"Y**"},{"$f":"IF(OR(COUNTIF('Countries 2016+2021 Order'!B$93:B$94,'Rights in UK for each country'!A4)=1,'Treaty status of each country'!E4=\"X\"),\"Y\",IF('Treaty status of each country'!E4=\"X*\",\"Y-\",IF('Treaty status of each country'!F4=\"X\",\"Y*\",IF('Treaty status of each country'!F4=\"X*\",\"Y*-\",IF('Treaty status of each country'!B4=\"X\",\"Y**\",\"-\")))))","v":"Y*"},{"$f":"IF(OR('Treaty status of each country'!E4=\"X\",'Treaty status of each country'!E4=\"X*\"),\"Y\",\"-\")","v":"-"},null,"Sound recordings","Y - full protection\nY* - partial protection -- see Art. 3 of 2016 Order\nY** - more limited protection -- see Art. 4 of 2016 Order"]
["Albania",{"$f":"IF(OR('Treaty status of each country'!B5=\"X\", 'Treaty status of each country'!C5=\"X\"), \"Y\", \"\")","v":"Y"},{"$f":"IF(OR('Treaty status of each country'!E5=\"X\",'Treaty status of each country'!E5=\"X*\", COUNTIF('Countries 2016+2021 Order'!C$3:C$15,A5)=1),\"Y\",IF(OR('Treaty status of each country'!F5=\"X\",'Treaty status of each country'!F5=\"X*\"),\"Y*\",IF(OR('Treaty status of each country'!B5=\"X\",'Treaty status of each country'!C5=\"X\"),\"Y**\",\"\")))","v":"Y"},{"$f":"IF(COUNTIF('Countries 2016+2021 Order'!B$56:B$90,'Rights in UK for each country'!A5)=1,\"Y\",IF(OR('Treaty status of each country'!E5=\"X\",'Treaty status of each country'!E5=\"X*\",COUNTIF('Countries 2016+2021 Order'!B$20:B$52,'Rights in UK for each country'!A5)=1),\"Y*\",IF('Treaty status of each country'!B5=\"X\",\"Y**\",\"-\")))","v":"Y*"},{"$f":"IF(OR(COUNTIF('Countries 2016+2021 Order'!B$93:B$94,'Rights in UK for each country'!A5)=1,'Treaty status of each country'!E5=\"X\"),\"Y\",IF('Treaty status of each country'!E5=\"X*\",\"Y-\",IF('Treaty status of each country'!F5=\"X\",\"Y*\",IF('Treaty status of each country'!F5=\"X*\",\"Y*-\",IF('Treaty status of each country'!B5=\"X\",\"Y**\",\"-\")))))","v":"Y"},{"$f":"IF(OR('Treaty status of each country'!E5=\"X\",'Treaty status of each country'!E5=\"X*\"),\"Y\",\"-\")","v":"Y"},null,"Broadcasts","Y -- protection for wired and wireless broadcasts\nY* -- protection only for wireless broadcasts\nY** -- partial protection for wireless broadcasts, no protection for wired broadcasts"]
["Algeria",{"$f":"IF(OR('Treaty status of each country'!B6=\"X\", 'Treaty status of each country'!C6=\"X\"), \"Y\", \"\")","v":"Y"},{"$f":"IF(OR('Treaty status of each country'!E6=\"X\",'Treaty status of each country'!E6=\"X*\", COUNTIF('Countries 2016+2021 Order'!C$3:C$15,A6)=1),\"Y\",IF(OR('Treaty status of each country'!F6=\"X\",'Treaty status of each country'!F6=\"X*\"),\"Y*\",IF(OR('Treaty status of each country'!B6=\"X\",'Treaty status of each country'!C6=\"X\"),\"Y**\",\"\")))","v":"Y"},{"$f":"IF(COUNTIF('Countries 2016+2021 Order'!B$56:B$90,'Rights in UK for each country'!A6)=1,\"Y\",IF(OR('Treaty status of each country'!E6=\"X\",'Treaty status of each country'!E6=\"X*\",COUNTIF('Countries 2016+2021 Order'!B$20:B$52,'Rights in UK for each country'!A6)=1),\"Y*\",IF('Treaty status of each country'!B6=\"X\",\"Y**\",\"-\")))","v":"Y*"},{"$f":"IF(OR(COUNTIF('Countries 2016+2021 Order'!B$93:B$94,'Rights in UK for each country'!A6)=1,'Treaty status of each country'!E6=\"X\"),\"Y\",IF('Treaty status of each country'!E6=\"X*\",\"Y-\",IF('Treaty status of each country'!F6=\"X\",\"Y*\",IF('Treaty status of each country'!F6=\"X*\",\"Y*-\",IF('Treaty status of each country'!B6=\"X\",\"Y**\",\"-\")))))","v":"Y"},{"$f":"IF(OR('Treaty status of each country'!E6=\"X\",'Treaty status of each country'!E6=\"X*\"),\"Y\",\"-\")","v":"Y"},null,"Performances in sound recordings","Y -- full protection\nY- -- right to remuneration for broadcasting and public playing may be limited or not apply, depending on country's declaration under Rome Convention and whether British performances receive right in country -- see Art. 9 of the 2016 Order\nY* -- some rights are not provided\nY*- -- some rights are not provided, and right to remuneration for broadcasting and public playing may be limited or not apply, depending on country's declaration under WPPT and whether British performances receive right in country - see Art. 11 of 2016 Order\nY** -- only limited protection is provided -- see Art. 12 of 2016 Order"]
["Andorra",{"$f":"IF(OR('Treaty status of each country'!B7=\"X\", 'Treaty status of each country'!C7=\"X\"), \"Y\", \"\")","v":"Y"},{"$f":"IF(OR('Treaty status of each country'!E7=\"X\",'Treaty status of each country'!E7=\"X*\", COUNTIF('Countries 2016+2021 Order'!C$3:C$15,A7)=1),\"Y\",IF(OR('Treaty status of each country'!F7=\"X\",'Treaty status of each country'!F7=\"X*\"),\"Y*\",IF(OR('Treaty status of each country'!B7=\"X\",'Treaty status of each country'!C7=\"X\"),\"Y**\",\"\")))","v":"Y"},{"$f":"IF(COUNTIF('Countries 2016+2021 Order'!B$56:B$90,'Rights in UK for each country'!A7)=1,\"Y\",IF(OR('Treaty status of each country'!E7=\"X\",'Treaty status of each country'!E7=\"X*\",COUNTIF('Countries 2016+2021 Order'!B$20:B$52,'Rights in UK for each country'!A7)=1),\"Y*\",IF('Treaty status of each country'!B7=\"X\",\"Y**\",\"-\")))","v":"Y*"},{"$f":"IF(OR(COUNTIF('Countries 2016+2021 Order'!B$93:B$94,'Rights in UK for each country'!A7)=1,'Treaty status of each country'!E7=\"X\"),\"Y\",IF('Treaty status of each country'!E7=\"X*\",\"Y-\",IF('Treaty status of each country'!F7=\"X\",\"Y*\",IF('Treaty status of each country'!F7=\"X*\",\"Y*-\",IF('Treaty status of each country'!B7=\"X\",\"Y**\",\"-\")))))","v":"Y"},{"$f":"IF(OR('Treaty status of each country'!E7=\"X\",'Treaty status of each country'!E7=\"X*\"),\"Y\",\"-\")","v":"Y"},null,"Performances in films","Y -- full protection"]
["Angola",{"$f":"IF(OR('Treaty status of each country'!B8=\"X\", 'Treaty status of each country'!C8=\"X\"), \"Y\", \"\")","v":"Y"},{"$f":"IF(OR('Treaty status of each country'!E8=\"X\",'Treaty status of each country'!E8=\"X*\", COUNTIF('Countries 2016+2021 Order'!C$3:C$15,A8)=1),\"Y\",IF(OR('Treaty status of each country'!F8=\"X\",'Treaty status of each country'!F8=\"X*\"),\"Y*\",IF(OR('Treaty status of each country'!B8=\"X\",'Treaty status of each country'!C8=\"X\"),\"Y**\",\"\")))","v":"Y**"},{"$f":"IF(COUNTIF('Countries 2016+2021 Order'!B$56:B$90,'Rights in UK for each country'!A8)=1,\"Y\",IF(OR('Treaty status of each country'!E8=\"X\",'Treaty status of each country'!E8=\"X*\",COUNTIF('Countries 2016+2021 Order'!B$20:B$52,'Rights in UK for each country'!A8)=1),\"Y*\",IF('Treaty status of each country'!B8=\"X\",\"Y**\",\"-\")))","v":"Y**"},{"$f":"IF(OR(COUNTIF('Countries 2016+2021 Order'!B$93:B$94,'Rights in UK for each country'!A8)=1,'Treaty status of each country'!E8=\"X\"),\"Y\",IF('Treaty status of each country'!E8=\"X*\",\"Y-\",IF('Treaty status of each country'!F8=\"X\",\"Y*\",IF('Treaty status of each country'!F8=\"X*\",\"Y*-\",IF('Treaty status of each country'!B8=\"X\",\"Y**\",\"-\")))))","v":"Y**"},{"$f":"IF(OR('Treaty status of each country'!E8=\"X\",'Treaty status of each country'!E8=\"X*\"),\"Y\",\"-\")","v":"-"}]
["Antigua and Barbuda",{"$f":"IF(OR('Treaty status of each country'!B9=\"X\", 'Treaty status of each country'!C9=\"X\"), \"Y\", \"\")","v":"Y"},{"$f":"IF(OR('Treaty status of each country'!E9=\"X\",'Treaty status of each country'!E9=\"X*\", COUNTIF('Countries 2016+2021 Order'!C$3:C$15,A9)=1),\"Y\",IF(OR('Treaty status of each country'!F9=\"X\",'Treaty status of each country'!F9=\"X*\"),\"Y*\",IF(OR('Treaty status of each country'!B9=\"X\",'Treaty status of each country'!C9=\"X\"),\"Y**\",\"\")))","v":"Y**"},{"$f":"IF(COUNTIF('Countries 2016+2021 Order'!B$56:B$90,'Rights in UK for each country'!A9)=1,\"Y\",IF(OR('Treaty status of each country'!E9=\"X\",'Treaty status of each country'!E9=\"X*\",COUNTIF('Countries 2016+2021 Order'!B$20:B$52,'Rights in UK for each country'!A9)=1),\"Y*\",IF('Treaty status of each country'!B9=\"X\",\"Y**\",\"-\")))","v":"Y**"},{"$f":"IF(OR(COUNTIF('Countries 2016+2021 Order'!B$93:B$94,'Rights in UK for each country'!A9)=1,'Treaty status of each country'!E9=\"X\"),\"Y\",IF('Treaty status of each country'!E9=\"X*\",\"Y-\",IF('Treaty status of each country'!F9=\"X\",\"Y*\",IF('Treaty status of each country'!F9=\"X*\",\"Y*-\",IF('Treaty status of each country'!B9=\"X\",\"Y**\",\"-\")))))","v":"Y**"},{"$f":"IF(OR('Treaty status of each country'!E9=\"X\",'Treaty status of each country'!E9=\"X*\"),\"Y\",\"-\")","v":"-"}]
["Argentina",{"$f":"IF(OR('Treaty status of each country'!B10=\"X\", 'Treaty status of each country'!C10=\"X\"), \"Y\", \"\")","v":"Y"},{"$f":"IF(OR('Treaty status of each country'!E10=\"X\",'Treaty status of each country'!E10=\"X*\", COUNTIF('Countries 2016+2021 Order'!C$3:C$15,A10)=1),\"Y\",IF(OR('Treaty status of each country'!F10=\"X\",'Treaty status of each country'!F10=\"X*\"),\"Y*\",IF(OR('Treaty status of each country'!B10=\"X\",'Treaty status of each country'!C10=\"X\"),\"Y**\",\"\")))","v":"Y"},{"$f":"IF(COUNTIF('Countries 2016+2021 Order'!B$56:B$90,'Rights in UK for each country'!A10)=1,\"Y\",IF(OR('Treaty status of each country'!E10=\"X\",'Treaty status of each country'!E10=\"X*\",COUNTIF('Countries 2016+2021 Order'!B$20:B$52,'Rights in UK for each country'!A10)=1),\"Y*\",IF('Treaty status of each country'!B10=\"X\",\"Y**\",\"-\")))","v":"Y*"},{"$f":"IF(OR(COUNTIF('Countries 2016+2021 Order'!B$93:B$94,'Rights in UK for each country'!A10)=1,'Treaty status of each country'!E10=\"X\"),\"Y\",IF('Treaty status of each country'!E10=\"X*\",\"Y-\",IF('Treaty status of each country'!F10=\"X\",\"Y*\",IF('Treaty status of each country'!F10=\"X*\",\"Y*-\",IF('Treaty status of each country'!B10=\"X\",\"Y**\",\"-\")))))","v":"Y"},{"$f":"IF(OR('Treaty status of each country'!E10=\"X\",'Treaty status of each country'!E10=\"X*\"),\"Y\",\"-\")","v":"Y"}]
["Armenia",{"$f":"IF(OR('Treaty status of each country'!B11=\"X\", 'Treaty status of each country'!C11=\"X\"), \"Y\", \"\")","v":"Y"},{"$f":"IF(OR('Treaty status of each country'!E11=\"X\",'Treaty status of each country'!E11=\"X*\", COUNTIF('Countries 2016+2021 Order'!C$3:C$15,A11)=1),\"Y\",IF(OR('Treaty status of each country'!F11=\"X\",'Treaty status of each country'!F11=\"X*\"),\"Y*\",IF(OR('Treaty status of each country'!B11=\"X\",'Treaty status of each country'!C11=\"X\"),\"Y**\",\"\")))","v":"Y"},{"$f":"IF(COUNTIF('Countries 2016+2021 Order'!B$56:B$90,'Rights in UK for each country'!A11)=1,\"Y\",IF(OR('Treaty status of each country'!E11=\"X\",'Treaty status of each country'!E11=\"X*\",COUNTIF('Countries 2016+2021 Order'!B$20:B$52,'Rights in UK for each country'!A11)=1),\"Y*\",IF('Treaty status of each country'!B11=\"X\",\"Y**\",\"-\")))","v":"Y*"},{"$f":"IF(OR(COUNTIF('Countries 2016+2021 Order'!B$93:B$94,'Rights in UK for each country'!A11)=1,'Treaty status of each country'!E11=\"X\"),\"Y\",IF('Treaty status of each country'!E11=\"X*\",\"Y-\",IF('Treaty status of each country'!F11=\"X\",\"Y*\",IF('Treaty status of each country'!F11=\"X*\",\"Y*-\",IF('Treaty status of each country'!B11=\"X\",\"Y**\",\"-\")))))","v":"Y"},{"$f":"IF(OR('Treaty status of each country'!E11=\"X\",'Treaty status of each country'!E11=\"X*\"),\"Y\",\"-\")","v":"Y"}]
["Australia",{"$f":"IF(OR('Treaty status of each country'!B12=\"X\", 'Treaty status of each country'!C12=\"X\"), \"Y\", \"\")","v":"Y"},{"$f":"IF(OR('Treaty status of each country'!E12=\"X\",'Treaty status of each country'!E12=\"X*\", COUNTIF('Countries 2016+2021 Order'!C$3:C$15,A12)=1),\"Y\",IF(OR('Treaty status of each country'!F12=\"X\",'Treaty status of each country'!F12=\"X*\"),\"Y*\",IF(OR('Treaty status of each country'!B12=\"X\",'Treaty status of each country'!C12=\"X\"),\"Y**\",\"\")))","v":"Y"},{"$f":"IF(COUNTIF('Countries 2016+2021 Order'!B$56:B$90,'Rights in UK for each country'!A12)=1,\"Y\",IF(OR('Treaty status of each country'!E12=\"X\",'Treaty status of each country'!E12=\"X*\",COUNTIF('Countries 2016+2021 Order'!B$20:B$52,'Rights in UK for each country'!A12)=1),\"Y*\",IF('Treaty status of each country'!B12=\"X\",\"Y**\",\"-\")))","v":"Y"},{"$f":"IF(OR(COUNTIF('Countries 2016+2021 Order'!B$93:B$94,'Rights in UK for each country'!A12)=1,'Treaty status of each country'!E12=\"X\"),\"Y\",IF('Treaty status of each country'!E12=\"X*\",\"Y-\",IF('Treaty status of each country'!F12=\"X\",\"Y*\",IF('Treaty status of each country'!F12=\"X*\",\"Y*-\",IF('Treaty status of each country'!B12=\"X\",\"Y**\",\"-\")))))","v":"Y-"},{"$f":"IF(OR('Treaty status of each country'!E12=\"X\",'Treaty status of each country'!E12=\"X*\"),\"Y\",\"-\")","v":"Y"}]
["Austria",{"$f":"IF(OR('Treaty status of each country'!B13=\"X\", 'Treaty status of each country'!C13=\"X\"), \"Y\", \"\")","v":"Y"},{"$f":"IF(OR('Treaty status of each country'!E13=\"X\",'Treaty status of each country'!E13=\"X*\", COUNTIF('Countries 2016+2021 Order'!C$3:C$15,A13)=1),\"Y\",IF(OR('Treaty status of each country'!F13=\"X\",'Treaty status of each country'!F13=\"X*\"),\"Y*\",IF(OR('Treaty status of each country'!B13=\"X\",'Treaty status of each country'!C13=\"X\"),\"Y**\",\"\")))","v":"Y"},{"$f":"IF(COUNTIF('Countries 2016+2021 Order'!B$56:B$90,'Rights in UK for each country'!A13)=1,\"Y\",IF(OR('Treaty status of each country'!E13=\"X\",'Treaty status of each country'!E13=\"X*\",COUNTIF('Countries 2016+2021 Order'!B$20:B$52,'Rights in UK for each country'!A13)=1),\"Y*\",IF('Treaty status of each country'!B13=\"X\",\"Y**\",\"-\")))","v":"Y"},{"$f":"IF(OR(COUNTIF('Countries 2016+2021 Order'!B$93:B$94,'Rights in UK for each country'!A13)=1,'Treaty status of each country'!E13=\"X\"),\"Y\",IF('Treaty status of each country'!E13=\"X*\",\"Y-\",IF('Treaty status of each country'!F13=\"X\",\"Y*\",IF('Treaty status of each country'!F13=\"X*\",\"Y*-\",IF('Treaty status of each country'!B13=\"X\",\"Y**\",\"-\")))))","v":"Y"},{"$f":"IF(OR('Treaty status of each country'!E13=\"X\",'Treaty status of each country'!E13=\"X*\"),\"Y\",\"-\")","v":"Y"}]
["Azerbaijan",{"$f":"IF(OR('Treaty status of each country'!B14=\"X\", 'Treaty status of each country'!C14=\"X\"), \"Y\", \"\")","v":"Y"},{"$f":"IF(OR('Treaty status of each country'!E14=\"X\",'Treaty status of each country'!E14=\"X*\", COUNTIF('Countries 2016+2021 Order'!C$3:C$15,A14)=1),\"Y\",IF(OR('Treaty status of each country'!F14=\"X\",'Treaty status of each country'!F14=\"X*\"),\"Y*\",IF(OR('Treaty status of each country'!B14=\"X\",'Treaty status of each country'!C14=\"X\"),\"Y**\",\"\")))","v":"Y"},{"$f":"IF(COUNTIF('Countries 2016+2021 Order'!B$56:B$90,'Rights in UK for each country'!A14)=1,\"Y\",IF(OR('Treaty status of each country'!E14=\"X\",'Treaty status of each country'!E14=\"X*\",COUNTIF('Countries 2016+2021 Order'!B$20:B$52,'Rights in UK for each country'!A14)=1),\"Y*\",IF('Treaty status of each country'!B14=\"X\",\"Y**\",\"-\")))","v":"Y*"},{"$f":"IF(OR(COUNTIF('Countries 2016+2021 Order'!B$93:B$94,'Rights in UK for each country'!A14)=1,'Treaty status of each country'!E14=\"X\"),\"Y\",IF('Treaty status of each country'!E14=\"X*\",\"Y-\",IF('Treaty status of each country'!F14=\"X\",\"Y*\",IF('Treaty status of each country'!F14=\"X*\",\"Y*-\",IF('Treaty status of each country'!B14=\"X\",\"Y**\",\"-\")))))","v":"Y"},{"$f":"IF(OR('Treaty status of each country'!E14=\"X\",'Treaty status of each country'!E14=\"X*\"),\"Y\",\"-\")","v":"Y"}]
["Bahamas",{"$f":"IF(OR('Treaty status of each country'!B15=\"X\", 'Treaty status of each country'!C15=\"X\"), \"Y\", \"\")","v":"Y"},{"$f":"IF(OR('Treaty status of each country'!E15=\"X\",'Treaty status of each country'!E15=\"X*\", COUNTIF('Countries 2016+2021 Order'!C$3:C$15,A15)=1),\"Y\",IF(OR('Treaty status of each country'!F15=\"X\",'Treaty status of each country'!F15=\"X*\"),\"Y*\",IF(OR('Treaty status of each country'!B15=\"X\",'Treaty status of each country'!C15=\"X\"),\"Y**\",\"\")))","v":"Y**"},{"$f":"IF(COUNTIF('Countries 2016+2021 Order'!B$56:B$90,'Rights in UK for each country'!A15)=1,\"Y\",IF(OR('Treaty status of each country'!E15=\"X\",'Treaty status of each country'!E15=\"X*\",COUNTIF('Countries 2016+2021 Order'!B$20:B$52,'Rights in UK for each country'!A15)=1),\"Y*\",IF('Treaty status of each country'!B15=\"X\",\"Y**\",\"-\")))","v":"-"},{"$f":"IF(OR(COUNTIF('Countries 2016+2021 Order'!B$93:B$94,'Rights in UK for each country'!A15)=1,'Treaty status of each country'!E15=\"X\"),\"Y\",IF('Treaty status of each country'!E15=\"X*\",\"Y-\",IF('Treaty status of each country'!F15=\"X\",\"Y*\",IF('Treaty status of each country'!F15=\"X*\",\"Y*-\",IF('Treaty status of each country'!B15=\"X\",\"Y**\",\"-\")))))","v":"-"},{"$f":"IF(OR('Treaty status of each country'!E15=\"X\",'Treaty status of each country'!E15=\"X*\"),\"Y\",\"-\")","v":"-"}]
["Bahrain",{"$f":"IF(OR('Treaty status of each country'!B16=\"X\", 'Treaty status of each country'!C16=\"X\"), \"Y\", \"\")","v":"Y"},{"$f":"IF(OR('Treaty status of each country'!E16=\"X\",'Treaty status of each country'!E16=\"X*\", COUNTIF('Countries 2016+2021 Order'!C$3:C$15,A16)=1),\"Y\",IF(OR('Treaty status of each country'!F16=\"X\",'Treaty status of each country'!F16=\"X*\"),\"Y*\",IF(OR('Treaty status of each country'!B16=\"X\",'Treaty status of each country'!C16=\"X\"),\"Y**\",\"\")))","v":"Y"},{"$f":"IF(COUNTIF('Countries 2016+2021 Order'!B$56:B$90,'Rights in UK for each country'!A16)=1,\"Y\",IF(OR('Treaty status of each country'!E16=\"X\",'Treaty status of each country'!E16=\"X*\",COUNTIF('Countries 2016+2021 Order'!B$20:B$52,'Rights in UK for each country'!A16)=1),\"Y*\",IF('Treaty status of each country'!B16=\"X\",\"Y**\",\"-\")))","v":"Y*"},{"$f":"IF(OR(COUNTIF('Countries 2016+2021 Order'!B$93:B$94,'Rights in UK for each country'!A16)=1,'Treaty status of each country'!E16=\"X\"),\"Y\",IF('Treaty status of each country'!E16=\"X*\",\"Y-\",IF('Treaty status of each country'!F16=\"X\",\"Y*\",IF('Treaty status of each country'!F16=\"X*\",\"Y*-\",IF('Treaty status of each country'!B16=\"X\",\"Y**\",\"-\")))))","v":"Y"},{"$f":"IF(OR('Treaty status of each country'!E16=\"X\",'Treaty status of each country'!E16=\"X*\"),\"Y\",\"-\")","v":"Y"}]
["Bangladesh",{"$f":"IF(OR('Treaty status of each country'!B17=\"X\", 'Treaty status of each country'!C17=\"X\"), \"Y\", \"\")","v":"Y"},{"$f":"IF(OR('Treaty status of each country'!E17=\"X\",'Treaty status of each country'!E17=\"X*\", COUNTIF('Countries 2016+2021 Order'!C$3:C$15,A17)=1),\"Y\",IF(OR('Treaty status of each country'!F17=\"X\",'Treaty status of each country'!F17=\"X*\"),\"Y*\",IF(OR('Treaty status of each country'!B17=\"X\",'Treaty status of each country'!C17=\"X\"),\"Y**\",\"\")))","v":"Y**"},{"$f":"IF(COUNTIF('Countries 2016+2021 Order'!B$56:B$90,'Rights in UK for each country'!A17)=1,\"Y\",IF(OR('Treaty status of each country'!E17=\"X\",'Treaty status of each country'!E17=\"X*\",COUNTIF('Countries 2016+2021 Order'!B$20:B$52,'Rights in UK for each country'!A17)=1),\"Y*\",IF('Treaty status of each country'!B17=\"X\",\"Y**\",\"-\")))","v":"Y**"},{"$f":"IF(OR(COUNTIF('Countries 2016+2021 Order'!B$93:B$94,'Rights in UK for each country'!A17)=1,'Treaty status of each country'!E17=\"X\"),\"Y\",IF('Treaty status of each country'!E17=\"X*\",\"Y-\",IF('Treaty status of each country'!F17=\"X\",\"Y*\",IF('Treaty status of each country'!F17=\"X*\",\"Y*-\",IF('Treaty status of each country'!B17=\"X\",\"Y**\",\"-\")))))","v":"Y**"},{"$f":"IF(OR('Treaty status of each country'!E17=\"X\",'Treaty status of each country'!E17=\"X*\"),\"Y\",\"-\")","v":"-"}]
["Barbados",{"$f":"IF(OR('Treaty status of each country'!B18=\"X\", 'Treaty status of each country'!C18=\"X\"), \"Y\", \"\")","v":"Y"},{"$f":"IF(OR('Treaty status of each country'!E18=\"X\",'Treaty status of each country'!E18=\"X*\", COUNTIF('Countries 2016+2021 Order'!C$3:C$15,A18)=1),\"Y\",IF(OR('Treaty status of each country'!F18=\"X\",'Treaty status of each country'!F18=\"X*\"),\"Y*\",IF(OR('Treaty status of each country'!B18=\"X\",'Treaty status of each country'!C18=\"X\"),\"Y**\",\"\")))","v":"Y"},{"$f":"IF(COUNTIF('Countries 2016+2021 Order'!B$56:B$90,'Rights in UK for each country'!A18)=1,\"Y\",IF(OR('Treaty status of each country'!E18=\"X\",'Treaty status of each country'!E18=\"X*\",COUNTIF('Countries 2016+2021 Order'!B$20:B$52,'Rights in UK for each country'!A18)=1),\"Y*\",IF('Treaty status of each country'!B18=\"X\",\"Y**\",\"-\")))","v":"Y*"},{"$f":"IF(OR(COUNTIF('Countries 2016+2021 Order'!B$93:B$94,'Rights in UK for each country'!A18)=1,'Treaty status of each country'!E18=\"X\"),\"Y\",IF('Treaty status of each country'!E18=\"X*\",\"Y-\",IF('Treaty status of each country'!F18=\"X\",\"Y*\",IF('Treaty status of each country'!F18=\"X*\",\"Y*-\",IF('Treaty status of each country'!B18=\"X\",\"Y**\",\"-\")))))","v":"Y"},{"$f":"IF(OR('Treaty status of each country'!E18=\"X\",'Treaty status of each country'!E18=\"X*\"),\"Y\",\"-\")","v":"Y"}]
["Belarus",{"$f":"IF(OR('Treaty status of each country'!B19=\"X\", 'Treaty status of each country'!C19=\"X\"), \"Y\", \"\")","v":"Y"},{"$f":"IF(OR('Treaty status of each country'!E19=\"X\",'Treaty status of each country'!E19=\"X*\", COUNTIF('Countries 2016+2021 Order'!C$3:C$15,A19)=1),\"Y\",IF(OR('Treaty status of each country'!F19=\"X\",'Treaty status of each country'!F19=\"X*\"),\"Y*\",IF(OR('Treaty status of each country'!B19=\"X\",'Treaty status of each country'!C19=\"X\"),\"Y**\",\"\")))","v":"Y"},{"$f":"IF(COUNTIF('Countries 2016+2021 Order'!B$56:B$90,'Rights in UK for each country'!A19)=1,\"Y\",IF(OR('Treaty status of each country'!E19=\"X\",'Treaty status of each country'!E19=\"X*\",COUNTIF('Countries 2016+2021 Order'!B$20:B$52,'Rights in UK for each country'!A19)=1),\"Y*\",IF('Treaty status of each country'!B19=\"X\",\"Y**\",\"-\")))","v":"Y*"},{"$f":"IF(OR(COUNTIF('Countries 2016+2021 Order'!B$93:B$94,'Rights in UK for each country'!A19)=1,'Treaty status of each country'!E19=\"X\"),\"Y\",IF('Treaty status of each country'!E19=\"X*\",\"Y-\",IF('Treaty status of each country'!F19=\"X\",\"Y*\",IF('Treaty status of each country'!F19=\"X*\",\"Y*-\",IF('Treaty status of each country'!B19=\"X\",\"Y**\",\"-\")))))","v":"Y"},{"$f":"IF(OR('Treaty status of each country'!E19=\"X\",'Treaty status of each country'!E19=\"X*\"),\"Y\",\"-\")","v":"Y"}]
["Belgium",{"$f":"IF(OR('Treaty status of each country'!B20=\"X\", 'Treaty status of each country'!C20=\"X\"), \"Y\", \"\")","v":"Y"},{"$f":"IF(OR('Treaty status of each country'!E20=\"X\",'Treaty status of each country'!E20=\"X*\", COUNTIF('Countries 2016+2021 Order'!C$3:C$15,A20)=1),\"Y\",IF(OR('Treaty status of each country'!F20=\"X\",'Treaty status of each country'!F20=\"X*\"),\"Y*\",IF(OR('Treaty status of each country'!B20=\"X\",'Treaty status of each country'!C20=\"X\"),\"Y**\",\"\")))","v":"Y"},{"$f":"IF(COUNTIF('Countries 2016+2021 Order'!B$56:B$90,'Rights in UK for each country'!A20)=1,\"Y\",IF(OR('Treaty status of each country'!E20=\"X\",'Treaty status of each country'!E20=\"X*\",COUNTIF('Countries 2016+2021 Order'!B$20:B$52,'Rights in UK for each country'!A20)=1),\"Y*\",IF('Treaty status of each country'!B20=\"X\",\"Y**\",\"-\")))","v":"Y"},{"$f":"IF(OR(COUNTIF('Countries 2016+2021 Order'!B$93:B$94,'Rights in UK for each country'!A20)=1,'Treaty status of each country'!E20=\"X\"),\"Y\",IF('Treaty status of each country'!E20=\"X*\",\"Y-\",IF('Treaty status of each country'!F20=\"X\",\"Y*\",IF('Treaty status of each country'!F20=\"X*\",\"Y*-\",IF('Treaty status of each country'!B20=\"X\",\"Y**\",\"-\")))))","v":"Y"},{"$f":"IF(OR('Treaty status of each country'!E20=\"X\",'Treaty status of each country'!E20=\"X*\"),\"Y\",\"-\")","v":"Y"}]
["Belize",{"$f":"IF(OR('Treaty status of each country'!B21=\"X\", 'Treaty status of each country'!C21=\"X\"), \"Y\", \"\")","v":"Y"},{"$f":"IF(OR('Treaty status of each country'!E21=\"X\",'Treaty status of each country'!E21=\"X*\", COUNTIF('Countries 2016+2021 Order'!C$3:C$15,A21)=1),\"Y\",IF(OR('Treaty status of each country'!F21=\"X\",'Treaty status of each country'!F21=\"X*\"),\"Y*\",IF(OR('Treaty status of each country'!B21=\"X\",'Treaty status of each country'!C21=\"X\"),\"Y**\",\"\")))","v":"Y"},{"$f":"IF(COUNTIF('Countries 2016+2021 Order'!B$56:B$90,'Rights in UK for each country'!A21)=1,\"Y\",IF(OR('Treaty status of each country'!E21=\"X\",'Treaty status of each country'!E21=\"X*\",COUNTIF('Countries 2016+2021 Order'!B$20:B$52,'Rights in UK for each country'!A21)=1),\"Y*\",IF('Treaty status of each country'!B21=\"X\",\"Y**\",\"-\")))","v":"Y*"},{"$f":"IF(OR(COUNTIF('Countries 2016+2021 Order'!B$93:B$94,'Rights in UK for each country'!A21)=1,'Treaty status of each country'!E21=\"X\"),\"Y\",IF('Treaty status of each country'!E21=\"X*\",\"Y-\",IF('Treaty status of each country'!F21=\"X\",\"Y*\",IF('Treaty status of each country'!F21=\"X*\",\"Y*-\",IF('Treaty status of each country'!B21=\"X\",\"Y**\",\"-\")))))","v":"Y"},{"$f":"IF(OR('Treaty status of each country'!E21=\"X\",'Treaty status of each country'!E21=\"X*\"),\"Y\",\"-\")","v":"Y"}]
["Benin",{"$f":"IF(OR('Treaty status of each country'!B22=\"X\", 'Treaty status of each country'!C22=\"X\"), \"Y\", \"\")","v":"Y"},{"$f":"IF(OR('Treaty status of each country'!E22=\"X\",'Treaty status of each country'!E22=\"X*\", COUNTIF('Countries 2016+2021 Order'!C$3:C$15,A22)=1),\"Y\",IF(OR('Treaty status of each country'!F22=\"X\",'Treaty status of each country'!F22=\"X*\"),\"Y*\",IF(OR('Treaty status of each country'!B22=\"X\",'Treaty status of each country'!C22=\"X\"),\"Y**\",\"\")))","v":"Y*"},{"$f":"IF(COUNTIF('Countries 2016+2021 Order'!B$56:B$90,'Rights in UK for each country'!A22)=1,\"Y\",IF(OR('Treaty status of each country'!E22=\"X\",'Treaty status of each country'!E22=\"X*\",COUNTIF('Countries 2016+2021 Order'!B$20:B$52,'Rights in UK for each country'!A22)=1),\"Y*\",IF('Treaty status of each country'!B22=\"X\",\"Y**\",\"-\")))","v":"Y**"},{"$f":"IF(OR(COUNTIF('Countries 2016+2021 Order'!B$93:B$94,'Rights in UK for each country'!A22)=1,'Treaty status of each country'!E22=\"X\"),\"Y\",IF('Treaty status of each country'!E22=\"X*\",\"Y-\",IF('Treaty status of each country'!F22=\"X\",\"Y*\",IF('Treaty status of each country'!F22=\"X*\",\"Y*-\",IF('Treaty status of each country'!B22=\"X\",\"Y**\",\"-\")))))","v":"Y*"},{"$f":"IF(OR('Treaty status of each country'!E22=\"X\",'Treaty status of each country'!E22=\"X*\"),\"Y\",\"-\")","v":"-"}]
["Bhutan",{"$f":"IF(OR('Treaty status of each country'!B23=\"X\", 'Treaty status of each country'!C23=\"X\"), \"Y\", \"\")","v":"Y"},{"$f":"IF(OR('Treaty status of each country'!E23=\"X\",'Treaty status of each country'!E23=\"X*\", COUNTIF('Countries 2016+2021 Order'!C$3:C$15,A23)=1),\"Y\",IF(OR('Treaty status of each country'!F23=\"X\",'Treaty status of each country'!F23=\"X*\"),\"Y*\",IF(OR('Treaty status of each country'!B23=\"X\",'Treaty status of each country'!C23=\"X\"),\"Y**\",\"\")))","v":"Y**"},{"$f":"IF(COUNTIF('Countries 2016+2021 Order'!B$56:B$90,'Rights in UK for each country'!A23)=1,\"Y\",IF(OR('Treaty status of each country'!E23=\"X\",'Treaty status of each country'!E23=\"X*\",COUNTIF('Countries 2016+2021 Order'!B$20:B$52,'Rights in UK for each country'!A23)=1),\"Y*\",IF('Treaty status of each country'!B23=\"X\",\"Y**\",\"-\")))","v":"-"},{"$f":"IF(OR(COUNTIF('Countries 2016+2021 Order'!B$93:B$94,'Rights in UK for each country'!A23)=1,'Treaty status of each country'!E23=\"X\"),\"Y\",IF('Treaty status of each country'!E23=\"X*\",\"Y-\",IF('Treaty status of each country'!F23=\"X\",\"Y*\",IF('Treaty status of each country'!F23=\"X*\",\"Y*-\",IF('Treaty status of each country'!B23=\"X\",\"Y**\",\"-\")))))","v":"-"},{"$f":"IF(OR('Treaty status of each country'!E23=\"X\",'Treaty status of each country'!E23=\"X*\"),\"Y\",\"-\")","v":"-"}]
["Bolivia (Plurinational State of)",{"$f":"IF(OR('Treaty status of each country'!B24=\"X\", 'Treaty status of each country'!C24=\"X\"), \"Y\", \"\")","v":"Y"},{"$f":"IF(OR('Treaty status of each country'!E24=\"X\",'Treaty status of each country'!E24=\"X*\", COUNTIF('Countries 2016+2021 Order'!C$3:C$15,A24)=1),\"Y\",IF(OR('Treaty status of each country'!F24=\"X\",'Treaty status of each country'!F24=\"X*\"),\"Y*\",IF(OR('Treaty status of each country'!B24=\"X\",'Treaty status of each country'!C24=\"X\"),\"Y**\",\"\")))","v":"Y"},{"$f":"IF(COUNTIF('Countries 2016+2021 Order'!B$56:B$90,'Rights in UK for each country'!A24)=1,\"Y\",IF(OR('Treaty status of each country'!E24=\"X\",'Treaty status of each country'!E24=\"X*\",COUNTIF('Countries 2016+2021 Order'!B$20:B$52,'Rights in UK for each country'!A24)=1),\"Y*\",IF('Treaty status of each country'!B24=\"X\",\"Y**\",\"-\")))","v":"Y*"},{"$f":"IF(OR(COUNTIF('Countries 2016+2021 Order'!B$93:B$94,'Rights in UK for each country'!A24)=1,'Treaty status of each country'!E24=\"X\"),\"Y\",IF('Treaty status of each country'!E24=\"X*\",\"Y-\",IF('Treaty status of each country'!F24=\"X\",\"Y*\",IF('Treaty status of each country'!F24=\"X*\",\"Y*-\",IF('Treaty status of each country'!B24=\"X\",\"Y**\",\"-\")))))","v":"Y"},{"$f":"IF(OR('Treaty status of each country'!E24=\"X\",'Treaty status of each country'!E24=\"X*\"),\"Y\",\"-\")","v":"Y"}]
["Bosnia and Herzegovina",{"$f":"IF(OR('Treaty status of each country'!B25=\"X\", 'Treaty status of each country'!C25=\"X\"), \"Y\", \"\")","v":"Y"},{"$f":"IF(OR('Treaty status of each country'!E25=\"X\",'Treaty status of each country'!E25=\"X*\", COUNTIF('Countries 2016+2021 Order'!C$3:C$15,A25)=1),\"Y\",IF(OR('Treaty status of each country'!F25=\"X\",'Treaty status of each country'!F25=\"X*\"),\"Y*\",IF(OR('Treaty status of each country'!B25=\"X\",'Treaty status of each country'!C25=\"X\"),\"Y**\",\"\")))","v":"Y"},{"$f":"IF(COUNTIF('Countries 2016+2021 Order'!B$56:B$90,'Rights in UK for each country'!A25)=1,\"Y\",IF(OR('Treaty status of each country'!E25=\"X\",'Treaty status of each country'!E25=\"X*\",COUNTIF('Countries 2016+2021 Order'!B$20:B$52,'Rights in UK for each country'!A25)=1),\"Y*\",IF('Treaty status of each country'!B25=\"X\",\"Y**\",\"-\")))","v":"Y*"},{"$f":"IF(OR(COUNTIF('Countries 2016+2021 Order'!B$93:B$94,'Rights in UK for each country'!A25)=1,'Treaty status of each country'!E25=\"X\"),\"Y\",IF('Treaty status of each country'!E25=\"X*\",\"Y-\",IF('Treaty status of each country'!F25=\"X\",\"Y*\",IF('Treaty status of each country'!F25=\"X*\",\"Y*-\",IF('Treaty status of each country'!B25=\"X\",\"Y**\",\"-\")))))","v":"Y"},{"$f":"IF(OR('Treaty status of each country'!E25=\"X\",'Treaty status of each country'!E25=\"X*\"),\"Y\",\"-\")","v":"Y"}]
["Botswana",{"$f":"IF(OR('Treaty status of each country'!B26=\"X\", 'Treaty status of each country'!C26=\"X\"), \"Y\", \"\")","v":"Y"},{"$f":"IF(OR('Treaty status of each country'!E26=\"X\",'Treaty status of each country'!E26=\"X*\", COUNTIF('Countries 2016+2021 Order'!C$3:C$15,A26)=1),\"Y\",IF(OR('Treaty status of each country'!F26=\"X\",'Treaty status of each country'!F26=\"X*\"),\"Y*\",IF(OR('Treaty status of each country'!B26=\"X\",'Treaty status of each country'!C26=\"X\"),\"Y**\",\"\")))","v":"Y*"},{"$f":"IF(COUNTIF('Countries 2016+2021 Order'!B$56:B$90,'Rights in UK for each country'!A26)=1,\"Y\",IF(OR('Treaty status of each country'!E26=\"X\",'Treaty status of each country'!E26=\"X*\",COUNTIF('Countries 2016+2021 Order'!B$20:B$52,'Rights in UK for each country'!A26)=1),\"Y*\",IF('Treaty status of each country'!B26=\"X\",\"Y**\",\"-\")))","v":"Y**"},{"$f":"IF(OR(COUNTIF('Countries 2016+2021 Order'!B$93:B$94,'Rights in UK for each country'!A26)=1,'Treaty status of each country'!E26=\"X\"),\"Y\",IF('Treaty status of each country'!E26=\"X*\",\"Y-\",IF('Treaty status of each country'!F26=\"X\",\"Y*\",IF('Treaty status of each country'!F26=\"X*\",\"Y*-\",IF('Treaty status of each country'!B26=\"X\",\"Y**\",\"-\")))))","v":"Y*"},{"$f":"IF(OR('Treaty status of each country'!E26=\"X\",'Treaty status of each country'!E26=\"X*\"),\"Y\",\"-\")","v":"-"}]
["Brazil",{"$f":"IF(OR('Treaty status of each country'!B27=\"X\", 'Treaty status of each country'!C27=\"X\"), \"Y\", \"\")","v":"Y"},{"$f":"IF(OR('Treaty status of each country'!E27=\"X\",'Treaty status of each country'!E27=\"X*\", COUNTIF('Countries 2016+2021 Order'!C$3:C$15,A27)=1),\"Y\",IF(OR('Treaty status of each country'!F27=\"X\",'Treaty status of each country'!F27=\"X*\"),\"Y*\",IF(OR('Treaty status of each country'!B27=\"X\",'Treaty status of each country'!C27=\"X\"),\"Y**\",\"\")))","v":"Y"},{"$f":"IF(COUNTIF('Countries 2016+2021 Order'!B$56:B$90,'Rights in UK for each country'!A27)=1,\"Y\",IF(OR('Treaty status of each country'!E27=\"X\",'Treaty status of each country'!E27=\"X*\",COUNTIF('Countries 2016+2021 Order'!B$20:B$52,'Rights in UK for each country'!A27)=1),\"Y*\",IF('Treaty status of each country'!B27=\"X\",\"Y**\",\"-\")))","v":"Y*"},{"$f":"IF(OR(COUNTIF('Countries 2016+2021 Order'!B$93:B$94,'Rights in UK for each country'!A27)=1,'Treaty status of each country'!E27=\"X\"),\"Y\",IF('Treaty status of each country'!E27=\"X*\",\"Y-\",IF('Treaty status of each country'!F27=\"X\",\"Y*\",IF('Treaty status of each country'!F27=\"X*\",\"Y*-\",IF('Treaty status of each country'!B27=\"X\",\"Y**\",\"-\")))))","v":"Y"},{"$f":"IF(OR('Treaty status of each country'!E27=\"X\",'Treaty status of each country'!E27=\"X*\"),\"Y\",\"-\")","v":"Y"}]
["Brunei Darussalam",{"$f":"IF(OR('Treaty status of each country'!B28=\"X\", 'Treaty status of each country'!C28=\"X\"), \"Y\", \"\")","v":"Y"},{"$f":"IF(OR('Treaty status of each country'!E28=\"X\",'Treaty status of each country'!E28=\"X*\", COUNTIF('Countries 2016+2021 Order'!C$3:C$15,A28)=1),\"Y\",IF(OR('Treaty status of each country'!F28=\"X\",'Treaty status of each country'!F28=\"X*\"),\"Y*\",IF(OR('Treaty status of each country'!B28=\"X\",'Treaty status of each country'!C28=\"X\"),\"Y**\",\"\")))","v":"Y*"},{"$f":"IF(COUNTIF('Countries 2016+2021 Order'!B$56:B$90,'Rights in UK for each country'!A28)=1,\"Y\",IF(OR('Treaty status of each country'!E28=\"X\",'Treaty status of each country'!E28=\"X*\",COUNTIF('Countries 2016+2021 Order'!B$20:B$52,'Rights in UK for each country'!A28)=1),\"Y*\",IF('Treaty status of each country'!B28=\"X\",\"Y**\",\"-\")))","v":"Y**"},{"$f":"IF(OR(COUNTIF('Countries 2016+2021 Order'!B$93:B$94,'Rights in UK for each country'!A28)=1,'Treaty status of each country'!E28=\"X\"),\"Y\",IF('Treaty status of each country'!E28=\"X*\",\"Y-\",IF('Treaty status of each country'!F28=\"X\",\"Y*\",IF('Treaty status of each country'!F28=\"X*\",\"Y*-\",IF('Treaty status of each country'!B28=\"X\",\"Y**\",\"-\")))))","v":"Y*"},{"$f":"IF(OR('Treaty status of each country'!E28=\"X\",'Treaty status of each country'!E28=\"X*\"),\"Y\",\"-\")","v":"-"}]
["Bulgaria",{"$f":"IF(OR('Treaty status of each country'!B29=\"X\", 'Treaty status of each country'!C29=\"X\"), \"Y\", \"\")","v":"Y"},{"$f":"IF(OR('Treaty status of each country'!E29=\"X\",'Treaty status of each country'!E29=\"X*\", COUNTIF('Countries 2016+2021 Order'!C$3:C$15,A29)=1),\"Y\",IF(OR('Treaty status of each country'!F29=\"X\",'Treaty status of each country'!F29=\"X*\"),\"Y*\",IF(OR('Treaty status of each country'!B29=\"X\",'Treaty status of each country'!C29=\"X\"),\"Y**\",\"\")))","v":"Y"},{"$f":"IF(COUNTIF('Countries 2016+2021 Order'!B$56:B$90,'Rights in UK for each country'!A29)=1,\"Y\",IF(OR('Treaty status of each country'!E29=\"X\",'Treaty status of each country'!E29=\"X*\",COUNTIF('Countries 2016+2021 Order'!B$20:B$52,'Rights in UK for each country'!A29)=1),\"Y*\",IF('Treaty status of each country'!B29=\"X\",\"Y**\",\"-\")))","v":"Y"},{"$f":"IF(OR(COUNTIF('Countries 2016+2021 Order'!B$93:B$94,'Rights in UK for each country'!A29)=1,'Treaty status of each country'!E29=\"X\"),\"Y\",IF('Treaty status of each country'!E29=\"X*\",\"Y-\",IF('Treaty status of each country'!F29=\"X\",\"Y*\",IF('Treaty status of each country'!F29=\"X*\",\"Y*-\",IF('Treaty status of each country'!B29=\"X\",\"Y**\",\"-\")))))","v":"Y"},{"$f":"IF(OR('Treaty status of each country'!E29=\"X\",'Treaty status of each country'!E29=\"X*\"),\"Y\",\"-\")","v":"Y"}]
["Burkina Faso",{"$f":"IF(OR('Treaty status of each country'!B30=\"X\", 'Treaty status of each country'!C30=\"X\"), \"Y\", \"\")","v":"Y"},{"$f":"IF(OR('Treaty status of each country'!E30=\"X\",'Treaty status of each country'!E30=\"X*\", COUNTIF('Countries 2016+2021 Order'!C$3:C$15,A30)=1),\"Y\",IF(OR('Treaty status of each country'!F30=\"X\",'Treaty status of each country'!F30=\"X*\"),\"Y*\",IF(OR('Treaty status of each country'!B30=\"X\",'Treaty status of each country'!C30=\"X\"),\"Y**\",\"\")))","v":"Y"},{"$f":"IF(COUNTIF('Countries 2016+2021 Order'!B$56:B$90,'Rights in UK for each country'!A30)=1,\"Y\",IF(OR('Treaty status of each country'!E30=\"X\",'Treaty status of each country'!E30=\"X*\",COUNTIF('Countries 2016+2021 Order'!B$20:B$52,'Rights in UK for each country'!A30)=1),\"Y*\",IF('Treaty status of each country'!B30=\"X\",\"Y**\",\"-\")))","v":"Y*"},{"$f":"IF(OR(COUNTIF('Countries 2016+2021 Order'!B$93:B$94,'Rights in UK for each country'!A30)=1,'Treaty status of each country'!E30=\"X\"),\"Y\",IF('Treaty status of each country'!E30=\"X*\",\"Y-\",IF('Treaty status of each country'!F30=\"X\",\"Y*\",IF('Treaty status of each country'!F30=\"X*\",\"Y*-\",IF('Treaty status of each country'!B30=\"X\",\"Y**\",\"-\")))))","v":"Y"},{"$f":"IF(OR('Treaty status of each country'!E30=\"X\",'Treaty status of each country'!E30=\"X*\"),\"Y\",\"-\")","v":"Y"}]
["Burundi",{"$f":"IF(OR('Treaty status of each country'!B31=\"X\", 'Treaty status of each country'!C31=\"X\"), \"Y\", \"\")","v":"Y"},{"$f":"IF(OR('Treaty status of each country'!E31=\"X\",'Treaty status of each country'!E31=\"X*\", COUNTIF('Countries 2016+2021 Order'!C$3:C$15,A31)=1),\"Y\",IF(OR('Treaty status of each country'!F31=\"X\",'Treaty status of each country'!F31=\"X*\"),\"Y*\",IF(OR('Treaty status of each country'!B31=\"X\",'Treaty status of each country'!C31=\"X\"),\"Y**\",\"\")))","v":"Y**"},{"$f":"IF(COUNTIF('Countries 2016+2021 Order'!B$56:B$90,'Rights in UK for each country'!A31)=1,\"Y\",IF(OR('Treaty status of each country'!E31=\"X\",'Treaty status of each country'!E31=\"X*\",COUNTIF('Countries 2016+2021 Order'!B$20:B$52,'Rights in UK for each country'!A31)=1),\"Y*\",IF('Treaty status of each country'!B31=\"X\",\"Y**\",\"-\")))","v":"Y**"},{"$f":"IF(OR(COUNTIF('Countries 2016+2021 Order'!B$93:B$94,'Rights in UK for each country'!A31)=1,'Treaty status of each country'!E31=\"X\"),\"Y\",IF('Treaty status of each country'!E31=\"X*\",\"Y-\",IF('Treaty status of each country'!F31=\"X\",\"Y*\",IF('Treaty status of each country'!F31=\"X*\",\"Y*-\",IF('Treaty status of each country'!B31=\"X\",\"Y**\",\"-\")))))","v":"Y**"},{"$f":"IF(OR('Treaty status of each country'!E31=\"X\",'Treaty status of each country'!E31=\"X*\"),\"Y\",\"-\")","v":"-"}]
["Cabo Verde",{"$f":"IF(OR('Treaty status of each country'!B32=\"X\", 'Treaty status of each country'!C32=\"X\"), \"Y\", \"\")","v":"Y"},{"$f":"IF(OR('Treaty status of each country'!E32=\"X\",'Treaty status of each country'!E32=\"X*\", COUNTIF('Countries 2016+2021 Order'!C$3:C$15,A32)=1),\"Y\",IF(OR('Treaty status of each country'!F32=\"X\",'Treaty status of each country'!F32=\"X*\"),\"Y*\",IF(OR('Treaty status of each country'!B32=\"X\",'Treaty status of each country'!C32=\"X\"),\"Y**\",\"\")))","v":"Y"},{"$f":"IF(COUNTIF('Countries 2016+2021 Order'!B$56:B$90,'Rights in UK for each country'!A32)=1,\"Y\",IF(OR('Treaty status of each country'!E32=\"X\",'Treaty status of each country'!E32=\"X*\",COUNTIF('Countries 2016+2021 Order'!B$20:B$52,'Rights in UK for each country'!A32)=1),\"Y*\",IF('Treaty status of each country'!B32=\"X\",\"Y**\",\"-\")))","v":"Y*"},{"$f":"IF(OR(COUNTIF('Countries 2016+2021 Order'!B$93:B$94,'Rights in UK for each country'!A32)=1,'Treaty status of each country'!E32=\"X\"),\"Y\",IF('Treaty status of each country'!E32=\"X*\",\"Y-\",IF('Treaty status of each country'!F32=\"X\",\"Y*\",IF('Treaty status of each country'!F32=\"X*\",\"Y*-\",IF('Treaty status of each country'!B32=\"X\",\"Y**\",\"-\")))))","v":"Y"},{"$f":"IF(OR('Treaty status of each country'!E32=\"X\",'Treaty status of each country'!E32=\"X*\"),\"Y\",\"-\")","v":"Y"}]
["Cambodia",{"$f":"IF(OR('Treaty status of each country'!B33=\"X\", 'Treaty status of each country'!C33=\"X\"), \"Y\", \"\")","v":"Y"},{"$f":"IF(OR('Treaty status of each country'!E33=\"X\",'Treaty status of each country'!E33=\"X*\", COUNTIF('Countries 2016+2021 Order'!C$3:C$15,A33)=1),\"Y\",IF(OR('Treaty status of each country'!F33=\"X\",'Treaty status of each country'!F33=\"X*\"),\"Y*\",IF(OR('Treaty status of each country'!B33=\"X\",'Treaty status of each country'!C33=\"X\"),\"Y**\",\"\")))","v":"Y**"},{"$f":"IF(COUNTIF('Countries 2016+2021 Order'!B$56:B$90,'Rights in UK for each country'!A33)=1,\"Y\",IF(OR('Treaty status of each country'!E33=\"X\",'Treaty status of each country'!E33=\"X*\",COUNTIF('Countries 2016+2021 Order'!B$20:B$52,'Rights in UK for each country'!A33)=1),\"Y*\",IF('Treaty status of each country'!B33=\"X\",\"Y**\",\"-\")))","v":"Y**"},{"$f":"IF(OR(COUNTIF('Countries 2016+2021 Order'!B$93:B$94,'Rights in UK for each country'!A33)=1,'Treaty status of each country'!E33=\"X\"),\"Y\",IF('Treaty status of each country'!E33=\"X*\",\"Y-\",IF('Treaty status of each country'!F33=\"X\",\"Y*\",IF('Treaty status of each country'!F33=\"X*\",\"Y*-\",IF('Treaty status of each country'!B33=\"X\",\"Y**\",\"-\")))))","v":"Y**"},{"$f":"IF(OR('Treaty status of each country'!E33=\"X\",'Treaty status of each country'!E33=\"X*\"),\"Y\",\"-\")","v":"-"}]
["Cameroon",{"$f":"IF(OR('Treaty status of each country'!B34=\"X\", 'Treaty status of each country'!C34=\"X\"), \"Y\", \"\")","v":"Y"},{"$f":"IF(OR('Treaty status of each country'!E34=\"X\",'Treaty status of each country'!E34=\"X*\", COUNTIF('Countries 2016+2021 Order'!C$3:C$15,A34)=1),\"Y\",IF(OR('Treaty status of each country'!F34=\"X\",'Treaty status of each country'!F34=\"X*\"),\"Y*\",IF(OR('Treaty status of each country'!B34=\"X\",'Treaty status of each country'!C34=\"X\"),\"Y**\",\"\")))","v":"Y**"},{"$f":"IF(COUNTIF('Countries 2016+2021 Order'!B$56:B$90,'Rights in UK for each country'!A34)=1,\"Y\",IF(OR('Treaty status of each country'!E34=\"X\",'Treaty status of each country'!E34=\"X*\",COUNTIF('Countries 2016+2021 Order'!B$20:B$52,'Rights in UK for each country'!A34)=1),\"Y*\",IF('Treaty status of each country'!B34=\"X\",\"Y**\",\"-\")))","v":"Y**"},{"$f":"IF(OR(COUNTIF('Countries 2016+2021 Order'!B$93:B$94,'Rights in UK for each country'!A34)=1,'Treaty status of each country'!E34=\"X\"),\"Y\",IF('Treaty status of each country'!E34=\"X*\",\"Y-\",IF('Treaty status of each country'!F34=\"X\",\"Y*\",IF('Treaty status of each country'!F34=\"X*\",\"Y*-\",IF('Treaty status of each country'!B34=\"X\",\"Y**\",\"-\")))))","v":"Y**"},{"$f":"IF(OR('Treaty status of each country'!E34=\"X\",'Treaty status of each country'!E34=\"X*\"),\"Y\",\"-\")","v":"-"}]
["Canada",{"$f":"IF(OR('Treaty status of each country'!B35=\"X\", 'Treaty status of each country'!C35=\"X\"), \"Y\", \"\")","v":"Y"},{"$f":"IF(OR('Treaty status of each country'!E35=\"X\",'Treaty status of each country'!E35=\"X*\", COUNTIF('Countries 2016+2021 Order'!C$3:C$15,A35)=1),\"Y\",IF(OR('Treaty status of each country'!F35=\"X\",'Treaty status of each country'!F35=\"X*\"),\"Y*\",IF(OR('Treaty status of each country'!B35=\"X\",'Treaty status of each country'!C35=\"X\"),\"Y**\",\"\")))","v":"Y"},{"$f":"IF(COUNTIF('Countries 2016+2021 Order'!B$56:B$90,'Rights in UK for each country'!A35)=1,\"Y\",IF(OR('Treaty status of each country'!E35=\"X\",'Treaty status of each country'!E35=\"X*\",COUNTIF('Countries 2016+2021 Order'!B$20:B$52,'Rights in UK for each country'!A35)=1),\"Y*\",IF('Treaty status of each country'!B35=\"X\",\"Y**\",\"-\")))","v":"Y*"},{"$f":"IF(OR(COUNTIF('Countries 2016+2021 Order'!B$93:B$94,'Rights in UK for each country'!A35)=1,'Treaty status of each country'!E35=\"X\"),\"Y\",IF('Treaty status of each country'!E35=\"X*\",\"Y-\",IF('Treaty status of each country'!F35=\"X\",\"Y*\",IF('Treaty status of each country'!F35=\"X*\",\"Y*-\",IF('Treaty status of each country'!B35=\"X\",\"Y**\",\"-\")))))","v":"Y"},{"$f":"IF(OR('Treaty status of each country'!E35=\"X\",'Treaty status of each country'!E35=\"X*\"),\"Y\",\"-\")","v":"Y"}]
["Central African Republic",{"$f":"IF(OR('Treaty status of each country'!B36=\"X\", 'Treaty status of each country'!C36=\"X\"), \"Y\", \"\")","v":"Y"},{"$f":"IF(OR('Treaty status of each country'!E36=\"X\",'Treaty status of each country'!E36=\"X*\", COUNTIF('Countries 2016+2021 Order'!C$3:C$15,A36)=1),\"Y\",IF(OR('Treaty status of each country'!F36=\"X\",'Treaty status of each country'!F36=\"X*\"),\"Y*\",IF(OR('Treaty status of each country'!B36=\"X\",'Treaty status of each country'!C36=\"X\"),\"Y**\",\"\")))","v":"Y**"},{"$f":"IF(COUNTIF('Countries 2016+2021 Order'!B$56:B$90,'Rights in UK for each country'!A36)=1,\"Y\",IF(OR('Treaty status of each country'!E36=\"X\",'Treaty status of each country'!E36=\"X*\",COUNTIF('Countries 2016+2021 Order'!B$20:B$52,'Rights in UK for each country'!A36)=1),\"Y*\",IF('Treaty status of each country'!B36=\"X\",\"Y**\",\"-\")))","v":"Y**"},{"$f":"IF(OR(COUNTIF('Countries 2016+2021 Order'!B$93:B$94,'Rights in UK for each country'!A36)=1,'Treaty status of each country'!E36=\"X\"),\"Y\",IF('Treaty status of each country'!E36=\"X*\",\"Y-\",IF('Treaty status of each country'!F36=\"X\",\"Y*\",IF('Treaty status of each country'!F36=\"X*\",\"Y*-\",IF('Treaty status of each country'!B36=\"X\",\"Y**\",\"-\")))))","v":"Y**"},{"$f":"IF(OR('Treaty status of each country'!E36=\"X\",'Treaty status of each country'!E36=\"X*\"),\"Y\",\"-\")","v":"-"}]
["Chad",{"$f":"IF(OR('Treaty status of each country'!B37=\"X\", 'Treaty status of each country'!C37=\"X\"), \"Y\", \"\")","v":"Y"},{"$f":"IF(OR('Treaty status of each country'!E37=\"X\",'Treaty status of each country'!E37=\"X*\", COUNTIF('Countries 2016+2021 Order'!C$3:C$15,A37)=1),\"Y\",IF(OR('Treaty status of each country'!F37=\"X\",'Treaty status of each country'!F37=\"X*\"),\"Y*\",IF(OR('Treaty status of each country'!B37=\"X\",'Treaty status of each country'!C37=\"X\"),\"Y**\",\"\")))","v":"Y**"},{"$f":"IF(COUNTIF('Countries 2016+2021 Order'!B$56:B$90,'Rights in UK for each country'!A37)=1,\"Y\",IF(OR('Treaty status of each country'!E37=\"X\",'Treaty status of each country'!E37=\"X*\",COUNTIF('Countries 2016+2021 Order'!B$20:B$52,'Rights in UK for each country'!A37)=1),\"Y*\",IF('Treaty status of each country'!B37=\"X\",\"Y**\",\"-\")))","v":"Y**"},{"$f":"IF(OR(COUNTIF('Countries 2016+2021 Order'!B$93:B$94,'Rights in UK for each country'!A37)=1,'Treaty status of each country'!E37=\"X\"),\"Y\",IF('Treaty status of each country'!E37=\"X*\",\"Y-\",IF('Treaty status of each country'!F37=\"X\",\"Y*\",IF('Treaty status of each country'!F37=\"X*\",\"Y*-\",IF('Treaty status of each country'!B37=\"X\",\"Y**\",\"-\")))))","v":"Y**"},{"$f":"IF(OR('Treaty status of each country'!E37=\"X\",'Treaty status of each country'!E37=\"X*\"),\"Y\",\"-\")","v":"-"}]
["Chile",{"$f":"IF(OR('Treaty status of each country'!B38=\"X\", 'Treaty status of each country'!C38=\"X\"), \"Y\", \"\")","v":"Y"},{"$f":"IF(OR('Treaty status of each country'!E38=\"X\",'Treaty status of each country'!E38=\"X*\", COUNTIF('Countries 2016+2021 Order'!C$3:C$15,A38)=1),\"Y\",IF(OR('Treaty status of each country'!F38=\"X\",'Treaty status of each country'!F38=\"X*\"),\"Y*\",IF(OR('Treaty status of each country'!B38=\"X\",'Treaty status of each country'!C38=\"X\"),\"Y**\",\"\")))","v":"Y"},{"$f":"IF(COUNTIF('Countries 2016+2021 Order'!B$56:B$90,'Rights in UK for each country'!A38)=1,\"Y\",IF(OR('Treaty status of each country'!E38=\"X\",'Treaty status of each country'!E38=\"X*\",COUNTIF('Countries 2016+2021 Order'!B$20:B$52,'Rights in UK for each country'!A38)=1),\"Y*\",IF('Treaty status of each country'!B38=\"X\",\"Y**\",\"-\")))","v":"Y*"},{"$f":"IF(OR(COUNTIF('Countries 2016+2021 Order'!B$93:B$94,'Rights in UK for each country'!A38)=1,'Treaty status of each country'!E38=\"X\"),\"Y\",IF('Treaty status of each country'!E38=\"X*\",\"Y-\",IF('Treaty status of each country'!F38=\"X\",\"Y*\",IF('Treaty status of each country'!F38=\"X*\",\"Y*-\",IF('Treaty status of each country'!B38=\"X\",\"Y**\",\"-\")))))","v":"Y"},{"$f":"IF(OR('Treaty status of each country'!E38=\"X\",'Treaty status of each country'!E38=\"X*\"),\"Y\",\"-\")","v":"Y"}]
["China",{"$f":"IF(OR('Treaty status of each country'!B39=\"X\", 'Treaty status of each country'!C39=\"X\"), \"Y\", \"\")","v":"Y"},{"$f":"IF(OR('Treaty status of each country'!E39=\"X\",'Treaty status of each country'!E39=\"X*\", COUNTIF('Countries 2016+2021 Order'!C$3:C$15,A39)=1),\"Y\",IF(OR('Treaty status of each country'!F39=\"X\",'Treaty status of each country'!F39=\"X*\"),\"Y*\",IF(OR('Treaty status of each country'!B39=\"X\",'Treaty status of each country'!C39=\"X\"),\"Y**\",\"\")))","v":"Y*"},{"$f":"IF(COUNTIF('Countries 2016+2021 Order'!B$56:B$90,'Rights in UK for each country'!A39)=1,\"Y\",IF(OR('Treaty status of each country'!E39=\"X\",'Treaty status of each country'!E39=\"X*\",COUNTIF('Countries 2016+2021 Order'!B$20:B$52,'Rights in UK for each country'!A39)=1),\"Y*\",IF('Treaty status of each country'!B39=\"X\",\"Y**\",\"-\")))","v":"Y**"},{"$f":"IF(OR(COUNTIF('Countries 2016+2021 Order'!B$93:B$94,'Rights in UK for each country'!A39)=1,'Treaty status of each country'!E39=\"X\"),\"Y\",IF('Treaty status of each country'!E39=\"X*\",\"Y-\",IF('Treaty status of each country'!F39=\"X\",\"Y*\",IF('Treaty status of each country'!F39=\"X*\",\"Y*-\",IF('Treaty status of each country'!B39=\"X\",\"Y**\",\"-\")))))","v":"Y*-"},{"$f":"IF(OR('Treaty status of each country'!E39=\"X\",'Treaty status of each country'!E39=\"X*\"),\"Y\",\"-\")","v":"-"}]
["Colombia",{"$f":"IF(OR('Treaty status of each country'!B40=\"X\", 'Treaty status of each country'!C40=\"X\"), \"Y\", \"\")","v":"Y"},{"$f":"IF(OR('Treaty status of each country'!E40=\"X\",'Treaty status of each country'!E40=\"X*\", COUNTIF('Countries 2016+2021 Order'!C$3:C$15,A40)=1),\"Y\",IF(OR('Treaty status of each country'!F40=\"X\",'Treaty status of each country'!F40=\"X*\"),\"Y*\",IF(OR('Treaty status of each country'!B40=\"X\",'Treaty status of each country'!C40=\"X\"),\"Y**\",\"\")))","v":"Y"},{"$f":"IF(COUNTIF('Countries 2016+2021 Order'!B$56:B$90,'Rights in UK for each country'!A40)=1,\"Y\",IF(OR('Treaty status of each country'!E40=\"X\",'Treaty status of each country'!E40=\"X*\",COUNTIF('Countries 2016+2021 Order'!B$20:B$52,'Rights in UK for each country'!A40)=1),\"Y*\",IF('Treaty status of each country'!B40=\"X\",\"Y**\",\"-\")))","v":"Y*"},{"$f":"IF(OR(COUNTIF('Countries 2016+2021 Order'!B$93:B$94,'Rights in UK for each country'!A40)=1,'Treaty status of each country'!E40=\"X\"),\"Y\",IF('Treaty status of each country'!E40=\"X*\",\"Y-\",IF('Treaty status of each country'!F40=\"X\",\"Y*\",IF('Treaty status of each country'!F40=\"X*\",\"Y*-\",IF('Treaty status of each country'!B40=\"X\",\"Y**\",\"-\")))))","v":"Y"},{"$f":"IF(OR('Treaty status of each country'!E40=\"X\",'Treaty status of each country'!E40=\"X*\"),\"Y\",\"-\")","v":"Y"}]
["Comoros",{"$f":"IF(OR('Treaty status of each country'!B41=\"X\", 'Treaty status of each country'!C41=\"X\"), \"Y\", \"\")","v":"Y"},{"$f":"IF(OR('Treaty status of each country'!E41=\"X\",'Treaty status of each country'!E41=\"X*\", COUNTIF('Countries 2016+2021 Order'!C$3:C$15,A41)=1),\"Y\",IF(OR('Treaty status of each country'!F41=\"X\",'Treaty status of each country'!F41=\"X*\"),\"Y*\",IF(OR('Treaty status of each country'!B41=\"X\",'Treaty status of each country'!C41=\"X\"),\"Y**\",\"\")))","v":"Y*"},{"$f":"IF(COUNTIF('Countries 2016+2021 Order'!B$56:B$90,'Rights in UK for each country'!A41)=1,\"Y\",IF(OR('Treaty status of each country'!E41=\"X\",'Treaty status of each country'!E41=\"X*\",COUNTIF('Countries 2016+2021 Order'!B$20:B$52,'Rights in UK for each country'!A41)=1),\"Y*\",IF('Treaty status of each country'!B41=\"X\",\"Y**\",\"-\")))","v":"-"},{"$f":"IF(OR(COUNTIF('Countries 2016+2021 Order'!B$93:B$94,'Rights in UK for each country'!A41)=1,'Treaty status of each country'!E41=\"X\"),\"Y\",IF('Treaty status of each country'!E41=\"X*\",\"Y-\",IF('Treaty status of each country'!F41=\"X\",\"Y*\",IF('Treaty status of each country'!F41=\"X*\",\"Y*-\",IF('Treaty status of each country'!B41=\"X\",\"Y**\",\"-\")))))","v":"Y*"},{"$f":"IF(OR('Treaty status of each country'!E41=\"X\",'Treaty status of each country'!E41=\"X*\"),\"Y\",\"-\")","v":"-"}]
["Congo",{"$f":"IF(OR('Treaty status of each country'!B42=\"X\", 'Treaty status of each country'!C42=\"X\"), \"Y\", \"\")","v":"Y"},{"$f":"IF(OR('Treaty status of each country'!E42=\"X\",'Treaty status of each country'!E42=\"X*\", COUNTIF('Countries 2016+2021 Order'!C$3:C$15,A42)=1),\"Y\",IF(OR('Treaty status of each country'!F42=\"X\",'Treaty status of each country'!F42=\"X*\"),\"Y*\",IF(OR('Treaty status of each country'!B42=\"X\",'Treaty status of each country'!C42=\"X\"),\"Y**\",\"\")))","v":"Y"},{"$f":"IF(COUNTIF('Countries 2016+2021 Order'!B$56:B$90,'Rights in UK for each country'!A42)=1,\"Y\",IF(OR('Treaty status of each country'!E42=\"X\",'Treaty status of each country'!E42=\"X*\",COUNTIF('Countries 2016+2021 Order'!B$20:B$52,'Rights in UK for each country'!A42)=1),\"Y*\",IF('Treaty status of each country'!B42=\"X\",\"Y**\",\"-\")))","v":"Y*"},{"$f":"IF(OR(COUNTIF('Countries 2016+2021 Order'!B$93:B$94,'Rights in UK for each country'!A42)=1,'Treaty status of each country'!E42=\"X\"),\"Y\",IF('Treaty status of each country'!E42=\"X*\",\"Y-\",IF('Treaty status of each country'!F42=\"X\",\"Y*\",IF('Treaty status of each country'!F42=\"X*\",\"Y*-\",IF('Treaty status of each country'!B42=\"X\",\"Y**\",\"-\")))))","v":"Y-"},{"$f":"IF(OR('Treaty status of each country'!E42=\"X\",'Treaty status of each country'!E42=\"X*\"),\"Y\",\"-\")","v":"Y"}]
["Cook Islands",{"$f":"IF(OR('Treaty status of each country'!B43=\"X\", 'Treaty status of each country'!C43=\"X\"), \"Y\", \"\")","v":"Y"},{"$f":"IF(OR('Treaty status of each country'!E43=\"X\",'Treaty status of each country'!E43=\"X*\", COUNTIF('Countries 2016+2021 Order'!C$3:C$15,A43)=1),\"Y\",IF(OR('Treaty status of each country'!F43=\"X\",'Treaty status of each country'!F43=\"X*\"),\"Y*\",IF(OR('Treaty status of each country'!B43=\"X\",'Treaty status of each country'!C43=\"X\"),\"Y**\",\"\")))","v":"Y*"},{"$f":"IF(COUNTIF('Countries 2016+2021 Order'!B$56:B$90,'Rights in UK for each country'!A43)=1,\"Y\",IF(OR('Treaty status of each country'!E43=\"X\",'Treaty status of each country'!E43=\"X*\",COUNTIF('Countries 2016+2021 Order'!B$20:B$52,'Rights in UK for each country'!A43)=1),\"Y*\",IF('Treaty status of each country'!B43=\"X\",\"Y**\",\"-\")))","v":"-"},{"$f":"IF(OR(COUNTIF('Countries 2016+2021 Order'!B$93:B$94,'Rights in UK for each country'!A43)=1,'Treaty status of each country'!E43=\"X\"),\"Y\",IF('Treaty status of each country'!E43=\"X*\",\"Y-\",IF('Treaty status of each country'!F43=\"X\",\"Y*\",IF('Treaty status of each country'!F43=\"X*\",\"Y*-\",IF('Treaty status of each country'!B43=\"X\",\"Y**\",\"-\")))))","v":"Y*"},{"$f":"IF(OR('Treaty status of each country'!E43=\"X\",'Treaty status of each country'!E43=\"X*\"),\"Y\",\"-\")","v":"-"}]
["Costa Rica",{"$f":"IF(OR('Treaty status of each country'!B44=\"X\", 'Treaty status of each country'!C44=\"X\"), \"Y\", \"\")","v":"Y"},{"$f":"IF(OR('Treaty status of each country'!E44=\"X\",'Treaty status of each country'!E44=\"X*\", COUNTIF('Countries 2016+2021 Order'!C$3:C$15,A44)=1),\"Y\",IF(OR('Treaty status of each country'!F44=\"X\",'Treaty status of each country'!F44=\"X*\"),\"Y*\",IF(OR('Treaty status of each country'!B44=\"X\",'Treaty status of each country'!C44=\"X\"),\"Y**\",\"\")))","v":"Y"},{"$f":"IF(COUNTIF('Countries 2016+2021 Order'!B$56:B$90,'Rights in UK for each country'!A44)=1,\"Y\",IF(OR('Treaty status of each country'!E44=\"X\",'Treaty status of each country'!E44=\"X*\",COUNTIF('Countries 2016+2021 Order'!B$20:B$52,'Rights in UK for each country'!A44)=1),\"Y*\",IF('Treaty status of each country'!B44=\"X\",\"Y**\",\"-\")))","v":"Y*"},{"$f":"IF(OR(COUNTIF('Countries 2016+2021 Order'!B$93:B$94,'Rights in UK for each country'!A44)=1,'Treaty status of each country'!E44=\"X\"),\"Y\",IF('Treaty status of each country'!E44=\"X*\",\"Y-\",IF('Treaty status of each country'!F44=\"X\",\"Y*\",IF('Treaty status of each country'!F44=\"X*\",\"Y*-\",IF('Treaty status of each country'!B44=\"X\",\"Y**\",\"-\")))))","v":"Y"},{"$f":"IF(OR('Treaty status of each country'!E44=\"X\",'Treaty status of each country'!E44=\"X*\"),\"Y\",\"-\")","v":"Y"}]
["Côte d'Ivoire",{"$f":"IF(OR('Treaty status of each country'!B45=\"X\", 'Treaty status of each country'!C45=\"X\"), \"Y\", \"\")","v":"Y"},{"$f":"IF(OR('Treaty status of each country'!E45=\"X\",'Treaty status of each country'!E45=\"X*\", COUNTIF('Countries 2016+2021 Order'!C$3:C$15,A45)=1),\"Y\",IF(OR('Treaty status of each country'!F45=\"X\",'Treaty status of each country'!F45=\"X*\"),\"Y*\",IF(OR('Treaty status of each country'!B45=\"X\",'Treaty status of each country'!C45=\"X\"),\"Y**\",\"\")))","v":"Y**"},{"$f":"IF(COUNTIF('Countries 2016+2021 Order'!B$56:B$90,'Rights in UK for each country'!A45)=1,\"Y\",IF(OR('Treaty status of each country'!E45=\"X\",'Treaty status of each country'!E45=\"X*\",COUNTIF('Countries 2016+2021 Order'!B$20:B$52,'Rights in UK for each country'!A45)=1),\"Y*\",IF('Treaty status of each country'!B45=\"X\",\"Y**\",\"-\")))","v":"Y**"},{"$f":"IF(OR(COUNTIF('Countries 2016+2021 Order'!B$93:B$94,'Rights in UK for each country'!A45)=1,'Treaty status of each country'!E45=\"X\"),\"Y\",IF('Treaty status of each country'!E45=\"X*\",\"Y-\",IF('Treaty status of each country'!F45=\"X\",\"Y*\",IF('Treaty status of each country'!F45=\"X*\",\"Y*-\",IF('Treaty status of each country'!B45=\"X\",\"Y**\",\"-\")))))","v":"Y**"},{"$f":"IF(OR('Treaty status of each country'!E45=\"X\",'Treaty status of each country'!E45=\"X*\"),\"Y\",\"-\")","v":"-"}]
["Croatia",{"$f":"IF(OR('Treaty status of each country'!B46=\"X\", 'Treaty status of each country'!C46=\"X\"), \"Y\", \"\")","v":"Y"},{"$f":"IF(OR('Treaty status of each country'!E46=\"X\",'Treaty status of each country'!E46=\"X*\", COUNTIF('Countries 2016+2021 Order'!C$3:C$15,A46)=1),\"Y\",IF(OR('Treaty status of each country'!F46=\"X\",'Treaty status of each country'!F46=\"X*\"),\"Y*\",IF(OR('Treaty status of each country'!B46=\"X\",'Treaty status of each country'!C46=\"X\"),\"Y**\",\"\")))","v":"Y"},{"$f":"IF(COUNTIF('Countries 2016+2021 Order'!B$56:B$90,'Rights in UK for each country'!A46)=1,\"Y\",IF(OR('Treaty status of each country'!E46=\"X\",'Treaty status of each country'!E46=\"X*\",COUNTIF('Countries 2016+2021 Order'!B$20:B$52,'Rights in UK for each country'!A46)=1),\"Y*\",IF('Treaty status of each country'!B46=\"X\",\"Y**\",\"-\")))","v":"Y"},{"$f":"IF(OR(COUNTIF('Countries 2016+2021 Order'!B$93:B$94,'Rights in UK for each country'!A46)=1,'Treaty status of each country'!E46=\"X\"),\"Y\",IF('Treaty status of each country'!E46=\"X*\",\"Y-\",IF('Treaty status of each country'!F46=\"X\",\"Y*\",IF('Treaty status of each country'!F46=\"X*\",\"Y*-\",IF('Treaty status of each country'!B46=\"X\",\"Y**\",\"-\")))))","v":"Y"},{"$f":"IF(OR('Treaty status of each country'!E46=\"X\",'Treaty status of each country'!E46=\"X*\"),\"Y\",\"-\")","v":"Y"}]
["Cuba",{"$f":"IF(OR('Treaty status of each country'!B47=\"X\", 'Treaty status of each country'!C47=\"X\"), \"Y\", \"\")","v":"Y"},{"$f":"IF(OR('Treaty status of each country'!E47=\"X\",'Treaty status of each country'!E47=\"X*\", COUNTIF('Countries 2016+2021 Order'!C$3:C$15,A47)=1),\"Y\",IF(OR('Treaty status of each country'!F47=\"X\",'Treaty status of each country'!F47=\"X*\"),\"Y*\",IF(OR('Treaty status of each country'!B47=\"X\",'Treaty status of each country'!C47=\"X\"),\"Y**\",\"\")))","v":"Y**"},{"$f":"IF(COUNTIF('Countries 2016+2021 Order'!B$56:B$90,'Rights in UK for each country'!A47)=1,\"Y\",IF(OR('Treaty status of each country'!E47=\"X\",'Treaty status of each country'!E47=\"X*\",COUNTIF('Countries 2016+2021 Order'!B$20:B$52,'Rights in UK for each country'!A47)=1),\"Y*\",IF('Treaty status of each country'!B47=\"X\",\"Y**\",\"-\")))","v":"Y**"},{"$f":"IF(OR(COUNTIF('Countries 2016+2021 Order'!B$93:B$94,'Rights in UK for each country'!A47)=1,'Treaty status of each country'!E47=\"X\"),\"Y\",IF('Treaty status of each country'!E47=\"X*\",\"Y-\",IF('Treaty status of each country'!F47=\"X\",\"Y*\",IF('Treaty status of each country'!F47=\"X*\",\"Y*-\",IF('Treaty status of each country'!B47=\"X\",\"Y**\",\"-\")))))","v":"Y**"},{"$f":"IF(OR('Treaty status of each country'!E47=\"X\",'Treaty status of each country'!E47=\"X*\"),\"Y\",\"-\")","v":"-"}]
["Cyprus",{"$f":"IF(OR('Treaty status of each country'!B48=\"X\", 'Treaty status of each country'!C48=\"X\"), \"Y\", \"\")","v":"Y"},{"$f":"IF(OR('Treaty status of each country'!E48=\"X\",'Treaty status of each country'!E48=\"X*\", COUNTIF('Countries 2016+2021 Order'!C$3:C$15,A48)=1),\"Y\",IF(OR('Treaty status of each country'!F48=\"X\",'Treaty status of each country'!F48=\"X*\"),\"Y*\",IF(OR('Treaty status of each country'!B48=\"X\",'Treaty status of each country'!C48=\"X\"),\"Y**\",\"\")))","v":"Y"},{"$f":"IF(COUNTIF('Countries 2016+2021 Order'!B$56:B$90,'Rights in UK for each country'!A48)=1,\"Y\",IF(OR('Treaty status of each country'!E48=\"X\",'Treaty status of each country'!E48=\"X*\",COUNTIF('Countries 2016+2021 Order'!B$20:B$52,'Rights in UK for each country'!A48)=1),\"Y*\",IF('Treaty status of each country'!B48=\"X\",\"Y**\",\"-\")))","v":"Y"},{"$f":"IF(OR(COUNTIF('Countries 2016+2021 Order'!B$93:B$94,'Rights in UK for each country'!A48)=1,'Treaty status of each country'!E48=\"X\"),\"Y\",IF('Treaty status of each country'!E48=\"X*\",\"Y-\",IF('Treaty status of each country'!F48=\"X\",\"Y*\",IF('Treaty status of each country'!F48=\"X*\",\"Y*-\",IF('Treaty status of each country'!B48=\"X\",\"Y**\",\"-\")))))","v":"Y"},{"$f":"IF(OR('Treaty status of each country'!E48=\"X\",'Treaty status of each country'!E48=\"X*\"),\"Y\",\"-\")","v":"Y"}]
["Czech Republic",{"$f":"IF(OR('Treaty status of each country'!B49=\"X\", 'Treaty status of each country'!C49=\"X\"), \"Y\", \"\")","v":"Y"},{"$f":"IF(OR('Treaty status of each country'!E49=\"X\",'Treaty status of each country'!E49=\"X*\", COUNTIF('Countries 2016+2021 Order'!C$3:C$15,A49)=1),\"Y\",IF(OR('Treaty status of each country'!F49=\"X\",'Treaty status of each country'!F49=\"X*\"),\"Y*\",IF(OR('Treaty status of each country'!B49=\"X\",'Treaty status of each country'!C49=\"X\"),\"Y**\",\"\")))","v":"Y"},{"$f":"IF(COUNTIF('Countries 2016+2021 Order'!B$56:B$90,'Rights in UK for each country'!A49)=1,\"Y\",IF(OR('Treaty status of each country'!E49=\"X\",'Treaty status of each country'!E49=\"X*\",COUNTIF('Countries 2016+2021 Order'!B$20:B$52,'Rights in UK for each country'!A49)=1),\"Y*\",IF('Treaty status of each country'!B49=\"X\",\"Y**\",\"-\")))","v":"Y"},{"$f":"IF(OR(COUNTIF('Countries 2016+2021 Order'!B$93:B$94,'Rights in UK for each country'!A49)=1,'Treaty status of each country'!E49=\"X\"),\"Y\",IF('Treaty status of each country'!E49=\"X*\",\"Y-\",IF('Treaty status of each country'!F49=\"X\",\"Y*\",IF('Treaty status of each country'!F49=\"X*\",\"Y*-\",IF('Treaty status of each country'!B49=\"X\",\"Y**\",\"-\")))))","v":"Y"},{"$f":"IF(OR('Treaty status of each country'!E49=\"X\",'Treaty status of each country'!E49=\"X*\"),\"Y\",\"-\")","v":"Y"}]
["Democratic People's Republic of Korea",{"$f":"IF(OR('Treaty status of each country'!B50=\"X\", 'Treaty status of each country'!C50=\"X\"), \"Y\", \"\")","v":"Y"},{"$f":"IF(OR('Treaty status of each country'!E50=\"X\",'Treaty status of each country'!E50=\"X*\", COUNTIF('Countries 2016+2021 Order'!C$3:C$15,A50)=1),\"Y\",IF(OR('Treaty status of each country'!F50=\"X\",'Treaty status of each country'!F50=\"X*\"),\"Y*\",IF(OR('Treaty status of each country'!B50=\"X\",'Treaty status of each country'!C50=\"X\"),\"Y**\",\"\")))","v":"Y**"},{"$f":"IF(COUNTIF('Countries 2016+2021 Order'!B$56:B$90,'Rights in UK for each country'!A50)=1,\"Y\",IF(OR('Treaty status of each country'!E50=\"X\",'Treaty status of each country'!E50=\"X*\",COUNTIF('Countries 2016+2021 Order'!B$20:B$52,'Rights in UK for each country'!A50)=1),\"Y*\",IF('Treaty status of each country'!B50=\"X\",\"Y**\",\"-\")))","v":"-"},{"$f":"IF(OR(COUNTIF('Countries 2016+2021 Order'!B$93:B$94,'Rights in UK for each country'!A50)=1,'Treaty status of each country'!E50=\"X\"),\"Y\",IF('Treaty status of each country'!E50=\"X*\",\"Y-\",IF('Treaty status of each country'!F50=\"X\",\"Y*\",IF('Treaty status of each country'!F50=\"X*\",\"Y*-\",IF('Treaty status of each country'!B50=\"X\",\"Y**\",\"-\")))))","v":"-"},{"$f":"IF(OR('Treaty status of each country'!E50=\"X\",'Treaty status of each country'!E50=\"X*\"),\"Y\",\"-\")","v":"-"}]
["Democratic Republic of the Congo",{"$f":"IF(OR('Treaty status of each country'!B51=\"X\", 'Treaty status of each country'!C51=\"X\"), \"Y\", \"\")","v":"Y"},{"$f":"IF(OR('Treaty status of each country'!E51=\"X\",'Treaty status of each country'!E51=\"X*\", COUNTIF('Countries 2016+2021 Order'!C$3:C$15,A51)=1),\"Y\",IF(OR('Treaty status of each country'!F51=\"X\",'Treaty status of each country'!F51=\"X*\"),\"Y*\",IF(OR('Treaty status of each country'!B51=\"X\",'Treaty status of each country'!C51=\"X\"),\"Y**\",\"\")))","v":"Y**"},{"$f":"IF(COUNTIF('Countries 2016+2021 Order'!B$56:B$90,'Rights in UK for each country'!A51)=1,\"Y\",IF(OR('Treaty status of each country'!E51=\"X\",'Treaty status of each country'!E51=\"X*\",COUNTIF('Countries 2016+2021 Order'!B$20:B$52,'Rights in UK for each country'!A51)=1),\"Y*\",IF('Treaty status of each country'!B51=\"X\",\"Y**\",\"-\")))","v":"Y**"},{"$f":"IF(OR(COUNTIF('Countries 2016+2021 Order'!B$93:B$94,'Rights in UK for each country'!A51)=1,'Treaty status of each country'!E51=\"X\"),\"Y\",IF('Treaty status of each country'!E51=\"X*\",\"Y-\",IF('Treaty status of each country'!F51=\"X\",\"Y*\",IF('Treaty status of each country'!F51=\"X*\",\"Y*-\",IF('Treaty status of each country'!B51=\"X\",\"Y**\",\"-\")))))","v":"Y**"},{"$f":"IF(OR('Treaty status of each country'!E51=\"X\",'Treaty status of each country'!E51=\"X*\"),\"Y\",\"-\")","v":"-"}]
["Denmark",{"$f":"IF(OR('Treaty status of each country'!B52=\"X\", 'Treaty status of each country'!C52=\"X\"), \"Y\", \"\")","v":"Y"},{"$f":"IF(OR('Treaty status of each country'!E52=\"X\",'Treaty status of each country'!E52=\"X*\", COUNTIF('Countries 2016+2021 Order'!C$3:C$15,A52)=1),\"Y\",IF(OR('Treaty status of each country'!F52=\"X\",'Treaty status of each country'!F52=\"X*\"),\"Y*\",IF(OR('Treaty status of each country'!B52=\"X\",'Treaty status of each country'!C52=\"X\"),\"Y**\",\"\")))","v":"Y"},{"$f":"IF(COUNTIF('Countries 2016+2021 Order'!B$56:B$90,'Rights in UK for each country'!A52)=1,\"Y\",IF(OR('Treaty status of each country'!E52=\"X\",'Treaty status of each country'!E52=\"X*\",COUNTIF('Countries 2016+2021 Order'!B$20:B$52,'Rights in UK for each country'!A52)=1),\"Y*\",IF('Treaty status of each country'!B52=\"X\",\"Y**\",\"-\")))","v":"Y"},{"$f":"IF(OR(COUNTIF('Countries 2016+2021 Order'!B$93:B$94,'Rights in UK for each country'!A52)=1,'Treaty status of each country'!E52=\"X\"),\"Y\",IF('Treaty status of each country'!E52=\"X*\",\"Y-\",IF('Treaty status of each country'!F52=\"X\",\"Y*\",IF('Treaty status of each country'!F52=\"X*\",\"Y*-\",IF('Treaty status of each country'!B52=\"X\",\"Y**\",\"-\")))))","v":"Y"},{"$f":"IF(OR('Treaty status of each country'!E52=\"X\",'Treaty status of each country'!E52=\"X*\"),\"Y\",\"-\")","v":"Y"}]
["Djibouti",{"$f":"IF(OR('Treaty status of each country'!B53=\"X\", 'Treaty status of each country'!C53=\"X\"), \"Y\", \"\")","v":"Y"},{"$f":"IF(OR('Treaty status of each country'!E53=\"X\",'Treaty status of each country'!E53=\"X*\", COUNTIF('Countries 2016+2021 Order'!C$3:C$15,A53)=1),\"Y\",IF(OR('Treaty status of each country'!F53=\"X\",'Treaty status of each country'!F53=\"X*\"),\"Y*\",IF(OR('Treaty status of each country'!B53=\"X\",'Treaty status of each country'!C53=\"X\"),\"Y**\",\"\")))","v":"Y**"},{"$f":"IF(COUNTIF('Countries 2016+2021 Order'!B$56:B$90,'Rights in UK for each country'!A53)=1,\"Y\",IF(OR('Treaty status of each country'!E53=\"X\",'Treaty status of each country'!E53=\"X*\",COUNTIF('Countries 2016+2021 Order'!B$20:B$52,'Rights in UK for each country'!A53)=1),\"Y*\",IF('Treaty status of each country'!B53=\"X\",\"Y**\",\"-\")))","v":"Y**"},{"$f":"IF(OR(COUNTIF('Countries 2016+2021 Order'!B$93:B$94,'Rights in UK for each country'!A53)=1,'Treaty status of each country'!E53=\"X\"),\"Y\",IF('Treaty status of each country'!E53=\"X*\",\"Y-\",IF('Treaty status of each country'!F53=\"X\",\"Y*\",IF('Treaty status of each country'!F53=\"X*\",\"Y*-\",IF('Treaty status of each country'!B53=\"X\",\"Y**\",\"-\")))))","v":"Y**"},{"$f":"IF(OR('Treaty status of each country'!E53=\"X\",'Treaty status of each country'!E53=\"X*\"),\"Y\",\"-\")","v":"-"}]
["Dominica",{"$f":"IF(OR('Treaty status of each country'!B54=\"X\", 'Treaty status of each country'!C54=\"X\"), \"Y\", \"\")","v":"Y"},{"$f":"IF(OR('Treaty status of each country'!E54=\"X\",'Treaty status of each country'!E54=\"X*\", COUNTIF('Countries 2016+2021 Order'!C$3:C$15,A54)=1),\"Y\",IF(OR('Treaty status of each country'!F54=\"X\",'Treaty status of each country'!F54=\"X*\"),\"Y*\",IF(OR('Treaty status of each country'!B54=\"X\",'Treaty status of each country'!C54=\"X\"),\"Y**\",\"\")))","v":"Y"},{"$f":"IF(COUNTIF('Countries 2016+2021 Order'!B$56:B$90,'Rights in UK for each country'!A54)=1,\"Y\",IF(OR('Treaty status of each country'!E54=\"X\",'Treaty status of each country'!E54=\"X*\",COUNTIF('Countries 2016+2021 Order'!B$20:B$52,'Rights in UK for each country'!A54)=1),\"Y*\",IF('Treaty status of each country'!B54=\"X\",\"Y**\",\"-\")))","v":"Y*"},{"$f":"IF(OR(COUNTIF('Countries 2016+2021 Order'!B$93:B$94,'Rights in UK for each country'!A54)=1,'Treaty status of each country'!E54=\"X\"),\"Y\",IF('Treaty status of each country'!E54=\"X*\",\"Y-\",IF('Treaty status of each country'!F54=\"X\",\"Y*\",IF('Treaty status of each country'!F54=\"X*\",\"Y*-\",IF('Treaty status of each country'!B54=\"X\",\"Y**\",\"-\")))))","v":"Y"},{"$f":"IF(OR('Treaty status of each country'!E54=\"X\",'Treaty status of each country'!E54=\"X*\"),\"Y\",\"-\")","v":"Y"}]
["Dominican Republic",{"$f":"IF(OR('Treaty status of each country'!B55=\"X\", 'Treaty status of each country'!C55=\"X\"), \"Y\", \"\")","v":"Y"},{"$f":"IF(OR('Treaty status of each country'!E55=\"X\",'Treaty status of each country'!E55=\"X*\", COUNTIF('Countries 2016+2021 Order'!C$3:C$15,A55)=1),\"Y\",IF(OR('Treaty status of each country'!F55=\"X\",'Treaty status of each country'!F55=\"X*\"),\"Y*\",IF(OR('Treaty status of each country'!B55=\"X\",'Treaty status of each country'!C55=\"X\"),\"Y**\",\"\")))","v":"Y"},{"$f":"IF(COUNTIF('Countries 2016+2021 Order'!B$56:B$90,'Rights in UK for each country'!A55)=1,\"Y\",IF(OR('Treaty status of each country'!E55=\"X\",'Treaty status of each country'!E55=\"X*\",COUNTIF('Countries 2016+2021 Order'!B$20:B$52,'Rights in UK for each country'!A55)=1),\"Y*\",IF('Treaty status of each country'!B55=\"X\",\"Y**\",\"-\")))","v":"Y*"},{"$f":"IF(OR(COUNTIF('Countries 2016+2021 Order'!B$93:B$94,'Rights in UK for each country'!A55)=1,'Treaty status of each country'!E55=\"X\"),\"Y\",IF('Treaty status of each country'!E55=\"X*\",\"Y-\",IF('Treaty status of each country'!F55=\"X\",\"Y*\",IF('Treaty status of each country'!F55=\"X*\",\"Y*-\",IF('Treaty status of each country'!B55=\"X\",\"Y**\",\"-\")))))","v":"Y"},{"$f":"IF(OR('Treaty status of each country'!E55=\"X\",'Treaty status of each country'!E55=\"X*\"),\"Y\",\"-\")","v":"Y"}]
["Ecuador",{"$f":"IF(OR('Treaty status of each country'!B56=\"X\", 'Treaty status of each country'!C56=\"X\"), \"Y\", \"\")","v":"Y"},{"$f":"IF(OR('Treaty status of each country'!E56=\"X\",'Treaty status of each country'!E56=\"X*\", COUNTIF('Countries 2016+2021 Order'!C$3:C$15,A56)=1),\"Y\",IF(OR('Treaty status of each country'!F56=\"X\",'Treaty status of each country'!F56=\"X*\"),\"Y*\",IF(OR('Treaty status of each country'!B56=\"X\",'Treaty status of each country'!C56=\"X\"),\"Y**\",\"\")))","v":"Y"},{"$f":"IF(COUNTIF('Countries 2016+2021 Order'!B$56:B$90,'Rights in UK for each country'!A56)=1,\"Y\",IF(OR('Treaty status of each country'!E56=\"X\",'Treaty status of each country'!E56=\"X*\",COUNTIF('Countries 2016+2021 Order'!B$20:B$52,'Rights in UK for each country'!A56)=1),\"Y*\",IF('Treaty status of each country'!B56=\"X\",\"Y**\",\"-\")))","v":"Y*"},{"$f":"IF(OR(COUNTIF('Countries 2016+2021 Order'!B$93:B$94,'Rights in UK for each country'!A56)=1,'Treaty status of each country'!E56=\"X\"),\"Y\",IF('Treaty status of each country'!E56=\"X*\",\"Y-\",IF('Treaty status of each country'!F56=\"X\",\"Y*\",IF('Treaty status of each country'!F56=\"X*\",\"Y*-\",IF('Treaty status of each country'!B56=\"X\",\"Y**\",\"-\")))))","v":"Y"},{"$f":"IF(OR('Treaty status of each country'!E56=\"X\",'Treaty status of each country'!E56=\"X*\"),\"Y\",\"-\")","v":"Y"}]
["Egypt",{"$f":"IF(OR('Treaty status of each country'!B57=\"X\", 'Treaty status of each country'!C57=\"X\"), \"Y\", \"\")","v":"Y"},{"$f":"IF(OR('Treaty status of each country'!E57=\"X\",'Treaty status of each country'!E57=\"X*\", COUNTIF('Countries 2016+2021 Order'!C$3:C$15,A57)=1),\"Y\",IF(OR('Treaty status of each country'!F57=\"X\",'Treaty status of each country'!F57=\"X*\"),\"Y*\",IF(OR('Treaty status of each country'!B57=\"X\",'Treaty status of each country'!C57=\"X\"),\"Y**\",\"\")))","v":"Y**"},{"$f":"IF(COUNTIF('Countries 2016+2021 Order'!B$56:B$90,'Rights in UK for each country'!A57)=1,\"Y\",IF(OR('Treaty status of each country'!E57=\"X\",'Treaty status of each country'!E57=\"X*\",COUNTIF('Countries 2016+2021 Order'!B$20:B$52,'Rights in UK for each country'!A57)=1),\"Y*\",IF('Treaty status of each country'!B57=\"X\",\"Y**\",\"-\")))","v":"Y**"},{"$f":"IF(OR(COUNTIF('Countries 2016+2021 Order'!B$93:B$94,'Rights in UK for each country'!A57)=1,'Treaty status of each country'!E57=\"X\"),\"Y\",IF('Treaty status of each country'!E57=\"X*\",\"Y-\",IF('Treaty status of each country'!F57=\"X\",\"Y*\",IF('Treaty status of each country'!F57=\"X*\",\"Y*-\",IF('Treaty status of each country'!B57=\"X\",\"Y**\",\"-\")))))","v":"Y**"},{"$f":"IF(OR('Treaty status of each country'!E57=\"X\",'Treaty status of each country'!E57=\"X*\"),\"Y\",\"-\")","v":"-"}]
["El Salvador",{"$f":"IF(OR('Treaty status of each country'!B58=\"X\", 'Treaty status of each country'!C58=\"X\"), \"Y\", \"\")","v":"Y"},{"$f":"IF(OR('Treaty status of each country'!E58=\"X\",'Treaty status of each country'!E58=\"X*\", COUNTIF('Countries 2016+2021 Order'!C$3:C$15,A58)=1),\"Y\",IF(OR('Treaty status of each country'!F58=\"X\",'Treaty status of each country'!F58=\"X*\"),\"Y*\",IF(OR('Treaty status of each country'!B58=\"X\",'Treaty status of each country'!C58=\"X\"),\"Y**\",\"\")))","v":"Y"},{"$f":"IF(COUNTIF('Countries 2016+2021 Order'!B$56:B$90,'Rights in UK for each country'!A58)=1,\"Y\",IF(OR('Treaty status of each country'!E58=\"X\",'Treaty status of each country'!E58=\"X*\",COUNTIF('Countries 2016+2021 Order'!B$20:B$52,'Rights in UK for each country'!A58)=1),\"Y*\",IF('Treaty status of each country'!B58=\"X\",\"Y**\",\"-\")))","v":"Y*"},{"$f":"IF(OR(COUNTIF('Countries 2016+2021 Order'!B$93:B$94,'Rights in UK for each country'!A58)=1,'Treaty status of each country'!E58=\"X\"),\"Y\",IF('Treaty status of each country'!E58=\"X*\",\"Y-\",IF('Treaty status of each country'!F58=\"X\",\"Y*\",IF('Treaty status of each country'!F58=\"X*\",\"Y*-\",IF('Treaty status of each country'!B58=\"X\",\"Y**\",\"-\")))))","v":"Y"},{"$f":"IF(OR('Treaty status of each country'!E58=\"X\",'Treaty status of each country'!E58=\"X*\"),\"Y\",\"-\")","v":"Y"}]
["Equatorial Guinea",{"$f":"IF(OR('Treaty status of each country'!B59=\"X\", 'Treaty status of each country'!C59=\"X\"), \"Y\", \"\")","v":"Y"},{"$f":"IF(OR('Treaty status of each country'!E59=\"X\",'Treaty status of each country'!E59=\"X*\", COUNTIF('Countries 2016+2021 Order'!C$3:C$15,A59)=1),\"Y\",IF(OR('Treaty status of each country'!F59=\"X\",'Treaty status of each country'!F59=\"X*\"),\"Y*\",IF(OR('Treaty status of each country'!B59=\"X\",'Treaty status of each country'!C59=\"X\"),\"Y**\",\"\")))","v":"Y**"},{"$f":"IF(COUNTIF('Countries 2016+2021 Order'!B$56:B$90,'Rights in UK for each country'!A59)=1,\"Y\",IF(OR('Treaty status of each country'!E59=\"X\",'Treaty status of each country'!E59=\"X*\",COUNTIF('Countries 2016+2021 Order'!B$20:B$52,'Rights in UK for each country'!A59)=1),\"Y*\",IF('Treaty status of each country'!B59=\"X\",\"Y**\",\"-\")))","v":"-"},{"$f":"IF(OR(COUNTIF('Countries 2016+2021 Order'!B$93:B$94,'Rights in UK for each country'!A59)=1,'Treaty status of each country'!E59=\"X\"),\"Y\",IF('Treaty status of each country'!E59=\"X*\",\"Y-\",IF('Treaty status of each country'!F59=\"X\",\"Y*\",IF('Treaty status of each country'!F59=\"X*\",\"Y*-\",IF('Treaty status of each country'!B59=\"X\",\"Y**\",\"-\")))))","v":"-"},{"$f":"IF(OR('Treaty status of each country'!E59=\"X\",'Treaty status of each country'!E59=\"X*\"),\"Y\",\"-\")","v":"-"}]
["Estonia",{"$f":"IF(OR('Treaty status of each country'!B60=\"X\", 'Treaty status of each country'!C60=\"X\"), \"Y\", \"\")","v":"Y"},{"$f":"IF(OR('Treaty status of each country'!E60=\"X\",'Treaty status of each country'!E60=\"X*\", COUNTIF('Countries 2016+2021 Order'!C$3:C$15,A60)=1),\"Y\",IF(OR('Treaty status of each country'!F60=\"X\",'Treaty status of each country'!F60=\"X*\"),\"Y*\",IF(OR('Treaty status of each country'!B60=\"X\",'Treaty status of each country'!C60=\"X\"),\"Y**\",\"\")))","v":"Y"},{"$f":"IF(COUNTIF('Countries 2016+2021 Order'!B$56:B$90,'Rights in UK for each country'!A60)=1,\"Y\",IF(OR('Treaty status of each country'!E60=\"X\",'Treaty status of each country'!E60=\"X*\",COUNTIF('Countries 2016+2021 Order'!B$20:B$52,'Rights in UK for each country'!A60)=1),\"Y*\",IF('Treaty status of each country'!B60=\"X\",\"Y**\",\"-\")))","v":"Y"},{"$f":"IF(OR(COUNTIF('Countries 2016+2021 Order'!B$93:B$94,'Rights in UK for each country'!A60)=1,'Treaty status of each country'!E60=\"X\"),\"Y\",IF('Treaty status of each country'!E60=\"X*\",\"Y-\",IF('Treaty status of each country'!F60=\"X\",\"Y*\",IF('Treaty status of each country'!F60=\"X*\",\"Y*-\",IF('Treaty status of each country'!B60=\"X\",\"Y**\",\"-\")))))","v":"Y"},{"$f":"IF(OR('Treaty status of each country'!E60=\"X\",'Treaty status of each country'!E60=\"X*\"),\"Y\",\"-\")","v":"Y"}]
["Eswatini",{"$f":"IF(OR('Treaty status of each country'!B61=\"X\", 'Treaty status of each country'!C61=\"X\"), \"Y\", \"\")","v":"Y"},{"$f":"IF(OR('Treaty status of each country'!E61=\"X\",'Treaty status of each country'!E61=\"X*\", COUNTIF('Countries 2016+2021 Order'!C$3:C$15,A61)=1),\"Y\",IF(OR('Treaty status of each country'!F61=\"X\",'Treaty status of each country'!F61=\"X*\"),\"Y*\",IF(OR('Treaty status of each country'!B61=\"X\",'Treaty status of each country'!C61=\"X\"),\"Y**\",\"\")))","v":"Y**"},{"$f":"IF(COUNTIF('Countries 2016+2021 Order'!B$56:B$90,'Rights in UK for each country'!A61)=1,\"Y\",IF(OR('Treaty status of each country'!E61=\"X\",'Treaty status of each country'!E61=\"X*\",COUNTIF('Countries 2016+2021 Order'!B$20:B$52,'Rights in UK for each country'!A61)=1),\"Y*\",IF('Treaty status of each country'!B61=\"X\",\"Y**\",\"-\")))","v":"Y**"},{"$f":"IF(OR(COUNTIF('Countries 2016+2021 Order'!B$93:B$94,'Rights in UK for each country'!A61)=1,'Treaty status of each country'!E61=\"X\"),\"Y\",IF('Treaty status of each country'!E61=\"X*\",\"Y-\",IF('Treaty status of each country'!F61=\"X\",\"Y*\",IF('Treaty status of each country'!F61=\"X*\",\"Y*-\",IF('Treaty status of each country'!B61=\"X\",\"Y**\",\"-\")))))","v":"Y**"},{"$f":"IF(OR('Treaty status of each country'!E61=\"X\",'Treaty status of each country'!E61=\"X*\"),\"Y\",\"-\")","v":"-"}]
["Fiji",{"$f":"IF(OR('Treaty status of each country'!B62=\"X\", 'Treaty status of each country'!C62=\"X\"), \"Y\", \"\")","v":"Y"},{"$f":"IF(OR('Treaty status of each country'!E62=\"X\",'Treaty status of each country'!E62=\"X*\", COUNTIF('Countries 2016+2021 Order'!C$3:C$15,A62)=1),\"Y\",IF(OR('Treaty status of each country'!F62=\"X\",'Treaty status of each country'!F62=\"X*\"),\"Y*\",IF(OR('Treaty status of each country'!B62=\"X\",'Treaty status of each country'!C62=\"X\"),\"Y**\",\"\")))","v":"Y"},{"$f":"IF(COUNTIF('Countries 2016+2021 Order'!B$56:B$90,'Rights in UK for each country'!A62)=1,\"Y\",IF(OR('Treaty status of each country'!E62=\"X\",'Treaty status of each country'!E62=\"X*\",COUNTIF('Countries 2016+2021 Order'!B$20:B$52,'Rights in UK for each country'!A62)=1),\"Y*\",IF('Treaty status of each country'!B62=\"X\",\"Y**\",\"-\")))","v":"Y*"},{"$f":"IF(OR(COUNTIF('Countries 2016+2021 Order'!B$93:B$94,'Rights in UK for each country'!A62)=1,'Treaty status of each country'!E62=\"X\"),\"Y\",IF('Treaty status of each country'!E62=\"X*\",\"Y-\",IF('Treaty status of each country'!F62=\"X\",\"Y*\",IF('Treaty status of each country'!F62=\"X*\",\"Y*-\",IF('Treaty status of each country'!B62=\"X\",\"Y**\",\"-\")))))","v":"Y-"},{"$f":"IF(OR('Treaty status of each country'!E62=\"X\",'Treaty status of each country'!E62=\"X*\"),\"Y\",\"-\")","v":"Y"}]
["Finland",{"$f":"IF(OR('Treaty status of each country'!B63=\"X\", 'Treaty status of each country'!C63=\"X\"), \"Y\", \"\")","v":"Y"},{"$f":"IF(OR('Treaty status of each country'!E63=\"X\",'Treaty status of each country'!E63=\"X*\", COUNTIF('Countries 2016+2021 Order'!C$3:C$15,A63)=1),\"Y\",IF(OR('Treaty status of each country'!F63=\"X\",'Treaty status of each country'!F63=\"X*\"),\"Y*\",IF(OR('Treaty status of each country'!B63=\"X\",'Treaty status of each country'!C63=\"X\"),\"Y**\",\"\")))","v":"Y"},{"$f":"IF(COUNTIF('Countries 2016+2021 Order'!B$56:B$90,'Rights in UK for each country'!A63)=1,\"Y\",IF(OR('Treaty status of each country'!E63=\"X\",'Treaty status of each country'!E63=\"X*\",COUNTIF('Countries 2016+2021 Order'!B$20:B$52,'Rights in UK for each country'!A63)=1),\"Y*\",IF('Treaty status of each country'!B63=\"X\",\"Y**\",\"-\")))","v":"Y"},{"$f":"IF(OR(COUNTIF('Countries 2016+2021 Order'!B$93:B$94,'Rights in UK for each country'!A63)=1,'Treaty status of each country'!E63=\"X\"),\"Y\",IF('Treaty status of each country'!E63=\"X*\",\"Y-\",IF('Treaty status of each country'!F63=\"X\",\"Y*\",IF('Treaty status of each country'!F63=\"X*\",\"Y*-\",IF('Treaty status of each country'!B63=\"X\",\"Y**\",\"-\")))))","v":"Y-"},{"$f":"IF(OR('Treaty status of each country'!E63=\"X\",'Treaty status of each country'!E63=\"X*\"),\"Y\",\"-\")","v":"Y"}]
["France",{"$f":"IF(OR('Treaty status of each country'!B64=\"X\", 'Treaty status of each country'!C64=\"X\"), \"Y\", \"\")","v":"Y"},{"$f":"IF(OR('Treaty status of each country'!E64=\"X\",'Treaty status of each country'!E64=\"X*\", COUNTIF('Countries 2016+2021 Order'!C$3:C$15,A64)=1),\"Y\",IF(OR('Treaty status of each country'!F64=\"X\",'Treaty status of each country'!F64=\"X*\"),\"Y*\",IF(OR('Treaty status of each country'!B64=\"X\",'Treaty status of each country'!C64=\"X\"),\"Y**\",\"\")))","v":"Y"},{"$f":"IF(COUNTIF('Countries 2016+2021 Order'!B$56:B$90,'Rights in UK for each country'!A64)=1,\"Y\",IF(OR('Treaty status of each country'!E64=\"X\",'Treaty status of each country'!E64=\"X*\",COUNTIF('Countries 2016+2021 Order'!B$20:B$52,'Rights in UK for each country'!A64)=1),\"Y*\",IF('Treaty status of each country'!B64=\"X\",\"Y**\",\"-\")))","v":"Y"},{"$f":"IF(OR(COUNTIF('Countries 2016+2021 Order'!B$93:B$94,'Rights in UK for each country'!A64)=1,'Treaty status of each country'!E64=\"X\"),\"Y\",IF('Treaty status of each country'!E64=\"X*\",\"Y-\",IF('Treaty status of each country'!F64=\"X\",\"Y*\",IF('Treaty status of each country'!F64=\"X*\",\"Y*-\",IF('Treaty status of each country'!B64=\"X\",\"Y**\",\"-\")))))","v":"Y"},{"$f":"IF(OR('Treaty status of each country'!E64=\"X\",'Treaty status of each country'!E64=\"X*\"),\"Y\",\"-\")","v":"Y"}]
["Gabon",{"$f":"IF(OR('Treaty status of each country'!B65=\"X\", 'Treaty status of each country'!C65=\"X\"), \"Y\", \"\")","v":"Y"},{"$f":"IF(OR('Treaty status of each country'!E65=\"X\",'Treaty status of each country'!E65=\"X*\", COUNTIF('Countries 2016+2021 Order'!C$3:C$15,A65)=1),\"Y\",IF(OR('Treaty status of each country'!F65=\"X\",'Treaty status of each country'!F65=\"X*\"),\"Y*\",IF(OR('Treaty status of each country'!B65=\"X\",'Treaty status of each country'!C65=\"X\"),\"Y**\",\"\")))","v":"Y*"},{"$f":"IF(COUNTIF('Countries 2016+2021 Order'!B$56:B$90,'Rights in UK for each country'!A65)=1,\"Y\",IF(OR('Treaty status of each country'!E65=\"X\",'Treaty status of each country'!E65=\"X*\",COUNTIF('Countries 2016+2021 Order'!B$20:B$52,'Rights in UK for each country'!A65)=1),\"Y*\",IF('Treaty status of each country'!B65=\"X\",\"Y**\",\"-\")))","v":"Y**"},{"$f":"IF(OR(COUNTIF('Countries 2016+2021 Order'!B$93:B$94,'Rights in UK for each country'!A65)=1,'Treaty status of each country'!E65=\"X\"),\"Y\",IF('Treaty status of each country'!E65=\"X*\",\"Y-\",IF('Treaty status of each country'!F65=\"X\",\"Y*\",IF('Treaty status of each country'!F65=\"X*\",\"Y*-\",IF('Treaty status of each country'!B65=\"X\",\"Y**\",\"-\")))))","v":"Y*"},{"$f":"IF(OR('Treaty status of each country'!E65=\"X\",'Treaty status of each country'!E65=\"X*\"),\"Y\",\"-\")","v":"-"}]
["Gambia",{"$f":"IF(OR('Treaty status of each country'!B66=\"X\", 'Treaty status of each country'!C66=\"X\"), \"Y\", \"\")","v":"Y"},{"$f":"IF(OR('Treaty status of each country'!E66=\"X\",'Treaty status of each country'!E66=\"X*\", COUNTIF('Countries 2016+2021 Order'!C$3:C$15,A66)=1),\"Y\",IF(OR('Treaty status of each country'!F66=\"X\",'Treaty status of each country'!F66=\"X*\"),\"Y*\",IF(OR('Treaty status of each country'!B66=\"X\",'Treaty status of each country'!C66=\"X\"),\"Y**\",\"\")))","v":"Y**"},{"$f":"IF(COUNTIF('Countries 2016+2021 Order'!B$56:B$90,'Rights in UK for each country'!A66)=1,\"Y\",IF(OR('Treaty status of each country'!E66=\"X\",'Treaty status of each country'!E66=\"X*\",COUNTIF('Countries 2016+2021 Order'!B$20:B$52,'Rights in UK for each country'!A66)=1),\"Y*\",IF('Treaty status of each country'!B66=\"X\",\"Y**\",\"-\")))","v":"Y**"},{"$f":"IF(OR(COUNTIF('Countries 2016+2021 Order'!B$93:B$94,'Rights in UK for each country'!A66)=1,'Treaty status of each country'!E66=\"X\"),\"Y\",IF('Treaty status of each country'!E66=\"X*\",\"Y-\",IF('Treaty status of each country'!F66=\"X\",\"Y*\",IF('Treaty status of each country'!F66=\"X*\",\"Y*-\",IF('Treaty status of each country'!B66=\"X\",\"Y**\",\"-\")))))","v":"Y**"},{"$f":"IF(OR('Treaty status of each country'!E66=\"X\",'Treaty status of each country'!E66=\"X*\"),\"Y\",\"-\")","v":"-"}]
["Georgia",{"$f":"IF(OR('Treaty status of each country'!B67=\"X\", 'Treaty status of each country'!C67=\"X\"), \"Y\", \"\")","v":"Y"},{"$f":"IF(OR('Treaty status of each country'!E67=\"X\",'Treaty status of each country'!E67=\"X*\", COUNTIF('Countries 2016+2021 Order'!C$3:C$15,A67)=1),\"Y\",IF(OR('Treaty status of each country'!F67=\"X\",'Treaty status of each country'!F67=\"X*\"),\"Y*\",IF(OR('Treaty status of each country'!B67=\"X\",'Treaty status of each country'!C67=\"X\"),\"Y**\",\"\")))","v":"Y"},{"$f":"IF(COUNTIF('Countries 2016+2021 Order'!B$56:B$90,'Rights in UK for each country'!A67)=1,\"Y\",IF(OR('Treaty status of each country'!E67=\"X\",'Treaty status of each country'!E67=\"X*\",COUNTIF('Countries 2016+2021 Order'!B$20:B$52,'Rights in UK for each country'!A67)=1),\"Y*\",IF('Treaty status of each country'!B67=\"X\",\"Y**\",\"-\")))","v":"Y*"},{"$f":"IF(OR(COUNTIF('Countries 2016+2021 Order'!B$93:B$94,'Rights in UK for each country'!A67)=1,'Treaty status of each country'!E67=\"X\"),\"Y\",IF('Treaty status of each country'!E67=\"X*\",\"Y-\",IF('Treaty status of each country'!F67=\"X\",\"Y*\",IF('Treaty status of each country'!F67=\"X*\",\"Y*-\",IF('Treaty status of each country'!B67=\"X\",\"Y**\",\"-\")))))","v":"Y"},{"$f":"IF(OR('Treaty status of each country'!E67=\"X\",'Treaty status of each country'!E67=\"X*\"),\"Y\",\"-\")","v":"Y"}]
["Germany",{"$f":"IF(OR('Treaty status of each country'!B68=\"X\", 'Treaty status of each country'!C68=\"X\"), \"Y\", \"\")","v":"Y"},{"$f":"IF(OR('Treaty status of each country'!E68=\"X\",'Treaty status of each country'!E68=\"X*\", COUNTIF('Countries 2016+2021 Order'!C$3:C$15,A68)=1),\"Y\",IF(OR('Treaty status of each country'!F68=\"X\",'Treaty status of each country'!F68=\"X*\"),\"Y*\",IF(OR('Treaty status of each country'!B68=\"X\",'Treaty status of each country'!C68=\"X\"),\"Y**\",\"\")))","v":"Y"},{"$f":"IF(COUNTIF('Countries 2016+2021 Order'!B$56:B$90,'Rights in UK for each country'!A68)=1,\"Y\",IF(OR('Treaty status of each country'!E68=\"X\",'Treaty status of each country'!E68=\"X*\",COUNTIF('Countries 2016+2021 Order'!B$20:B$52,'Rights in UK for each country'!A68)=1),\"Y*\",IF('Treaty status of each country'!B68=\"X\",\"Y**\",\"-\")))","v":"Y"},{"$f":"IF(OR(COUNTIF('Countries 2016+2021 Order'!B$93:B$94,'Rights in UK for each country'!A68)=1,'Treaty status of each country'!E68=\"X\"),\"Y\",IF('Treaty status of each country'!E68=\"X*\",\"Y-\",IF('Treaty status of each country'!F68=\"X\",\"Y*\",IF('Treaty status of each country'!F68=\"X*\",\"Y*-\",IF('Treaty status of each country'!B68=\"X\",\"Y**\",\"-\")))))","v":"Y"},{"$f":"IF(OR('Treaty status of each country'!E68=\"X\",'Treaty status of each country'!E68=\"X*\"),\"Y\",\"-\")","v":"Y"}]
["Ghana",{"$f":"IF(OR('Treaty status of each country'!B69=\"X\", 'Treaty status of each country'!C69=\"X\"), \"Y\", \"\")","v":"Y"},{"$f":"IF(OR('Treaty status of each country'!E69=\"X\",'Treaty status of each country'!E69=\"X*\", COUNTIF('Countries 2016+2021 Order'!C$3:C$15,A69)=1),\"Y\",IF(OR('Treaty status of each country'!F69=\"X\",'Treaty status of each country'!F69=\"X*\"),\"Y*\",IF(OR('Treaty status of each country'!B69=\"X\",'Treaty status of each country'!C69=\"X\"),\"Y**\",\"\")))","v":"Y*"},{"$f":"IF(COUNTIF('Countries 2016+2021 Order'!B$56:B$90,'Rights in UK for each country'!A69)=1,\"Y\",IF(OR('Treaty status of each country'!E69=\"X\",'Treaty status of each country'!E69=\"X*\",COUNTIF('Countries 2016+2021 Order'!B$20:B$52,'Rights in UK for each country'!A69)=1),\"Y*\",IF('Treaty status of each country'!B69=\"X\",\"Y**\",\"-\")))","v":"Y**"},{"$f":"IF(OR(COUNTIF('Countries 2016+2021 Order'!B$93:B$94,'Rights in UK for each country'!A69)=1,'Treaty status of each country'!E69=\"X\"),\"Y\",IF('Treaty status of each country'!E69=\"X*\",\"Y-\",IF('Treaty status of each country'!F69=\"X\",\"Y*\",IF('Treaty status of each country'!F69=\"X*\",\"Y*-\",IF('Treaty status of each country'!B69=\"X\",\"Y**\",\"-\")))))","v":"Y*"},{"$f":"IF(OR('Treaty status of each country'!E69=\"X\",'Treaty status of each country'!E69=\"X*\"),\"Y\",\"-\")","v":"-"}]
["Greece",{"$f":"IF(OR('Treaty status of each country'!B70=\"X\", 'Treaty status of each country'!C70=\"X\"), \"Y\", \"\")","v":"Y"},{"$f":"IF(OR('Treaty status of each country'!E70=\"X\",'Treaty status of each country'!E70=\"X*\", COUNTIF('Countries 2016+2021 Order'!C$3:C$15,A70)=1),\"Y\",IF(OR('Treaty status of each country'!F70=\"X\",'Treaty status of each country'!F70=\"X*\"),\"Y*\",IF(OR('Treaty status of each country'!B70=\"X\",'Treaty status of each country'!C70=\"X\"),\"Y**\",\"\")))","v":"Y"},{"$f":"IF(COUNTIF('Countries 2016+2021 Order'!B$56:B$90,'Rights in UK for each country'!A70)=1,\"Y\",IF(OR('Treaty status of each country'!E70=\"X\",'Treaty status of each country'!E70=\"X*\",COUNTIF('Countries 2016+2021 Order'!B$20:B$52,'Rights in UK for each country'!A70)=1),\"Y*\",IF('Treaty status of each country'!B70=\"X\",\"Y**\",\"-\")))","v":"Y"},{"$f":"IF(OR(COUNTIF('Countries 2016+2021 Order'!B$93:B$94,'Rights in UK for each country'!A70)=1,'Treaty status of each country'!E70=\"X\"),\"Y\",IF('Treaty status of each country'!E70=\"X*\",\"Y-\",IF('Treaty status of each country'!F70=\"X\",\"Y*\",IF('Treaty status of each country'!F70=\"X*\",\"Y*-\",IF('Treaty status of each country'!B70=\"X\",\"Y**\",\"-\")))))","v":"Y"},{"$f":"IF(OR('Treaty status of each country'!E70=\"X\",'Treaty status of each country'!E70=\"X*\"),\"Y\",\"-\")","v":"Y"}]
["Grenada",{"$f":"IF(OR('Treaty status of each country'!B71=\"X\", 'Treaty status of each country'!C71=\"X\"), \"Y\", \"\")","v":"Y"},{"$f":"IF(OR('Treaty status of each country'!E71=\"X\",'Treaty status of each country'!E71=\"X*\", COUNTIF('Countries 2016+2021 Order'!C$3:C$15,A71)=1),\"Y\",IF(OR('Treaty status of each country'!F71=\"X\",'Treaty status of each country'!F71=\"X*\"),\"Y*\",IF(OR('Treaty status of each country'!B71=\"X\",'Treaty status of each country'!C71=\"X\"),\"Y**\",\"\")))","v":"Y**"},{"$f":"IF(COUNTIF('Countries 2016+2021 Order'!B$56:B$90,'Rights in UK for each country'!A71)=1,\"Y\",IF(OR('Treaty status of each country'!E71=\"X\",'Treaty status of each country'!E71=\"X*\",COUNTIF('Countries 2016+2021 Order'!B$20:B$52,'Rights in UK for each country'!A71)=1),\"Y*\",IF('Treaty status of each country'!B71=\"X\",\"Y**\",\"-\")))","v":"Y**"},{"$f":"IF(OR(COUNTIF('Countries 2016+2021 Order'!B$93:B$94,'Rights in UK for each country'!A71)=1,'Treaty status of each country'!E71=\"X\"),\"Y\",IF('Treaty status of each country'!E71=\"X*\",\"Y-\",IF('Treaty status of each country'!F71=\"X\",\"Y*\",IF('Treaty status of each country'!F71=\"X*\",\"Y*-\",IF('Treaty status of each country'!B71=\"X\",\"Y**\",\"-\")))))","v":"Y**"},{"$f":"IF(OR('Treaty status of each country'!E71=\"X\",'Treaty status of each country'!E71=\"X*\"),\"Y\",\"-\")","v":"-"}]
["Guatemala",{"$f":"IF(OR('Treaty status of each country'!B72=\"X\", 'Treaty status of each country'!C72=\"X\"), \"Y\", \"\")","v":"Y"},{"$f":"IF(OR('Treaty status of each country'!E72=\"X\",'Treaty status of each country'!E72=\"X*\", COUNTIF('Countries 2016+2021 Order'!C$3:C$15,A72)=1),\"Y\",IF(OR('Treaty status of each country'!F72=\"X\",'Treaty status of each country'!F72=\"X*\"),\"Y*\",IF(OR('Treaty status of each country'!B72=\"X\",'Treaty status of each country'!C72=\"X\"),\"Y**\",\"\")))","v":"Y"},{"$f":"IF(COUNTIF('Countries 2016+2021 Order'!B$56:B$90,'Rights in UK for each country'!A72)=1,\"Y\",IF(OR('Treaty status of each country'!E72=\"X\",'Treaty status of each country'!E72=\"X*\",COUNTIF('Countries 2016+2021 Order'!B$20:B$52,'Rights in UK for each country'!A72)=1),\"Y*\",IF('Treaty status of each country'!B72=\"X\",\"Y**\",\"-\")))","v":"Y*"},{"$f":"IF(OR(COUNTIF('Countries 2016+2021 Order'!B$93:B$94,'Rights in UK for each country'!A72)=1,'Treaty status of each country'!E72=\"X\"),\"Y\",IF('Treaty status of each country'!E72=\"X*\",\"Y-\",IF('Treaty status of each country'!F72=\"X\",\"Y*\",IF('Treaty status of each country'!F72=\"X*\",\"Y*-\",IF('Treaty status of each country'!B72=\"X\",\"Y**\",\"-\")))))","v":"Y"},{"$f":"IF(OR('Treaty status of each country'!E72=\"X\",'Treaty status of each country'!E72=\"X*\"),\"Y\",\"-\")","v":"Y"}]
["Guinea",{"$f":"IF(OR('Treaty status of each country'!B73=\"X\", 'Treaty status of each country'!C73=\"X\"), \"Y\", \"\")","v":"Y"},{"$f":"IF(OR('Treaty status of each country'!E73=\"X\",'Treaty status of each country'!E73=\"X*\", COUNTIF('Countries 2016+2021 Order'!C$3:C$15,A73)=1),\"Y\",IF(OR('Treaty status of each country'!F73=\"X\",'Treaty status of each country'!F73=\"X*\"),\"Y*\",IF(OR('Treaty status of each country'!B73=\"X\",'Treaty status of each country'!C73=\"X\"),\"Y**\",\"\")))","v":"Y*"},{"$f":"IF(COUNTIF('Countries 2016+2021 Order'!B$56:B$90,'Rights in UK for each country'!A73)=1,\"Y\",IF(OR('Treaty status of each country'!E73=\"X\",'Treaty status of each country'!E73=\"X*\",COUNTIF('Countries 2016+2021 Order'!B$20:B$52,'Rights in UK for each country'!A73)=1),\"Y*\",IF('Treaty status of each country'!B73=\"X\",\"Y**\",\"-\")))","v":"Y**"},{"$f":"IF(OR(COUNTIF('Countries 2016+2021 Order'!B$93:B$94,'Rights in UK for each country'!A73)=1,'Treaty status of each country'!E73=\"X\"),\"Y\",IF('Treaty status of each country'!E73=\"X*\",\"Y-\",IF('Treaty status of each country'!F73=\"X\",\"Y*\",IF('Treaty status of each country'!F73=\"X*\",\"Y*-\",IF('Treaty status of each country'!B73=\"X\",\"Y**\",\"-\")))))","v":"Y*"},{"$f":"IF(OR('Treaty status of each country'!E73=\"X\",'Treaty status of each country'!E73=\"X*\"),\"Y\",\"-\")","v":"-"}]
["Guinea-Bissau",{"$f":"IF(OR('Treaty status of each country'!B74=\"X\", 'Treaty status of each country'!C74=\"X\"), \"Y\", \"\")","v":"Y"},{"$f":"IF(OR('Treaty status of each country'!E74=\"X\",'Treaty status of each country'!E74=\"X*\", COUNTIF('Countries 2016+2021 Order'!C$3:C$15,A74)=1),\"Y\",IF(OR('Treaty status of each country'!F74=\"X\",'Treaty status of each country'!F74=\"X*\"),\"Y*\",IF(OR('Treaty status of each country'!B74=\"X\",'Treaty status of each country'!C74=\"X\"),\"Y**\",\"\")))","v":"Y**"},{"$f":"IF(COUNTIF('Countries 2016+2021 Order'!B$56:B$90,'Rights in UK for each country'!A74)=1,\"Y\",IF(OR('Treaty status of each country'!E74=\"X\",'Treaty status of each country'!E74=\"X*\",COUNTIF('Countries 2016+2021 Order'!B$20:B$52,'Rights in UK for each country'!A74)=1),\"Y*\",IF('Treaty status of each country'!B74=\"X\",\"Y**\",\"-\")))","v":"Y**"},{"$f":"IF(OR(COUNTIF('Countries 2016+2021 Order'!B$93:B$94,'Rights in UK for each country'!A74)=1,'Treaty status of each country'!E74=\"X\"),\"Y\",IF('Treaty status of each country'!E74=\"X*\",\"Y-\",IF('Treaty status of each country'!F74=\"X\",\"Y*\",IF('Treaty status of each country'!F74=\"X*\",\"Y*-\",IF('Treaty status of each country'!B74=\"X\",\"Y**\",\"-\")))))","v":"Y**"},{"$f":"IF(OR('Treaty status of each country'!E74=\"X\",'Treaty status of each country'!E74=\"X*\"),\"Y\",\"-\")","v":"-"}]
["Guyana",{"$f":"IF(OR('Treaty status of each country'!B75=\"X\", 'Treaty status of each country'!C75=\"X\"), \"Y\", \"\")","v":"Y"},{"$f":"IF(OR('Treaty status of each country'!E75=\"X\",'Treaty status of each country'!E75=\"X*\", COUNTIF('Countries 2016+2021 Order'!C$3:C$15,A75)=1),\"Y\",IF(OR('Treaty status of each country'!F75=\"X\",'Treaty status of each country'!F75=\"X*\"),\"Y*\",IF(OR('Treaty status of each country'!B75=\"X\",'Treaty status of each country'!C75=\"X\"),\"Y**\",\"\")))","v":"Y**"},{"$f":"IF(COUNTIF('Countries 2016+2021 Order'!B$56:B$90,'Rights in UK for each country'!A75)=1,\"Y\",IF(OR('Treaty status of each country'!E75=\"X\",'Treaty status of each country'!E75=\"X*\",COUNTIF('Countries 2016+2021 Order'!B$20:B$52,'Rights in UK for each country'!A75)=1),\"Y*\",IF('Treaty status of each country'!B75=\"X\",\"Y**\",\"-\")))","v":"Y**"},{"$f":"IF(OR(COUNTIF('Countries 2016+2021 Order'!B$93:B$94,'Rights in UK for each country'!A75)=1,'Treaty status of each country'!E75=\"X\"),\"Y\",IF('Treaty status of each country'!E75=\"X*\",\"Y-\",IF('Treaty status of each country'!F75=\"X\",\"Y*\",IF('Treaty status of each country'!F75=\"X*\",\"Y*-\",IF('Treaty status of each country'!B75=\"X\",\"Y**\",\"-\")))))","v":"Y**"},{"$f":"IF(OR('Treaty status of each country'!E75=\"X\",'Treaty status of each country'!E75=\"X*\"),\"Y\",\"-\")","v":"-"}]
["Haiti",{"$f":"IF(OR('Treaty status of each country'!B76=\"X\", 'Treaty status of each country'!C76=\"X\"), \"Y\", \"\")","v":"Y"},{"$f":"IF(OR('Treaty status of each country'!E76=\"X\",'Treaty status of each country'!E76=\"X*\", COUNTIF('Countries 2016+2021 Order'!C$3:C$15,A76)=1),\"Y\",IF(OR('Treaty status of each country'!F76=\"X\",'Treaty status of each country'!F76=\"X*\"),\"Y*\",IF(OR('Treaty status of each country'!B76=\"X\",'Treaty status of each country'!C76=\"X\"),\"Y**\",\"\")))","v":"Y**"},{"$f":"IF(COUNTIF('Countries 2016+2021 Order'!B$56:B$90,'Rights in UK for each country'!A76)=1,\"Y\",IF(OR('Treaty status of each country'!E76=\"X\",'Treaty status of each country'!E76=\"X*\",COUNTIF('Countries 2016+2021 Order'!B$20:B$52,'Rights in UK for each country'!A76)=1),\"Y*\",IF('Treaty status of each country'!B76=\"X\",\"Y**\",\"-\")))","v":"Y**"},{"$f":"IF(OR(COUNTIF('Countries 2016+2021 Order'!B$93:B$94,'Rights in UK for each country'!A76)=1,'Treaty status of each country'!E76=\"X\"),\"Y\",IF('Treaty status of each country'!E76=\"X*\",\"Y-\",IF('Treaty status of each country'!F76=\"X\",\"Y*\",IF('Treaty status of each country'!F76=\"X*\",\"Y*-\",IF('Treaty status of each country'!B76=\"X\",\"Y**\",\"-\")))))","v":"Y**"},{"$f":"IF(OR('Treaty status of each country'!E76=\"X\",'Treaty status of each country'!E76=\"X*\"),\"Y\",\"-\")","v":"-"}]
["Holy See",{"$f":"IF(OR('Treaty status of each country'!B77=\"X\", 'Treaty status of each country'!C77=\"X\"), \"Y\", \"\")","v":"Y"},{"$f":"IF(OR('Treaty status of each country'!E77=\"X\",'Treaty status of each country'!E77=\"X*\", COUNTIF('Countries 2016+2021 Order'!C$3:C$15,A77)=1),\"Y\",IF(OR('Treaty status of each country'!F77=\"X\",'Treaty status of each country'!F77=\"X*\"),\"Y*\",IF(OR('Treaty status of each country'!B77=\"X\",'Treaty status of each country'!C77=\"X\"),\"Y**\",\"\")))","v":"Y**"},{"$f":"IF(COUNTIF('Countries 2016+2021 Order'!B$56:B$90,'Rights in UK for each country'!A77)=1,\"Y\",IF(OR('Treaty status of each country'!E77=\"X\",'Treaty status of each country'!E77=\"X*\",COUNTIF('Countries 2016+2021 Order'!B$20:B$52,'Rights in UK for each country'!A77)=1),\"Y*\",IF('Treaty status of each country'!B77=\"X\",\"Y**\",\"-\")))","v":"-"},{"$f":"IF(OR(COUNTIF('Countries 2016+2021 Order'!B$93:B$94,'Rights in UK for each country'!A77)=1,'Treaty status of each country'!E77=\"X\"),\"Y\",IF('Treaty status of each country'!E77=\"X*\",\"Y-\",IF('Treaty status of each country'!F77=\"X\",\"Y*\",IF('Treaty status of each country'!F77=\"X*\",\"Y*-\",IF('Treaty status of each country'!B77=\"X\",\"Y**\",\"-\")))))","v":"-"},{"$f":"IF(OR('Treaty status of each country'!E77=\"X\",'Treaty status of each country'!E77=\"X*\"),\"Y\",\"-\")","v":"-"}]
["Honduras",{"$f":"IF(OR('Treaty status of each country'!B78=\"X\", 'Treaty status of each country'!C78=\"X\"), \"Y\", \"\")","v":"Y"},{"$f":"IF(OR('Treaty status of each country'!E78=\"X\",'Treaty status of each country'!E78=\"X*\", COUNTIF('Countries 2016+2021 Order'!C$3:C$15,A78)=1),\"Y\",IF(OR('Treaty status of each country'!F78=\"X\",'Treaty status of each country'!F78=\"X*\"),\"Y*\",IF(OR('Treaty status of each country'!B78=\"X\",'Treaty status of each country'!C78=\"X\"),\"Y**\",\"\")))","v":"Y"},{"$f":"IF(COUNTIF('Countries 2016+2021 Order'!B$56:B$90,'Rights in UK for each country'!A78)=1,\"Y\",IF(OR('Treaty status of each country'!E78=\"X\",'Treaty status of each country'!E78=\"X*\",COUNTIF('Countries 2016+2021 Order'!B$20:B$52,'Rights in UK for each country'!A78)=1),\"Y*\",IF('Treaty status of each country'!B78=\"X\",\"Y**\",\"-\")))","v":"Y*"},{"$f":"IF(OR(COUNTIF('Countries 2016+2021 Order'!B$93:B$94,'Rights in UK for each country'!A78)=1,'Treaty status of each country'!E78=\"X\"),\"Y\",IF('Treaty status of each country'!E78=\"X*\",\"Y-\",IF('Treaty status of each country'!F78=\"X\",\"Y*\",IF('Treaty status of each country'!F78=\"X*\",\"Y*-\",IF('Treaty status of each country'!B78=\"X\",\"Y**\",\"-\")))))","v":"Y"},{"$f":"IF(OR('Treaty status of each country'!E78=\"X\",'Treaty status of each country'!E78=\"X*\"),\"Y\",\"-\")","v":"Y"}]
["Hungary",{"$f":"IF(OR('Treaty status of each country'!B79=\"X\", 'Treaty status of each country'!C79=\"X\"), \"Y\", \"\")","v":"Y"},{"$f":"IF(OR('Treaty status of each country'!E79=\"X\",'Treaty status of each country'!E79=\"X*\", COUNTIF('Countries 2016+2021 Order'!C$3:C$15,A79)=1),\"Y\",IF(OR('Treaty status of each country'!F79=\"X\",'Treaty status of each country'!F79=\"X*\"),\"Y*\",IF(OR('Treaty status of each country'!B79=\"X\",'Treaty status of each country'!C79=\"X\"),\"Y**\",\"\")))","v":"Y"},{"$f":"IF(COUNTIF('Countries 2016+2021 Order'!B$56:B$90,'Rights in UK for each country'!A79)=1,\"Y\",IF(OR('Treaty status of each country'!E79=\"X\",'Treaty status of each country'!E79=\"X*\",COUNTIF('Countries 2016+2021 Order'!B$20:B$52,'Rights in UK for each country'!A79)=1),\"Y*\",IF('Treaty status of each country'!B79=\"X\",\"Y**\",\"-\")))","v":"Y"},{"$f":"IF(OR(COUNTIF('Countries 2016+2021 Order'!B$93:B$94,'Rights in UK for each country'!A79)=1,'Treaty status of each country'!E79=\"X\"),\"Y\",IF('Treaty status of each country'!E79=\"X*\",\"Y-\",IF('Treaty status of each country'!F79=\"X\",\"Y*\",IF('Treaty status of each country'!F79=\"X*\",\"Y*-\",IF('Treaty status of each country'!B79=\"X\",\"Y**\",\"-\")))))","v":"Y"},{"$f":"IF(OR('Treaty status of each country'!E79=\"X\",'Treaty status of each country'!E79=\"X*\"),\"Y\",\"-\")","v":"Y"}]
["Iceland",{"$f":"IF(OR('Treaty status of each country'!B80=\"X\", 'Treaty status of each country'!C80=\"X\"), \"Y\", \"\")","v":"Y"},{"$f":"IF(OR('Treaty status of each country'!E80=\"X\",'Treaty status of each country'!E80=\"X*\", COUNTIF('Countries 2016+2021 Order'!C$3:C$15,A80)=1),\"Y\",IF(OR('Treaty status of each country'!F80=\"X\",'Treaty status of each country'!F80=\"X*\"),\"Y*\",IF(OR('Treaty status of each country'!B80=\"X\",'Treaty status of each country'!C80=\"X\"),\"Y**\",\"\")))","v":"Y**"},{"$f":"IF(COUNTIF('Countries 2016+2021 Order'!B$56:B$90,'Rights in UK for each country'!A80)=1,\"Y\",IF(OR('Treaty status of each country'!E80=\"X\",'Treaty status of each country'!E80=\"X*\",COUNTIF('Countries 2016+2021 Order'!B$20:B$52,'Rights in UK for each country'!A80)=1),\"Y*\",IF('Treaty status of each country'!B80=\"X\",\"Y**\",\"-\")))","v":"Y**"},{"$f":"IF(OR(COUNTIF('Countries 2016+2021 Order'!B$93:B$94,'Rights in UK for each country'!A80)=1,'Treaty status of each country'!E80=\"X\"),\"Y\",IF('Treaty status of each country'!E80=\"X*\",\"Y-\",IF('Treaty status of each country'!F80=\"X\",\"Y*\",IF('Treaty status of each country'!F80=\"X*\",\"Y*-\",IF('Treaty status of each country'!B80=\"X\",\"Y**\",\"-\")))))","v":"Y**"},{"$f":"IF(OR('Treaty status of each country'!E80=\"X\",'Treaty status of each country'!E80=\"X*\"),\"Y\",\"-\")","v":"-"}]
["India",{"$f":"IF(OR('Treaty status of each country'!B81=\"X\", 'Treaty status of each country'!C81=\"X\"), \"Y\", \"\")","v":"Y"},{"$f":"IF(OR('Treaty status of each country'!E81=\"X\",'Treaty status of each country'!E81=\"X*\", COUNTIF('Countries 2016+2021 Order'!C$3:C$15,A81)=1),\"Y\",IF(OR('Treaty status of each country'!F81=\"X\",'Treaty status of each country'!F81=\"X*\"),\"Y*\",IF(OR('Treaty status of each country'!B81=\"X\",'Treaty status of each country'!C81=\"X\"),\"Y**\",\"\")))","v":"Y*"},{"$f":"IF(COUNTIF('Countries 2016+2021 Order'!B$56:B$90,'Rights in UK for each country'!A81)=1,\"Y\",IF(OR('Treaty status of each country'!E81=\"X\",'Treaty status of each country'!E81=\"X*\",COUNTIF('Countries 2016+2021 Order'!B$20:B$52,'Rights in UK for each country'!A81)=1),\"Y*\",IF('Treaty status of each country'!B81=\"X\",\"Y**\",\"-\")))","v":"Y**"},{"$f":"IF(OR(COUNTIF('Countries 2016+2021 Order'!B$93:B$94,'Rights in UK for each country'!A81)=1,'Treaty status of each country'!E81=\"X\"),\"Y\",IF('Treaty status of each country'!E81=\"X*\",\"Y-\",IF('Treaty status of each country'!F81=\"X\",\"Y*\",IF('Treaty status of each country'!F81=\"X*\",\"Y*-\",IF('Treaty status of each country'!B81=\"X\",\"Y**\",\"-\")))))","v":"Y*-"},{"$f":"IF(OR('Treaty status of each country'!E81=\"X\",'Treaty status of each country'!E81=\"X*\"),\"Y\",\"-\")","v":"-"}]
["Indonesia",{"$f":"IF(OR('Treaty status of each country'!B82=\"X\", 'Treaty status of each country'!C82=\"X\"), \"Y\", \"\")","v":"Y"},{"$f":"IF(OR('Treaty status of each country'!E82=\"X\",'Treaty status of each country'!E82=\"X*\", COUNTIF('Countries 2016+2021 Order'!C$3:C$15,A82)=1),\"Y\",IF(OR('Treaty status of each country'!F82=\"X\",'Treaty status of each country'!F82=\"X*\"),\"Y*\",IF(OR('Treaty status of each country'!B82=\"X\",'Treaty status of each country'!C82=\"X\"),\"Y**\",\"\")))","v":"Y*"},{"$f":"IF(COUNTIF('Countries 2016+2021 Order'!B$56:B$90,'Rights in UK for each country'!A82)=1,\"Y\",IF(OR('Treaty status of each country'!E82=\"X\",'Treaty status of each country'!E82=\"X*\",COUNTIF('Countries 2016+2021 Order'!B$20:B$52,'Rights in UK for each country'!A82)=1),\"Y*\",IF('Treaty status of each country'!B82=\"X\",\"Y**\",\"-\")))","v":"Y"},{"$f":"IF(OR(COUNTIF('Countries 2016+2021 Order'!B$93:B$94,'Rights in UK for each country'!A82)=1,'Treaty status of each country'!E82=\"X\"),\"Y\",IF('Treaty status of each country'!E82=\"X*\",\"Y-\",IF('Treaty status of each country'!F82=\"X\",\"Y*\",IF('Treaty status of each country'!F82=\"X*\",\"Y*-\",IF('Treaty status of each country'!B82=\"X\",\"Y**\",\"-\")))))","v":"Y*"},{"$f":"IF(OR('Treaty status of each country'!E82=\"X\",'Treaty status of each country'!E82=\"X*\"),\"Y\",\"-\")","v":"-"}]
["Ireland",{"$f":"IF(OR('Treaty status of each country'!B83=\"X\", 'Treaty status of each country'!C83=\"X\"), \"Y\", \"\")","v":"Y"},{"$f":"IF(OR('Treaty status of each country'!E83=\"X\",'Treaty status of each country'!E83=\"X*\", COUNTIF('Countries 2016+2021 Order'!C$3:C$15,A83)=1),\"Y\",IF(OR('Treaty status of each country'!F83=\"X\",'Treaty status of each country'!F83=\"X*\"),\"Y*\",IF(OR('Treaty status of each country'!B83=\"X\",'Treaty status of each country'!C83=\"X\"),\"Y**\",\"\")))","v":"Y*"},{"$f":"IF(COUNTIF('Countries 2016+2021 Order'!B$56:B$90,'Rights in UK for each country'!A83)=1,\"Y\",IF(OR('Treaty status of each country'!E83=\"X\",'Treaty status of each country'!E83=\"X*\",COUNTIF('Countries 2016+2021 Order'!B$20:B$52,'Rights in UK for each country'!A83)=1),\"Y*\",IF('Treaty status of each country'!B83=\"X\",\"Y**\",\"-\")))","v":"Y"},{"$f":"IF(OR(COUNTIF('Countries 2016+2021 Order'!B$93:B$94,'Rights in UK for each country'!A83)=1,'Treaty status of each country'!E83=\"X\"),\"Y\",IF('Treaty status of each country'!E83=\"X*\",\"Y-\",IF('Treaty status of each country'!F83=\"X\",\"Y*\",IF('Treaty status of each country'!F83=\"X*\",\"Y*-\",IF('Treaty status of each country'!B83=\"X\",\"Y**\",\"-\")))))","v":"Y*"},{"$f":"IF(OR('Treaty status of each country'!E83=\"X\",'Treaty status of each country'!E83=\"X*\"),\"Y\",\"-\")","v":"-"}]
["Israel",{"$f":"IF(OR('Treaty status of each country'!B84=\"X\", 'Treaty status of each country'!C84=\"X\"), \"Y\", \"\")","v":"Y"},{"$f":"IF(OR('Treaty status of each country'!E84=\"X\",'Treaty status of each country'!E84=\"X*\", COUNTIF('Countries 2016+2021 Order'!C$3:C$15,A84)=1),\"Y\",IF(OR('Treaty status of each country'!F84=\"X\",'Treaty status of each country'!F84=\"X*\"),\"Y*\",IF(OR('Treaty status of each country'!B84=\"X\",'Treaty status of each country'!C84=\"X\"),\"Y**\",\"\")))","v":"Y"},{"$f":"IF(COUNTIF('Countries 2016+2021 Order'!B$56:B$90,'Rights in UK for each country'!A84)=1,\"Y\",IF(OR('Treaty status of each country'!E84=\"X\",'Treaty status of each country'!E84=\"X*\",COUNTIF('Countries 2016+2021 Order'!B$20:B$52,'Rights in UK for each country'!A84)=1),\"Y*\",IF('Treaty status of each country'!B84=\"X\",\"Y**\",\"-\")))","v":"Y*"},{"$f":"IF(OR(COUNTIF('Countries 2016+2021 Order'!B$93:B$94,'Rights in UK for each country'!A84)=1,'Treaty status of each country'!E84=\"X\"),\"Y\",IF('Treaty status of each country'!E84=\"X*\",\"Y-\",IF('Treaty status of each country'!F84=\"X\",\"Y*\",IF('Treaty status of each country'!F84=\"X*\",\"Y*-\",IF('Treaty status of each country'!B84=\"X\",\"Y**\",\"-\")))))","v":"Y"},{"$f":"IF(OR('Treaty status of each country'!E84=\"X\",'Treaty status of each country'!E84=\"X*\"),\"Y\",\"-\")","v":"Y"}]
["Italy",{"$f":"IF(OR('Treaty status of each country'!B85=\"X\", 'Treaty status of each country'!C85=\"X\"), \"Y\", \"\")","v":"Y"},{"$f":"IF(OR('Treaty status of each country'!E85=\"X\",'Treaty status of each country'!E85=\"X*\", COUNTIF('Countries 2016+2021 Order'!C$3:C$15,A85)=1),\"Y\",IF(OR('Treaty status of each country'!F85=\"X\",'Treaty status of each country'!F85=\"X*\"),\"Y*\",IF(OR('Treaty status of each country'!B85=\"X\",'Treaty status of each country'!C85=\"X\"),\"Y**\",\"\")))","v":"Y"},{"$f":"IF(COUNTIF('Countries 2016+2021 Order'!B$56:B$90,'Rights in UK for each country'!A85)=1,\"Y\",IF(OR('Treaty status of each country'!E85=\"X\",'Treaty status of each country'!E85=\"X*\",COUNTIF('Countries 2016+2021 Order'!B$20:B$52,'Rights in UK for each country'!A85)=1),\"Y*\",IF('Treaty status of each country'!B85=\"X\",\"Y**\",\"-\")))","v":"Y"},{"$f":"IF(OR(COUNTIF('Countries 2016+2021 Order'!B$93:B$94,'Rights in UK for each country'!A85)=1,'Treaty status of each country'!E85=\"X\"),\"Y\",IF('Treaty status of each country'!E85=\"X*\",\"Y-\",IF('Treaty status of each country'!F85=\"X\",\"Y*\",IF('Treaty status of each country'!F85=\"X*\",\"Y*-\",IF('Treaty status of each country'!B85=\"X\",\"Y**\",\"-\")))))","v":"Y-"},{"$f":"IF(OR('Treaty status of each country'!E85=\"X\",'Treaty status of each country'!E85=\"X*\"),\"Y\",\"-\")","v":"Y"}]
["Jamaica",{"$f":"IF(OR('Treaty status of each country'!B86=\"X\", 'Treaty status of each country'!C86=\"X\"), \"Y\", \"\")","v":"Y"},{"$f":"IF(OR('Treaty status of each country'!E86=\"X\",'Treaty status of each country'!E86=\"X*\", COUNTIF('Countries 2016+2021 Order'!C$3:C$15,A86)=1),\"Y\",IF(OR('Treaty status of each country'!F86=\"X\",'Treaty status of each country'!F86=\"X*\"),\"Y*\",IF(OR('Treaty status of each country'!B86=\"X\",'Treaty status of each country'!C86=\"X\"),\"Y**\",\"\")))","v":"Y"},{"$f":"IF(COUNTIF('Countries 2016+2021 Order'!B$56:B$90,'Rights in UK for each country'!A86)=1,\"Y\",IF(OR('Treaty status of each country'!E86=\"X\",'Treaty status of each country'!E86=\"X*\",COUNTIF('Countries 2016+2021 Order'!B$20:B$52,'Rights in UK for each country'!A86)=1),\"Y*\",IF('Treaty status of each country'!B86=\"X\",\"Y**\",\"-\")))","v":"Y*"},{"$f":"IF(OR(COUNTIF('Countries 2016+2021 Order'!B$93:B$94,'Rights in UK for each country'!A86)=1,'Treaty status of each country'!E86=\"X\"),\"Y\",IF('Treaty status of each country'!E86=\"X*\",\"Y-\",IF('Treaty status of each country'!F86=\"X\",\"Y*\",IF('Treaty status of each country'!F86=\"X*\",\"Y*-\",IF('Treaty status of each country'!B86=\"X\",\"Y**\",\"-\")))))","v":"Y"},{"$f":"IF(OR('Treaty status of each country'!E86=\"X\",'Treaty status of each country'!E86=\"X*\"),\"Y\",\"-\")","v":"Y"}]
["Japan",{"$f":"IF(OR('Treaty status of each country'!B87=\"X\", 'Treaty status of each country'!C87=\"X\"), \"Y\", \"\")","v":"Y"},{"$f":"IF(OR('Treaty status of each country'!E87=\"X\",'Treaty status of each country'!E87=\"X*\", COUNTIF('Countries 2016+2021 Order'!C$3:C$15,A87)=1),\"Y\",IF(OR('Treaty status of each country'!F87=\"X\",'Treaty status of each country'!F87=\"X*\"),\"Y*\",IF(OR('Treaty status of each country'!B87=\"X\",'Treaty status of each country'!C87=\"X\"),\"Y**\",\"\")))","v":"Y"},{"$f":"IF(COUNTIF('Countries 2016+2021 Order'!B$56:B$90,'Rights in UK for each country'!A87)=1,\"Y\",IF(OR('Treaty status of each country'!E87=\"X\",'Treaty status of each country'!E87=\"X*\",COUNTIF('Countries 2016+2021 Order'!B$20:B$52,'Rights in UK for each country'!A87)=1),\"Y*\",IF('Treaty status of each country'!B87=\"X\",\"Y**\",\"-\")))","v":"Y*"},{"$f":"IF(OR(COUNTIF('Countries 2016+2021 Order'!B$93:B$94,'Rights in UK for each country'!A87)=1,'Treaty status of each country'!E87=\"X\"),\"Y\",IF('Treaty status of each country'!E87=\"X*\",\"Y-\",IF('Treaty status of each country'!F87=\"X\",\"Y*\",IF('Treaty status of each country'!F87=\"X*\",\"Y*-\",IF('Treaty status of each country'!B87=\"X\",\"Y**\",\"-\")))))","v":"Y-"},{"$f":"IF(OR('Treaty status of each country'!E87=\"X\",'Treaty status of each country'!E87=\"X*\"),\"Y\",\"-\")","v":"Y"}]
["Jordan",{"$f":"IF(OR('Treaty status of each country'!B88=\"X\", 'Treaty status of each country'!C88=\"X\"), \"Y\", \"\")","v":"Y"},{"$f":"IF(OR('Treaty status of each country'!E88=\"X\",'Treaty status of each country'!E88=\"X*\", COUNTIF('Countries 2016+2021 Order'!C$3:C$15,A88)=1),\"Y\",IF(OR('Treaty status of each country'!F88=\"X\",'Treaty status of each country'!F88=\"X*\"),\"Y*\",IF(OR('Treaty status of each country'!B88=\"X\",'Treaty status of each country'!C88=\"X\"),\"Y**\",\"\")))","v":"Y*"},{"$f":"IF(COUNTIF('Countries 2016+2021 Order'!B$56:B$90,'Rights in UK for each country'!A88)=1,\"Y\",IF(OR('Treaty status of each country'!E88=\"X\",'Treaty status of each country'!E88=\"X*\",COUNTIF('Countries 2016+2021 Order'!B$20:B$52,'Rights in UK for each country'!A88)=1),\"Y*\",IF('Treaty status of each country'!B88=\"X\",\"Y**\",\"-\")))","v":"Y**"},{"$f":"IF(OR(COUNTIF('Countries 2016+2021 Order'!B$93:B$94,'Rights in UK for each country'!A88)=1,'Treaty status of each country'!E88=\"X\"),\"Y\",IF('Treaty status of each country'!E88=\"X*\",\"Y-\",IF('Treaty status of each country'!F88=\"X\",\"Y*\",IF('Treaty status of each country'!F88=\"X*\",\"Y*-\",IF('Treaty status of each country'!B88=\"X\",\"Y**\",\"-\")))))","v":"Y*"},{"$f":"IF(OR('Treaty status of each country'!E88=\"X\",'Treaty status of each country'!E88=\"X*\"),\"Y\",\"-\")","v":"-"}]
["Kazakhstan",{"$f":"IF(OR('Treaty status of each country'!B89=\"X\", 'Treaty status of each country'!C89=\"X\"), \"Y\", \"\")","v":"Y"},{"$f":"IF(OR('Treaty status of each country'!E89=\"X\",'Treaty status of each country'!E89=\"X*\", COUNTIF('Countries 2016+2021 Order'!C$3:C$15,A89)=1),\"Y\",IF(OR('Treaty status of each country'!F89=\"X\",'Treaty status of each country'!F89=\"X*\"),\"Y*\",IF(OR('Treaty status of each country'!B89=\"X\",'Treaty status of each country'!C89=\"X\"),\"Y**\",\"\")))","v":"Y"},{"$f":"IF(COUNTIF('Countries 2016+2021 Order'!B$56:B$90,'Rights in UK for each country'!A89)=1,\"Y\",IF(OR('Treaty status of each country'!E89=\"X\",'Treaty status of each country'!E89=\"X*\",COUNTIF('Countries 2016+2021 Order'!B$20:B$52,'Rights in UK for each country'!A89)=1),\"Y*\",IF('Treaty status of each country'!B89=\"X\",\"Y**\",\"-\")))","v":"Y*"},{"$f":"IF(OR(COUNTIF('Countries 2016+2021 Order'!B$93:B$94,'Rights in UK for each country'!A89)=1,'Treaty status of each country'!E89=\"X\"),\"Y\",IF('Treaty status of each country'!E89=\"X*\",\"Y-\",IF('Treaty status of each country'!F89=\"X\",\"Y*\",IF('Treaty status of each country'!F89=\"X*\",\"Y*-\",IF('Treaty status of each country'!B89=\"X\",\"Y**\",\"-\")))))","v":"Y"},{"$f":"IF(OR('Treaty status of each country'!E89=\"X\",'Treaty status of each country'!E89=\"X*\"),\"Y\",\"-\")","v":"Y"}]
["Kenya",{"$f":"IF(OR('Treaty status of each country'!B90=\"X\", 'Treaty status of each country'!C90=\"X\"), \"Y\", \"\")","v":"Y"},{"$f":"IF(OR('Treaty status of each country'!E90=\"X\",'Treaty status of each country'!E90=\"X*\", COUNTIF('Countries 2016+2021 Order'!C$3:C$15,A90)=1),\"Y\",IF(OR('Treaty status of each country'!F90=\"X\",'Treaty status of each country'!F90=\"X*\"),\"Y*\",IF(OR('Treaty status of each country'!B90=\"X\",'Treaty status of each country'!C90=\"X\"),\"Y**\",\"\")))","v":"Y**"},{"$f":"IF(COUNTIF('Countries 2016+2021 Order'!B$56:B$90,'Rights in UK for each country'!A90)=1,\"Y\",IF(OR('Treaty status of each country'!E90=\"X\",'Treaty status of each country'!E90=\"X*\",COUNTIF('Countries 2016+2021 Order'!B$20:B$52,'Rights in UK for each country'!A90)=1),\"Y*\",IF('Treaty status of each country'!B90=\"X\",\"Y**\",\"-\")))","v":"Y**"},{"$f":"IF(OR(COUNTIF('Countries 2016+2021 Order'!B$93:B$94,'Rights in UK for each country'!A90)=1,'Treaty status of each country'!E90=\"X\"),\"Y\",IF('Treaty status of each country'!E90=\"X*\",\"Y-\",IF('Treaty status of each country'!F90=\"X\",\"Y*\",IF('Treaty status of each country'!F90=\"X*\",\"Y*-\",IF('Treaty status of each country'!B90=\"X\",\"Y**\",\"-\")))))","v":"Y**"},{"$f":"IF(OR('Treaty status of each country'!E90=\"X\",'Treaty status of each country'!E90=\"X*\"),\"Y\",\"-\")","v":"-"}]
["Kiribati",{"$f":"IF(OR('Treaty status of each country'!B91=\"X\", 'Treaty status of each country'!C91=\"X\"), \"Y\", \"\")","v":"Y"},{"$f":"IF(OR('Treaty status of each country'!E91=\"X\",'Treaty status of each country'!E91=\"X*\", COUNTIF('Countries 2016+2021 Order'!C$3:C$15,A91)=1),\"Y\",IF(OR('Treaty status of each country'!F91=\"X\",'Treaty status of each country'!F91=\"X*\"),\"Y*\",IF(OR('Treaty status of each country'!B91=\"X\",'Treaty status of each country'!C91=\"X\"),\"Y**\",\"\")))","v":"Y*"},{"$f":"IF(COUNTIF('Countries 2016+2021 Order'!B$56:B$90,'Rights in UK for each country'!A91)=1,\"Y\",IF(OR('Treaty status of each country'!E91=\"X\",'Treaty status of each country'!E91=\"X*\",COUNTIF('Countries 2016+2021 Order'!B$20:B$52,'Rights in UK for each country'!A91)=1),\"Y*\",IF('Treaty status of each country'!B91=\"X\",\"Y**\",\"-\")))","v":"-"},{"$f":"IF(OR(COUNTIF('Countries 2016+2021 Order'!B$93:B$94,'Rights in UK for each country'!A91)=1,'Treaty status of each country'!E91=\"X\"),\"Y\",IF('Treaty status of each country'!E91=\"X*\",\"Y-\",IF('Treaty status of each country'!F91=\"X\",\"Y*\",IF('Treaty status of each country'!F91=\"X*\",\"Y*-\",IF('Treaty status of each country'!B91=\"X\",\"Y**\",\"-\")))))","v":"Y*"},{"$f":"IF(OR('Treaty status of each country'!E91=\"X\",'Treaty status of each country'!E91=\"X*\"),\"Y\",\"-\")","v":"-"}]
["Kuwait",{"$f":"IF(OR('Treaty status of each country'!B92=\"X\", 'Treaty status of each country'!C92=\"X\"), \"Y\", \"\")","v":"Y"},{"$f":"IF(OR('Treaty status of each country'!E92=\"X\",'Treaty status of each country'!E92=\"X*\", COUNTIF('Countries 2016+2021 Order'!C$3:C$15,A92)=1),\"Y\",IF(OR('Treaty status of each country'!F92=\"X\",'Treaty status of each country'!F92=\"X*\"),\"Y*\",IF(OR('Treaty status of each country'!B92=\"X\",'Treaty status of each country'!C92=\"X\"),\"Y**\",\"\")))","v":"Y**"},{"$f":"IF(COUNTIF('Countries 2016+2021 Order'!B$56:B$90,'Rights in UK for each country'!A92)=1,\"Y\",IF(OR('Treaty status of each country'!E92=\"X\",'Treaty status of each country'!E92=\"X*\",COUNTIF('Countries 2016+2021 Order'!B$20:B$52,'Rights in UK for each country'!A92)=1),\"Y*\",IF('Treaty status of each country'!B92=\"X\",\"Y**\",\"-\")))","v":"Y**"},{"$f":"IF(OR(COUNTIF('Countries 2016+2021 Order'!B$93:B$94,'Rights in UK for each country'!A92)=1,'Treaty status of each country'!E92=\"X\"),\"Y\",IF('Treaty status of each country'!E92=\"X*\",\"Y-\",IF('Treaty status of each country'!F92=\"X\",\"Y*\",IF('Treaty status of each country'!F92=\"X*\",\"Y*-\",IF('Treaty status of each country'!B92=\"X\",\"Y**\",\"-\")))))","v":"Y**"},{"$f":"IF(OR('Treaty status of each country'!E92=\"X\",'Treaty status of each country'!E92=\"X*\"),\"Y\",\"-\")","v":"-"}]
["Kyrgyzstan",{"$f":"IF(OR('Treaty status of each country'!B93=\"X\", 'Treaty status of each country'!C93=\"X\"), \"Y\", \"\")","v":"Y"},{"$f":"IF(OR('Treaty status of each country'!E93=\"X\",'Treaty status of each country'!E93=\"X*\", COUNTIF('Countries 2016+2021 Order'!C$3:C$15,A93)=1),\"Y\",IF(OR('Treaty status of each country'!F93=\"X\",'Treaty status of each country'!F93=\"X*\"),\"Y*\",IF(OR('Treaty status of each country'!B93=\"X\",'Treaty status of each country'!C93=\"X\"),\"Y**\",\"\")))","v":"Y"},{"$f":"IF(COUNTIF('Countries 2016+2021 Order'!B$56:B$90,'Rights in UK for each country'!A93)=1,\"Y\",IF(OR('Treaty status of each country'!E93=\"X\",'Treaty status of each country'!E93=\"X*\",COUNTIF('Countries 2016+2021 Order'!B$20:B$52,'Rights in UK for each country'!A93)=1),\"Y*\",IF('Treaty status of each country'!B93=\"X\",\"Y**\",\"-\")))","v":"Y*"},{"$f":"IF(OR(COUNTIF('Countries 2016+2021 Order'!B$93:B$94,'Rights in UK for each country'!A93)=1,'Treaty status of each country'!E93=\"X\"),\"Y\",IF('Treaty status of each country'!E93=\"X*\",\"Y-\",IF('Treaty status of each country'!F93=\"X\",\"Y*\",IF('Treaty status of each country'!F93=\"X*\",\"Y*-\",IF('Treaty status of each country'!B93=\"X\",\"Y**\",\"-\")))))","v":"Y"},{"$f":"IF(OR('Treaty status of each country'!E93=\"X\",'Treaty status of each country'!E93=\"X*\"),\"Y\",\"-\")","v":"Y"}]
["Lao People's Democratic Republic",{"$f":"IF(OR('Treaty status of each country'!B94=\"X\", 'Treaty status of each country'!C94=\"X\"), \"Y\", \"\")","v":"Y"},{"$f":"IF(OR('Treaty status of each country'!E94=\"X\",'Treaty status of each country'!E94=\"X*\", COUNTIF('Countries 2016+2021 Order'!C$3:C$15,A94)=1),\"Y\",IF(OR('Treaty status of each country'!F94=\"X\",'Treaty status of each country'!F94=\"X*\"),\"Y*\",IF(OR('Treaty status of each country'!B94=\"X\",'Treaty status of each country'!C94=\"X\"),\"Y**\",\"\")))","v":"Y**"},{"$f":"IF(COUNTIF('Countries 2016+2021 Order'!B$56:B$90,'Rights in UK for each country'!A94)=1,\"Y\",IF(OR('Treaty status of each country'!E94=\"X\",'Treaty status of each country'!E94=\"X*\",COUNTIF('Countries 2016+2021 Order'!B$20:B$52,'Rights in UK for each country'!A94)=1),\"Y*\",IF('Treaty status of each country'!B94=\"X\",\"Y**\",\"-\")))","v":"Y**"},{"$f":"IF(OR(COUNTIF('Countries 2016+2021 Order'!B$93:B$94,'Rights in UK for each country'!A94)=1,'Treaty status of each country'!E94=\"X\"),\"Y\",IF('Treaty status of each country'!E94=\"X*\",\"Y-\",IF('Treaty status of each country'!F94=\"X\",\"Y*\",IF('Treaty status of each country'!F94=\"X*\",\"Y*-\",IF('Treaty status of each country'!B94=\"X\",\"Y**\",\"-\")))))","v":"Y**"},{"$f":"IF(OR('Treaty status of each country'!E94=\"X\",'Treaty status of each country'!E94=\"X*\"),\"Y\",\"-\")","v":"-"}]
["Latvia",{"$f":"IF(OR('Treaty status of each country'!B95=\"X\", 'Treaty status of each country'!C95=\"X\"), \"Y\", \"\")","v":"Y"},{"$f":"IF(OR('Treaty status of each country'!E95=\"X\",'Treaty status of each country'!E95=\"X*\", COUNTIF('Countries 2016+2021 Order'!C$3:C$15,A95)=1),\"Y\",IF(OR('Treaty status of each country'!F95=\"X\",'Treaty status of each country'!F95=\"X*\"),\"Y*\",IF(OR('Treaty status of each country'!B95=\"X\",'Treaty status of each country'!C95=\"X\"),\"Y**\",\"\")))","v":"Y"},{"$f":"IF(COUNTIF('Countries 2016+2021 Order'!B$56:B$90,'Rights in UK for each country'!A95)=1,\"Y\",IF(OR('Treaty status of each country'!E95=\"X\",'Treaty status of each country'!E95=\"X*\",COUNTIF('Countries 2016+2021 Order'!B$20:B$52,'Rights in UK for each country'!A95)=1),\"Y*\",IF('Treaty status of each country'!B95=\"X\",\"Y**\",\"-\")))","v":"Y"},{"$f":"IF(OR(COUNTIF('Countries 2016+2021 Order'!B$93:B$94,'Rights in UK for each country'!A95)=1,'Treaty status of each country'!E95=\"X\"),\"Y\",IF('Treaty status of each country'!E95=\"X*\",\"Y-\",IF('Treaty status of each country'!F95=\"X\",\"Y*\",IF('Treaty status of each country'!F95=\"X*\",\"Y*-\",IF('Treaty status of each country'!B95=\"X\",\"Y**\",\"-\")))))","v":"Y"},{"$f":"IF(OR('Treaty status of each country'!E95=\"X\",'Treaty status of each country'!E95=\"X*\"),\"Y\",\"-\")","v":"Y"}]
["Lebanon",{"$f":"IF(OR('Treaty status of each country'!B96=\"X\", 'Treaty status of each country'!C96=\"X\"), \"Y\", \"\")","v":"Y"},{"$f":"IF(OR('Treaty status of each country'!E96=\"X\",'Treaty status of each country'!E96=\"X*\", COUNTIF('Countries 2016+2021 Order'!C$3:C$15,A96)=1),\"Y\",IF(OR('Treaty status of each country'!F96=\"X\",'Treaty status of each country'!F96=\"X*\"),\"Y*\",IF(OR('Treaty status of each country'!B96=\"X\",'Treaty status of each country'!C96=\"X\"),\"Y**\",\"\")))","v":"Y"},{"$f":"IF(COUNTIF('Countries 2016+2021 Order'!B$56:B$90,'Rights in UK for each country'!A96)=1,\"Y\",IF(OR('Treaty status of each country'!E96=\"X\",'Treaty status of each country'!E96=\"X*\",COUNTIF('Countries 2016+2021 Order'!B$20:B$52,'Rights in UK for each country'!A96)=1),\"Y*\",IF('Treaty status of each country'!B96=\"X\",\"Y**\",\"-\")))","v":"Y*"},{"$f":"IF(OR(COUNTIF('Countries 2016+2021 Order'!B$93:B$94,'Rights in UK for each country'!A96)=1,'Treaty status of each country'!E96=\"X\"),\"Y\",IF('Treaty status of each country'!E96=\"X*\",\"Y-\",IF('Treaty status of each country'!F96=\"X\",\"Y*\",IF('Treaty status of each country'!F96=\"X*\",\"Y*-\",IF('Treaty status of each country'!B96=\"X\",\"Y**\",\"-\")))))","v":"Y"},{"$f":"IF(OR('Treaty status of each country'!E96=\"X\",'Treaty status of each country'!E96=\"X*\"),\"Y\",\"-\")","v":"Y"}]
["Lesotho",{"$f":"IF(OR('Treaty status of each country'!B97=\"X\", 'Treaty status of each country'!C97=\"X\"), \"Y\", \"\")","v":"Y"},{"$f":"IF(OR('Treaty status of each country'!E97=\"X\",'Treaty status of each country'!E97=\"X*\", COUNTIF('Countries 2016+2021 Order'!C$3:C$15,A97)=1),\"Y\",IF(OR('Treaty status of each country'!F97=\"X\",'Treaty status of each country'!F97=\"X*\"),\"Y*\",IF(OR('Treaty status of each country'!B97=\"X\",'Treaty status of each country'!C97=\"X\"),\"Y**\",\"\")))","v":"Y"},{"$f":"IF(COUNTIF('Countries 2016+2021 Order'!B$56:B$90,'Rights in UK for each country'!A97)=1,\"Y\",IF(OR('Treaty status of each country'!E97=\"X\",'Treaty status of each country'!E97=\"X*\",COUNTIF('Countries 2016+2021 Order'!B$20:B$52,'Rights in UK for each country'!A97)=1),\"Y*\",IF('Treaty status of each country'!B97=\"X\",\"Y**\",\"-\")))","v":"Y*"},{"$f":"IF(OR(COUNTIF('Countries 2016+2021 Order'!B$93:B$94,'Rights in UK for each country'!A97)=1,'Treaty status of each country'!E97=\"X\"),\"Y\",IF('Treaty status of each country'!E97=\"X*\",\"Y-\",IF('Treaty status of each country'!F97=\"X\",\"Y*\",IF('Treaty status of each country'!F97=\"X*\",\"Y*-\",IF('Treaty status of each country'!B97=\"X\",\"Y**\",\"-\")))))","v":"Y-"},{"$f":"IF(OR('Treaty status of each country'!E97=\"X\",'Treaty status of each country'!E97=\"X*\"),\"Y\",\"-\")","v":"Y"}]
["Liberia",{"$f":"IF(OR('Treaty status of each country'!B98=\"X\", 'Treaty status of each country'!C98=\"X\"), \"Y\", \"\")","v":"Y"},{"$f":"IF(OR('Treaty status of each country'!E98=\"X\",'Treaty status of each country'!E98=\"X*\", COUNTIF('Countries 2016+2021 Order'!C$3:C$15,A98)=1),\"Y\",IF(OR('Treaty status of each country'!F98=\"X\",'Treaty status of each country'!F98=\"X*\"),\"Y*\",IF(OR('Treaty status of each country'!B98=\"X\",'Treaty status of each country'!C98=\"X\"),\"Y**\",\"\")))","v":"Y"},{"$f":"IF(COUNTIF('Countries 2016+2021 Order'!B$56:B$90,'Rights in UK for each country'!A98)=1,\"Y\",IF(OR('Treaty status of each country'!E98=\"X\",'Treaty status of each country'!E98=\"X*\",COUNTIF('Countries 2016+2021 Order'!B$20:B$52,'Rights in UK for each country'!A98)=1),\"Y*\",IF('Treaty status of each country'!B98=\"X\",\"Y**\",\"-\")))","v":"Y*"},{"$f":"IF(OR(COUNTIF('Countries 2016+2021 Order'!B$93:B$94,'Rights in UK for each country'!A98)=1,'Treaty status of each country'!E98=\"X\"),\"Y\",IF('Treaty status of each country'!E98=\"X*\",\"Y-\",IF('Treaty status of each country'!F98=\"X\",\"Y*\",IF('Treaty status of each country'!F98=\"X*\",\"Y*-\",IF('Treaty status of each country'!B98=\"X\",\"Y**\",\"-\")))))","v":"Y"},{"$f":"IF(OR('Treaty status of each country'!E98=\"X\",'Treaty status of each country'!E98=\"X*\"),\"Y\",\"-\")","v":"Y"}]
["Libya",{"$f":"IF(OR('Treaty status of each country'!B99=\"X\", 'Treaty status of each country'!C99=\"X\"), \"Y\", \"\")","v":"Y"},{"$f":"IF(OR('Treaty status of each country'!E99=\"X\",'Treaty status of each country'!E99=\"X*\", COUNTIF('Countries 2016+2021 Order'!C$3:C$15,A99)=1),\"Y\",IF(OR('Treaty status of each country'!F99=\"X\",'Treaty status of each country'!F99=\"X*\"),\"Y*\",IF(OR('Treaty status of each country'!B99=\"X\",'Treaty status of each country'!C99=\"X\"),\"Y**\",\"\")))","v":"Y**"},{"$f":"IF(COUNTIF('Countries 2016+2021 Order'!B$56:B$90,'Rights in UK for each country'!A99)=1,\"Y\",IF(OR('Treaty status of each country'!E99=\"X\",'Treaty status of each country'!E99=\"X*\",COUNTIF('Countries 2016+2021 Order'!B$20:B$52,'Rights in UK for each country'!A99)=1),\"Y*\",IF('Treaty status of each country'!B99=\"X\",\"Y**\",\"-\")))","v":"-"},{"$f":"IF(OR(COUNTIF('Countries 2016+2021 Order'!B$93:B$94,'Rights in UK for each country'!A99)=1,'Treaty status of each country'!E99=\"X\"),\"Y\",IF('Treaty status of each country'!E99=\"X*\",\"Y-\",IF('Treaty status of each country'!F99=\"X\",\"Y*\",IF('Treaty status of each country'!F99=\"X*\",\"Y*-\",IF('Treaty status of each country'!B99=\"X\",\"Y**\",\"-\")))))","v":"-"},{"$f":"IF(OR('Treaty status of each country'!E99=\"X\",'Treaty status of each country'!E99=\"X*\"),\"Y\",\"-\")","v":"-"}]
["Liechtenstein",{"$f":"IF(OR('Treaty status of each country'!B100=\"X\", 'Treaty status of each country'!C100=\"X\"), \"Y\", \"\")","v":"Y"},{"$f":"IF(OR('Treaty status of each country'!E100=\"X\",'Treaty status of each country'!E100=\"X*\", COUNTIF('Countries 2016+2021 Order'!C$3:C$15,A100)=1),\"Y\",IF(OR('Treaty status of each country'!F100=\"X\",'Treaty status of each country'!F100=\"X*\"),\"Y*\",IF(OR('Treaty status of each country'!B100=\"X\",'Treaty status of each country'!C100=\"X\"),\"Y**\",\"\")))","v":"Y"},{"$f":"IF(COUNTIF('Countries 2016+2021 Order'!B$56:B$90,'Rights in UK for each country'!A100)=1,\"Y\",IF(OR('Treaty status of each country'!E100=\"X\",'Treaty status of each country'!E100=\"X*\",COUNTIF('Countries 2016+2021 Order'!B$20:B$52,'Rights in UK for each country'!A100)=1),\"Y*\",IF('Treaty status of each country'!B100=\"X\",\"Y**\",\"-\")))","v":"Y*"},{"$f":"IF(OR(COUNTIF('Countries 2016+2021 Order'!B$93:B$94,'Rights in UK for each country'!A100)=1,'Treaty status of each country'!E100=\"X\"),\"Y\",IF('Treaty status of each country'!E100=\"X*\",\"Y-\",IF('Treaty status of each country'!F100=\"X\",\"Y*\",IF('Treaty status of each country'!F100=\"X*\",\"Y*-\",IF('Treaty status of each country'!B100=\"X\",\"Y**\",\"-\")))))","v":"Y"},{"$f":"IF(OR('Treaty status of each country'!E100=\"X\",'Treaty status of each country'!E100=\"X*\"),\"Y\",\"-\")","v":"Y"}]
["Lithuania",{"$f":"IF(OR('Treaty status of each country'!B101=\"X\", 'Treaty status of each country'!C101=\"X\"), \"Y\", \"\")","v":"Y"},{"$f":"IF(OR('Treaty status of each country'!E101=\"X\",'Treaty status of each country'!E101=\"X*\", COUNTIF('Countries 2016+2021 Order'!C$3:C$15,A101)=1),\"Y\",IF(OR('Treaty status of each country'!F101=\"X\",'Treaty status of each country'!F101=\"X*\"),\"Y*\",IF(OR('Treaty status of each country'!B101=\"X\",'Treaty status of each country'!C101=\"X\"),\"Y**\",\"\")))","v":"Y"},{"$f":"IF(COUNTIF('Countries 2016+2021 Order'!B$56:B$90,'Rights in UK for each country'!A101)=1,\"Y\",IF(OR('Treaty status of each country'!E101=\"X\",'Treaty status of each country'!E101=\"X*\",COUNTIF('Countries 2016+2021 Order'!B$20:B$52,'Rights in UK for each country'!A101)=1),\"Y*\",IF('Treaty status of each country'!B101=\"X\",\"Y**\",\"-\")))","v":"Y"},{"$f":"IF(OR(COUNTIF('Countries 2016+2021 Order'!B$93:B$94,'Rights in UK for each country'!A101)=1,'Treaty status of each country'!E101=\"X\"),\"Y\",IF('Treaty status of each country'!E101=\"X*\",\"Y-\",IF('Treaty status of each country'!F101=\"X\",\"Y*\",IF('Treaty status of each country'!F101=\"X*\",\"Y*-\",IF('Treaty status of each country'!B101=\"X\",\"Y**\",\"-\")))))","v":"Y"},{"$f":"IF(OR('Treaty status of each country'!E101=\"X\",'Treaty status of each country'!E101=\"X*\"),\"Y\",\"-\")","v":"Y"}]
["Luxembourg",{"$f":"IF(OR('Treaty status of each country'!B102=\"X\", 'Treaty status of each country'!C102=\"X\"), \"Y\", \"\")","v":"Y"},{"$f":"IF(OR('Treaty status of each country'!E102=\"X\",'Treaty status of each country'!E102=\"X*\", COUNTIF('Countries 2016+2021 Order'!C$3:C$15,A102)=1),\"Y\",IF(OR('Treaty status of each country'!F102=\"X\",'Treaty status of each country'!F102=\"X*\"),\"Y*\",IF(OR('Treaty status of each country'!B102=\"X\",'Treaty status of each country'!C102=\"X\"),\"Y**\",\"\")))","v":"Y"},{"$f":"IF(COUNTIF('Countries 2016+2021 Order'!B$56:B$90,'Rights in UK for each country'!A102)=1,\"Y\",IF(OR('Treaty status of each country'!E102=\"X\",'Treaty status of each country'!E102=\"X*\",COUNTIF('Countries 2016+2021 Order'!B$20:B$52,'Rights in UK for each country'!A102)=1),\"Y*\",IF('Treaty status of each country'!B102=\"X\",\"Y**\",\"-\")))","v":"Y"},{"$f":"IF(OR(COUNTIF('Countries 2016+2021 Order'!B$93:B$94,'Rights in UK for each country'!A102)=1,'Treaty status of each country'!E102=\"X\"),\"Y\",IF('Treaty status of each country'!E102=\"X*\",\"Y-\",IF('Treaty status of each country'!F102=\"X\",\"Y*\",IF('Treaty status of each country'!F102=\"X*\",\"Y*-\",IF('Treaty status of each country'!B102=\"X\",\"Y**\",\"-\")))))","v":"Y-"},{"$f":"IF(OR('Treaty status of each country'!E102=\"X\",'Treaty status of each country'!E102=\"X*\"),\"Y\",\"-\")","v":"Y"}]
["Madagascar",{"$f":"IF(OR('Treaty status of each country'!B103=\"X\", 'Treaty status of each country'!C103=\"X\"), \"Y\", \"\")","v":"Y"},{"$f":"IF(OR('Treaty status of each country'!E103=\"X\",'Treaty status of each country'!E103=\"X*\", COUNTIF('Countries 2016+2021 Order'!C$3:C$15,A103)=1),\"Y\",IF(OR('Treaty status of each country'!F103=\"X\",'Treaty status of each country'!F103=\"X*\"),\"Y*\",IF(OR('Treaty status of each country'!B103=\"X\",'Treaty status of each country'!C103=\"X\"),\"Y**\",\"\")))","v":"Y*"},{"$f":"IF(COUNTIF('Countries 2016+2021 Order'!B$56:B$90,'Rights in UK for each country'!A103)=1,\"Y\",IF(OR('Treaty status of each country'!E103=\"X\",'Treaty status of each country'!E103=\"X*\",COUNTIF('Countries 2016+2021 Order'!B$20:B$52,'Rights in UK for each country'!A103)=1),\"Y*\",IF('Treaty status of each country'!B103=\"X\",\"Y**\",\"-\")))","v":"Y**"},{"$f":"IF(OR(COUNTIF('Countries 2016+2021 Order'!B$93:B$94,'Rights in UK for each country'!A103)=1,'Treaty status of each country'!E103=\"X\"),\"Y\",IF('Treaty status of each country'!E103=\"X*\",\"Y-\",IF('Treaty status of each country'!F103=\"X\",\"Y*\",IF('Treaty status of each country'!F103=\"X*\",\"Y*-\",IF('Treaty status of each country'!B103=\"X\",\"Y**\",\"-\")))))","v":"Y*"},{"$f":"IF(OR('Treaty status of each country'!E103=\"X\",'Treaty status of each country'!E103=\"X*\"),\"Y\",\"-\")","v":"-"}]
["Malawi",{"$f":"IF(OR('Treaty status of each country'!B104=\"X\", 'Treaty status of each country'!C104=\"X\"), \"Y\", \"\")","v":"Y"},{"$f":"IF(OR('Treaty status of each country'!E104=\"X\",'Treaty status of each country'!E104=\"X*\", COUNTIF('Countries 2016+2021 Order'!C$3:C$15,A104)=1),\"Y\",IF(OR('Treaty status of each country'!F104=\"X\",'Treaty status of each country'!F104=\"X*\"),\"Y*\",IF(OR('Treaty status of each country'!B104=\"X\",'Treaty status of each country'!C104=\"X\"),\"Y**\",\"\")))","v":"Y**"},{"$f":"IF(COUNTIF('Countries 2016+2021 Order'!B$56:B$90,'Rights in UK for each country'!A104)=1,\"Y\",IF(OR('Treaty status of each country'!E104=\"X\",'Treaty status of each country'!E104=\"X*\",COUNTIF('Countries 2016+2021 Order'!B$20:B$52,'Rights in UK for each country'!A104)=1),\"Y*\",IF('Treaty status of each country'!B104=\"X\",\"Y**\",\"-\")))","v":"Y*"},{"$f":"IF(OR(COUNTIF('Countries 2016+2021 Order'!B$93:B$94,'Rights in UK for each country'!A104)=1,'Treaty status of each country'!E104=\"X\"),\"Y\",IF('Treaty status of each country'!E104=\"X*\",\"Y-\",IF('Treaty status of each country'!F104=\"X\",\"Y*\",IF('Treaty status of each country'!F104=\"X*\",\"Y*-\",IF('Treaty status of each country'!B104=\"X\",\"Y**\",\"-\")))))","v":"Y**"},{"$f":"IF(OR('Treaty status of each country'!E104=\"X\",'Treaty status of each country'!E104=\"X*\"),\"Y\",\"-\")","v":"-"}]
["Malaysia",{"$f":"IF(OR('Treaty status of each country'!B105=\"X\", 'Treaty status of each country'!C105=\"X\"), \"Y\", \"\")","v":"Y"},{"$f":"IF(OR('Treaty status of each country'!E105=\"X\",'Treaty status of each country'!E105=\"X*\", COUNTIF('Countries 2016+2021 Order'!C$3:C$15,A105)=1),\"Y\",IF(OR('Treaty status of each country'!F105=\"X\",'Treaty status of each country'!F105=\"X*\"),\"Y*\",IF(OR('Treaty status of each country'!B105=\"X\",'Treaty status of each country'!C105=\"X\"),\"Y**\",\"\")))","v":"Y*"},{"$f":"IF(COUNTIF('Countries 2016+2021 Order'!B$56:B$90,'Rights in UK for each country'!A105)=1,\"Y\",IF(OR('Treaty status of each country'!E105=\"X\",'Treaty status of each country'!E105=\"X*\",COUNTIF('Countries 2016+2021 Order'!B$20:B$52,'Rights in UK for each country'!A105)=1),\"Y*\",IF('Treaty status of each country'!B105=\"X\",\"Y**\",\"-\")))","v":"Y*"},{"$f":"IF(OR(COUNTIF('Countries 2016+2021 Order'!B$93:B$94,'Rights in UK for each country'!A105)=1,'Treaty status of each country'!E105=\"X\"),\"Y\",IF('Treaty status of each country'!E105=\"X*\",\"Y-\",IF('Treaty status of each country'!F105=\"X\",\"Y*\",IF('Treaty status of each country'!F105=\"X*\",\"Y*-\",IF('Treaty status of each country'!B105=\"X\",\"Y**\",\"-\")))))","v":"Y*"},{"$f":"IF(OR('Treaty status of each country'!E105=\"X\",'Treaty status of each country'!E105=\"X*\"),\"Y\",\"-\")","v":"-"}]
["Maldives",{"$f":"IF(OR('Treaty status of each country'!B106=\"X\", 'Treaty status of each country'!C106=\"X\"), \"Y\", \"\")","v":"Y"},{"$f":"IF(OR('Treaty status of each country'!E106=\"X\",'Treaty status of each country'!E106=\"X*\", COUNTIF('Countries 2016+2021 Order'!C$3:C$15,A106)=1),\"Y\",IF(OR('Treaty status of each country'!F106=\"X\",'Treaty status of each country'!F106=\"X*\"),\"Y*\",IF(OR('Treaty status of each country'!B106=\"X\",'Treaty status of each country'!C106=\"X\"),\"Y**\",\"\")))","v":"Y**"},{"$f":"IF(COUNTIF('Countries 2016+2021 Order'!B$56:B$90,'Rights in UK for each country'!A106)=1,\"Y\",IF(OR('Treaty status of each country'!E106=\"X\",'Treaty status of each country'!E106=\"X*\",COUNTIF('Countries 2016+2021 Order'!B$20:B$52,'Rights in UK for each country'!A106)=1),\"Y*\",IF('Treaty status of each country'!B106=\"X\",\"Y**\",\"-\")))","v":"Y**"},{"$f":"IF(OR(COUNTIF('Countries 2016+2021 Order'!B$93:B$94,'Rights in UK for each country'!A106)=1,'Treaty status of each country'!E106=\"X\"),\"Y\",IF('Treaty status of each country'!E106=\"X*\",\"Y-\",IF('Treaty status of each country'!F106=\"X\",\"Y*\",IF('Treaty status of each country'!F106=\"X*\",\"Y*-\",IF('Treaty status of each country'!B106=\"X\",\"Y**\",\"-\")))))","v":"Y**"},{"$f":"IF(OR('Treaty status of each country'!E106=\"X\",'Treaty status of each country'!E106=\"X*\"),\"Y\",\"-\")","v":"-"}]
["Mali",{"$f":"IF(OR('Treaty status of each country'!B107=\"X\", 'Treaty status of each country'!C107=\"X\"), \"Y\", \"\")","v":"Y"},{"$f":"IF(OR('Treaty status of each country'!E107=\"X\",'Treaty status of each country'!E107=\"X*\", COUNTIF('Countries 2016+2021 Order'!C$3:C$15,A107)=1),\"Y\",IF(OR('Treaty status of each country'!F107=\"X\",'Treaty status of each country'!F107=\"X*\"),\"Y*\",IF(OR('Treaty status of each country'!B107=\"X\",'Treaty status of each country'!C107=\"X\"),\"Y**\",\"\")))","v":"Y*"},{"$f":"IF(COUNTIF('Countries 2016+2021 Order'!B$56:B$90,'Rights in UK for each country'!A107)=1,\"Y\",IF(OR('Treaty status of each country'!E107=\"X\",'Treaty status of each country'!E107=\"X*\",COUNTIF('Countries 2016+2021 Order'!B$20:B$52,'Rights in UK for each country'!A107)=1),\"Y*\",IF('Treaty status of each country'!B107=\"X\",\"Y**\",\"-\")))","v":"Y**"},{"$f":"IF(OR(COUNTIF('Countries 2016+2021 Order'!B$93:B$94,'Rights in UK for each country'!A107)=1,'Treaty status of each country'!E107=\"X\"),\"Y\",IF('Treaty status of each country'!E107=\"X*\",\"Y-\",IF('Treaty status of each country'!F107=\"X\",\"Y*\",IF('Treaty status of each country'!F107=\"X*\",\"Y*-\",IF('Treaty status of each country'!B107=\"X\",\"Y**\",\"-\")))))","v":"Y*"},{"$f":"IF(OR('Treaty status of each country'!E107=\"X\",'Treaty status of each country'!E107=\"X*\"),\"Y\",\"-\")","v":"-"}]
["Malta",{"$f":"IF(OR('Treaty status of each country'!B108=\"X\", 'Treaty status of each country'!C108=\"X\"), \"Y\", \"\")","v":"Y"},{"$f":"IF(OR('Treaty status of each country'!E108=\"X\",'Treaty status of each country'!E108=\"X*\", COUNTIF('Countries 2016+2021 Order'!C$3:C$15,A108)=1),\"Y\",IF(OR('Treaty status of each country'!F108=\"X\",'Treaty status of each country'!F108=\"X*\"),\"Y*\",IF(OR('Treaty status of each country'!B108=\"X\",'Treaty status of each country'!C108=\"X\"),\"Y**\",\"\")))","v":"Y*"},{"$f":"IF(COUNTIF('Countries 2016+2021 Order'!B$56:B$90,'Rights in UK for each country'!A108)=1,\"Y\",IF(OR('Treaty status of each country'!E108=\"X\",'Treaty status of each country'!E108=\"X*\",COUNTIF('Countries 2016+2021 Order'!B$20:B$52,'Rights in UK for each country'!A108)=1),\"Y*\",IF('Treaty status of each country'!B108=\"X\",\"Y**\",\"-\")))","v":"Y"},{"$f":"IF(OR(COUNTIF('Countries 2016+2021 Order'!B$93:B$94,'Rights in UK for each country'!A108)=1,'Treaty status of each country'!E108=\"X\"),\"Y\",IF('Treaty status of each country'!E108=\"X*\",\"Y-\",IF('Treaty status of each country'!F108=\"X\",\"Y*\",IF('Treaty status of each country'!F108=\"X*\",\"Y*-\",IF('Treaty status of each country'!B108=\"X\",\"Y**\",\"-\")))))","v":"Y"},{"$f":"IF(OR('Treaty status of each country'!E108=\"X\",'Treaty status of each country'!E108=\"X*\"),\"Y\",\"-\")","v":"-"}]
["Mauritania",{"$f":"IF(OR('Treaty status of each country'!B109=\"X\", 'Treaty status of each country'!C109=\"X\"), \"Y\", \"\")","v":"Y"},{"$f":"IF(OR('Treaty status of each country'!E109=\"X\",'Treaty status of each country'!E109=\"X*\", COUNTIF('Countries 2016+2021 Order'!C$3:C$15,A109)=1),\"Y\",IF(OR('Treaty status of each country'!F109=\"X\",'Treaty status of each country'!F109=\"X*\"),\"Y*\",IF(OR('Treaty status of each country'!B109=\"X\",'Treaty status of each country'!C109=\"X\"),\"Y**\",\"\")))","v":"Y**"},{"$f":"IF(COUNTIF('Countries 2016+2021 Order'!B$56:B$90,'Rights in UK for each country'!A109)=1,\"Y\",IF(OR('Treaty status of each country'!E109=\"X\",'Treaty status of each country'!E109=\"X*\",COUNTIF('Countries 2016+2021 Order'!B$20:B$52,'Rights in UK for each country'!A109)=1),\"Y*\",IF('Treaty status of each country'!B109=\"X\",\"Y**\",\"-\")))","v":"Y**"},{"$f":"IF(OR(COUNTIF('Countries 2016+2021 Order'!B$93:B$94,'Rights in UK for each country'!A109)=1,'Treaty status of each country'!E109=\"X\"),\"Y\",IF('Treaty status of each country'!E109=\"X*\",\"Y-\",IF('Treaty status of each country'!F109=\"X\",\"Y*\",IF('Treaty status of each country'!F109=\"X*\",\"Y*-\",IF('Treaty status of each country'!B109=\"X\",\"Y**\",\"-\")))))","v":"Y**"},{"$f":"IF(OR('Treaty status of each country'!E109=\"X\",'Treaty status of each country'!E109=\"X*\"),\"Y\",\"-\")","v":"-"}]
["Mauritius",{"$f":"IF(OR('Treaty status of each country'!B110=\"X\", 'Treaty status of each country'!C110=\"X\"), \"Y\", \"\")","v":"Y"},{"$f":"IF(OR('Treaty status of each country'!E110=\"X\",'Treaty status of each country'!E110=\"X*\", COUNTIF('Countries 2016+2021 Order'!C$3:C$15,A110)=1),\"Y\",IF(OR('Treaty status of each country'!F110=\"X\",'Treaty status of each country'!F110=\"X*\"),\"Y*\",IF(OR('Treaty status of each country'!B110=\"X\",'Treaty status of each country'!C110=\"X\"),\"Y**\",\"\")))","v":"Y**"},{"$f":"IF(COUNTIF('Countries 2016+2021 Order'!B$56:B$90,'Rights in UK for each country'!A110)=1,\"Y\",IF(OR('Treaty status of each country'!E110=\"X\",'Treaty status of each country'!E110=\"X*\",COUNTIF('Countries 2016+2021 Order'!B$20:B$52,'Rights in UK for each country'!A110)=1),\"Y*\",IF('Treaty status of each country'!B110=\"X\",\"Y**\",\"-\")))","v":"Y**"},{"$f":"IF(OR(COUNTIF('Countries 2016+2021 Order'!B$93:B$94,'Rights in UK for each country'!A110)=1,'Treaty status of each country'!E110=\"X\"),\"Y\",IF('Treaty status of each country'!E110=\"X*\",\"Y-\",IF('Treaty status of each country'!F110=\"X\",\"Y*\",IF('Treaty status of each country'!F110=\"X*\",\"Y*-\",IF('Treaty status of each country'!B110=\"X\",\"Y**\",\"-\")))))","v":"Y**"},{"$f":"IF(OR('Treaty status of each country'!E110=\"X\",'Treaty status of each country'!E110=\"X*\"),\"Y\",\"-\")","v":"-"}]
["Mexico",{"$f":"IF(OR('Treaty status of each country'!B111=\"X\", 'Treaty status of each country'!C111=\"X\"), \"Y\", \"\")","v":"Y"},{"$f":"IF(OR('Treaty status of each country'!E111=\"X\",'Treaty status of each country'!E111=\"X*\", COUNTIF('Countries 2016+2021 Order'!C$3:C$15,A111)=1),\"Y\",IF(OR('Treaty status of each country'!F111=\"X\",'Treaty status of each country'!F111=\"X*\"),\"Y*\",IF(OR('Treaty status of each country'!B111=\"X\",'Treaty status of each country'!C111=\"X\"),\"Y**\",\"\")))","v":"Y"},{"$f":"IF(COUNTIF('Countries 2016+2021 Order'!B$56:B$90,'Rights in UK for each country'!A111)=1,\"Y\",IF(OR('Treaty status of each country'!E111=\"X\",'Treaty status of each country'!E111=\"X*\",COUNTIF('Countries 2016+2021 Order'!B$20:B$52,'Rights in UK for each country'!A111)=1),\"Y*\",IF('Treaty status of each country'!B111=\"X\",\"Y**\",\"-\")))","v":"Y*"},{"$f":"IF(OR(COUNTIF('Countries 2016+2021 Order'!B$93:B$94,'Rights in UK for each country'!A111)=1,'Treaty status of each country'!E111=\"X\"),\"Y\",IF('Treaty status of each country'!E111=\"X*\",\"Y-\",IF('Treaty status of each country'!F111=\"X\",\"Y*\",IF('Treaty status of each country'!F111=\"X*\",\"Y*-\",IF('Treaty status of each country'!B111=\"X\",\"Y**\",\"-\")))))","v":"Y"},{"$f":"IF(OR('Treaty status of each country'!E111=\"X\",'Treaty status of each country'!E111=\"X*\"),\"Y\",\"-\")","v":"Y"}]
["Micronesia (Federated States of)",{"$f":"IF(OR('Treaty status of each country'!B112=\"X\", 'Treaty status of each country'!C112=\"X\"), \"Y\", \"\")","v":"Y"},{"$f":"IF(OR('Treaty status of each country'!E112=\"X\",'Treaty status of each country'!E112=\"X*\", COUNTIF('Countries 2016+2021 Order'!C$3:C$15,A112)=1),\"Y\",IF(OR('Treaty status of each country'!F112=\"X\",'Treaty status of each country'!F112=\"X*\"),\"Y*\",IF(OR('Treaty status of each country'!B112=\"X\",'Treaty status of each country'!C112=\"X\"),\"Y**\",\"\")))","v":"Y**"},{"$f":"IF(COUNTIF('Countries 2016+2021 Order'!B$56:B$90,'Rights in UK for each country'!A112)=1,\"Y\",IF(OR('Treaty status of each country'!E112=\"X\",'Treaty status of each country'!E112=\"X*\",COUNTIF('Countries 2016+2021 Order'!B$20:B$52,'Rights in UK for each country'!A112)=1),\"Y*\",IF('Treaty status of each country'!B112=\"X\",\"Y**\",\"-\")))","v":"-"},{"$f":"IF(OR(COUNTIF('Countries 2016+2021 Order'!B$93:B$94,'Rights in UK for each country'!A112)=1,'Treaty status of each country'!E112=\"X\"),\"Y\",IF('Treaty status of each country'!E112=\"X*\",\"Y-\",IF('Treaty status of each country'!F112=\"X\",\"Y*\",IF('Treaty status of each country'!F112=\"X*\",\"Y*-\",IF('Treaty status of each country'!B112=\"X\",\"Y**\",\"-\")))))","v":"-"},{"$f":"IF(OR('Treaty status of each country'!E112=\"X\",'Treaty status of each country'!E112=\"X*\"),\"Y\",\"-\")","v":"-"}]
["Monaco",{"$f":"IF(OR('Treaty status of each country'!B113=\"X\", 'Treaty status of each country'!C113=\"X\"), \"Y\", \"\")","v":"Y"},{"$f":"IF(OR('Treaty status of each country'!E113=\"X\",'Treaty status of each country'!E113=\"X*\", COUNTIF('Countries 2016+2021 Order'!C$3:C$15,A113)=1),\"Y\",IF(OR('Treaty status of each country'!F113=\"X\",'Treaty status of each country'!F113=\"X*\"),\"Y*\",IF(OR('Treaty status of each country'!B113=\"X\",'Treaty status of each country'!C113=\"X\"),\"Y**\",\"\")))","v":"Y"},{"$f":"IF(COUNTIF('Countries 2016+2021 Order'!B$56:B$90,'Rights in UK for each country'!A113)=1,\"Y\",IF(OR('Treaty status of each country'!E113=\"X\",'Treaty status of each country'!E113=\"X*\",COUNTIF('Countries 2016+2021 Order'!B$20:B$52,'Rights in UK for each country'!A113)=1),\"Y*\",IF('Treaty status of each country'!B113=\"X\",\"Y**\",\"-\")))","v":"Y*"},{"$f":"IF(OR(COUNTIF('Countries 2016+2021 Order'!B$93:B$94,'Rights in UK for each country'!A113)=1,'Treaty status of each country'!E113=\"X\"),\"Y\",IF('Treaty status of each country'!E113=\"X*\",\"Y-\",IF('Treaty status of each country'!F113=\"X\",\"Y*\",IF('Treaty status of each country'!F113=\"X*\",\"Y*-\",IF('Treaty status of each country'!B113=\"X\",\"Y**\",\"-\")))))","v":"Y-"},{"$f":"IF(OR('Treaty status of each country'!E113=\"X\",'Treaty status of each country'!E113=\"X*\"),\"Y\",\"-\")","v":"Y"}]
["Mongolia",{"$f":"IF(OR('Treaty status of each country'!B114=\"X\", 'Treaty status of each country'!C114=\"X\"), \"Y\", \"\")","v":"Y"},{"$f":"IF(OR('Treaty status of each country'!E114=\"X\",'Treaty status of each country'!E114=\"X*\", COUNTIF('Countries 2016+2021 Order'!C$3:C$15,A114)=1),\"Y\",IF(OR('Treaty status of each country'!F114=\"X\",'Treaty status of each country'!F114=\"X*\"),\"Y*\",IF(OR('Treaty status of each country'!B114=\"X\",'Treaty status of each country'!C114=\"X\"),\"Y**\",\"\")))","v":"Y*"},{"$f":"IF(COUNTIF('Countries 2016+2021 Order'!B$56:B$90,'Rights in UK for each country'!A114)=1,\"Y\",IF(OR('Treaty status of each country'!E114=\"X\",'Treaty status of each country'!E114=\"X*\",COUNTIF('Countries 2016+2021 Order'!B$20:B$52,'Rights in UK for each country'!A114)=1),\"Y*\",IF('Treaty status of each country'!B114=\"X\",\"Y**\",\"-\")))","v":"Y**"},{"$f":"IF(OR(COUNTIF('Countries 2016+2021 Order'!B$93:B$94,'Rights in UK for each country'!A114)=1,'Treaty status of each country'!E114=\"X\"),\"Y\",IF('Treaty status of each country'!E114=\"X*\",\"Y-\",IF('Treaty status of each country'!F114=\"X\",\"Y*\",IF('Treaty status of each country'!F114=\"X*\",\"Y*-\",IF('Treaty status of each country'!B114=\"X\",\"Y**\",\"-\")))))","v":"Y*"},{"$f":"IF(OR('Treaty status of each country'!E114=\"X\",'Treaty status of each country'!E114=\"X*\"),\"Y\",\"-\")","v":"-"}]
["Montenegro",{"$f":"IF(OR('Treaty status of each country'!B115=\"X\", 'Treaty status of each country'!C115=\"X\"), \"Y\", \"\")","v":"Y"},{"$f":"IF(OR('Treaty status of each country'!E115=\"X\",'Treaty status of each country'!E115=\"X*\", COUNTIF('Countries 2016+2021 Order'!C$3:C$15,A115)=1),\"Y\",IF(OR('Treaty status of each country'!F115=\"X\",'Treaty status of each country'!F115=\"X*\"),\"Y*\",IF(OR('Treaty status of each country'!B115=\"X\",'Treaty status of each country'!C115=\"X\"),\"Y**\",\"\")))","v":"Y"},{"$f":"IF(COUNTIF('Countries 2016+2021 Order'!B$56:B$90,'Rights in UK for each country'!A115)=1,\"Y\",IF(OR('Treaty status of each country'!E115=\"X\",'Treaty status of each country'!E115=\"X*\",COUNTIF('Countries 2016+2021 Order'!B$20:B$52,'Rights in UK for each country'!A115)=1),\"Y*\",IF('Treaty status of each country'!B115=\"X\",\"Y**\",\"-\")))","v":"Y*"},{"$f":"IF(OR(COUNTIF('Countries 2016+2021 Order'!B$93:B$94,'Rights in UK for each country'!A115)=1,'Treaty status of each country'!E115=\"X\"),\"Y\",IF('Treaty status of each country'!E115=\"X*\",\"Y-\",IF('Treaty status of each country'!F115=\"X\",\"Y*\",IF('Treaty status of each country'!F115=\"X*\",\"Y*-\",IF('Treaty status of each country'!B115=\"X\",\"Y**\",\"-\")))))","v":"Y"},{"$f":"IF(OR('Treaty status of each country'!E115=\"X\",'Treaty status of each country'!E115=\"X*\"),\"Y\",\"-\")","v":"Y"}]
["Morocco",{"$f":"IF(OR('Treaty status of each country'!B116=\"X\", 'Treaty status of each country'!C116=\"X\"), \"Y\", \"\")","v":"Y"},{"$f":"IF(OR('Treaty status of each country'!E116=\"X\",'Treaty status of each country'!E116=\"X*\", COUNTIF('Countries 2016+2021 Order'!C$3:C$15,A116)=1),\"Y\",IF(OR('Treaty status of each country'!F116=\"X\",'Treaty status of each country'!F116=\"X*\"),\"Y*\",IF(OR('Treaty status of each country'!B116=\"X\",'Treaty status of each country'!C116=\"X\"),\"Y**\",\"\")))","v":"Y*"},{"$f":"IF(COUNTIF('Countries 2016+2021 Order'!B$56:B$90,'Rights in UK for each country'!A116)=1,\"Y\",IF(OR('Treaty status of each country'!E116=\"X\",'Treaty status of each country'!E116=\"X*\",COUNTIF('Countries 2016+2021 Order'!B$20:B$52,'Rights in UK for each country'!A116)=1),\"Y*\",IF('Treaty status of each country'!B116=\"X\",\"Y**\",\"-\")))","v":"Y**"},{"$f":"IF(OR(COUNTIF('Countries 2016+2021 Order'!B$93:B$94,'Rights in UK for each country'!A116)=1,'Treaty status of each country'!E116=\"X\"),\"Y\",IF('Treaty status of each country'!E116=\"X*\",\"Y-\",IF('Treaty status of each country'!F116=\"X\",\"Y*\",IF('Treaty status of each country'!F116=\"X*\",\"Y*-\",IF('Treaty status of each country'!B116=\"X\",\"Y**\",\"-\")))))","v":"Y*"},{"$f":"IF(OR('Treaty status of each country'!E116=\"X\",'Treaty status of each country'!E116=\"X*\"),\"Y\",\"-\")","v":"-"}]
["Mozambique",{"$f":"IF(OR('Treaty status of each country'!B117=\"X\", 'Treaty status of each country'!C117=\"X\"), \"Y\", \"\")","v":"Y"},{"$f":"IF(OR('Treaty status of each country'!E117=\"X\",'Treaty status of each country'!E117=\"X*\", COUNTIF('Countries 2016+2021 Order'!C$3:C$15,A117)=1),\"Y\",IF(OR('Treaty status of each country'!F117=\"X\",'Treaty status of each country'!F117=\"X*\"),\"Y*\",IF(OR('Treaty status of each country'!B117=\"X\",'Treaty status of each country'!C117=\"X\"),\"Y**\",\"\")))","v":"Y**"},{"$f":"IF(COUNTIF('Countries 2016+2021 Order'!B$56:B$90,'Rights in UK for each country'!A117)=1,\"Y\",IF(OR('Treaty status of each country'!E117=\"X\",'Treaty status of each country'!E117=\"X*\",COUNTIF('Countries 2016+2021 Order'!B$20:B$52,'Rights in UK for each country'!A117)=1),\"Y*\",IF('Treaty status of each country'!B117=\"X\",\"Y**\",\"-\")))","v":"Y**"},{"$f":"IF(OR(COUNTIF('Countries 2016+2021 Order'!B$93:B$94,'Rights in UK for each country'!A117)=1,'Treaty status of each country'!E117=\"X\"),\"Y\",IF('Treaty status of each country'!E117=\"X*\",\"Y-\",IF('Treaty status of each country'!F117=\"X\",\"Y*\",IF('Treaty status of each country'!F117=\"X*\",\"Y*-\",IF('Treaty status of each country'!B117=\"X\",\"Y**\",\"-\")))))","v":"Y**"},{"$f":"IF(OR('Treaty status of each country'!E117=\"X\",'Treaty status of each country'!E117=\"X*\"),\"Y\",\"-\")","v":"-"}]
["Myanmar",{"$f":"IF(OR('Treaty status of each country'!B118=\"X\", 'Treaty status of each country'!C118=\"X\"), \"Y\", \"\")","v":"Y"},{"$f":"IF(OR('Treaty status of each country'!E118=\"X\",'Treaty status of each country'!E118=\"X*\", COUNTIF('Countries 2016+2021 Order'!C$3:C$15,A118)=1),\"Y\",IF(OR('Treaty status of each country'!F118=\"X\",'Treaty status of each country'!F118=\"X*\"),\"Y*\",IF(OR('Treaty status of each country'!B118=\"X\",'Treaty status of each country'!C118=\"X\"),\"Y**\",\"\")))","v":"Y**"},{"$f":"IF(COUNTIF('Countries 2016+2021 Order'!B$56:B$90,'Rights in UK for each country'!A118)=1,\"Y\",IF(OR('Treaty status of each country'!E118=\"X\",'Treaty status of each country'!E118=\"X*\",COUNTIF('Countries 2016+2021 Order'!B$20:B$52,'Rights in UK for each country'!A118)=1),\"Y*\",IF('Treaty status of each country'!B118=\"X\",\"Y**\",\"-\")))","v":"Y**"},{"$f":"IF(OR(COUNTIF('Countries 2016+2021 Order'!B$93:B$94,'Rights in UK for each country'!A118)=1,'Treaty status of each country'!E118=\"X\"),\"Y\",IF('Treaty status of each country'!E118=\"X*\",\"Y-\",IF('Treaty status of each country'!F118=\"X\",\"Y*\",IF('Treaty status of each country'!F118=\"X*\",\"Y*-\",IF('Treaty status of each country'!B118=\"X\",\"Y**\",\"-\")))))","v":"Y**"},{"$f":"IF(OR('Treaty status of each country'!E118=\"X\",'Treaty status of each country'!E118=\"X*\"),\"Y\",\"-\")","v":"-"}]
["Namibia",{"$f":"IF(OR('Treaty status of each country'!B119=\"X\", 'Treaty status of each country'!C119=\"X\"), \"Y\", \"\")","v":"Y"},{"$f":"IF(OR('Treaty status of each country'!E119=\"X\",'Treaty status of each country'!E119=\"X*\", COUNTIF('Countries 2016+2021 Order'!C$3:C$15,A119)=1),\"Y\",IF(OR('Treaty status of each country'!F119=\"X\",'Treaty status of each country'!F119=\"X*\"),\"Y*\",IF(OR('Treaty status of each country'!B119=\"X\",'Treaty status of each country'!C119=\"X\"),\"Y**\",\"\")))","v":"Y**"},{"$f":"IF(COUNTIF('Countries 2016+2021 Order'!B$56:B$90,'Rights in UK for each country'!A119)=1,\"Y\",IF(OR('Treaty status of each country'!E119=\"X\",'Treaty status of each country'!E119=\"X*\",COUNTIF('Countries 2016+2021 Order'!B$20:B$52,'Rights in UK for each country'!A119)=1),\"Y*\",IF('Treaty status of each country'!B119=\"X\",\"Y**\",\"-\")))","v":"Y**"},{"$f":"IF(OR(COUNTIF('Countries 2016+2021 Order'!B$93:B$94,'Rights in UK for each country'!A119)=1,'Treaty status of each country'!E119=\"X\"),\"Y\",IF('Treaty status of each country'!E119=\"X*\",\"Y-\",IF('Treaty status of each country'!F119=\"X\",\"Y*\",IF('Treaty status of each country'!F119=\"X*\",\"Y*-\",IF('Treaty status of each country'!B119=\"X\",\"Y**\",\"-\")))))","v":"Y**"},{"$f":"IF(OR('Treaty status of each country'!E119=\"X\",'Treaty status of each country'!E119=\"X*\"),\"Y\",\"-\")","v":"-"}]
["Nauru",{"$f":"IF(OR('Treaty status of each country'!B120=\"X\", 'Treaty status of each country'!C120=\"X\"), \"Y\", \"\")","v":"Y"},{"$f":"IF(OR('Treaty status of each country'!E120=\"X\",'Treaty status of each country'!E120=\"X*\", COUNTIF('Countries 2016+2021 Order'!C$3:C$15,A120)=1),\"Y\",IF(OR('Treaty status of each country'!F120=\"X\",'Treaty status of each country'!F120=\"X*\"),\"Y*\",IF(OR('Treaty status of each country'!B120=\"X\",'Treaty status of each country'!C120=\"X\"),\"Y**\",\"\")))","v":"Y**"},{"$f":"IF(COUNTIF('Countries 2016+2021 Order'!B$56:B$90,'Rights in UK for each country'!A120)=1,\"Y\",IF(OR('Treaty status of each country'!E120=\"X\",'Treaty status of each country'!E120=\"X*\",COUNTIF('Countries 2016+2021 Order'!B$20:B$52,'Rights in UK for each country'!A120)=1),\"Y*\",IF('Treaty status of each country'!B120=\"X\",\"Y**\",\"-\")))","v":"-"},{"$f":"IF(OR(COUNTIF('Countries 2016+2021 Order'!B$93:B$94,'Rights in UK for each country'!A120)=1,'Treaty status of each country'!E120=\"X\"),\"Y\",IF('Treaty status of each country'!E120=\"X*\",\"Y-\",IF('Treaty status of each country'!F120=\"X\",\"Y*\",IF('Treaty status of each country'!F120=\"X*\",\"Y*-\",IF('Treaty status of each country'!B120=\"X\",\"Y**\",\"-\")))))","v":"-"},{"$f":"IF(OR('Treaty status of each country'!E120=\"X\",'Treaty status of each country'!E120=\"X*\"),\"Y\",\"-\")","v":"-"}]
["Nepal",{"$f":"IF(OR('Treaty status of each country'!B121=\"X\", 'Treaty status of each country'!C121=\"X\"), \"Y\", \"\")","v":"Y"},{"$f":"IF(OR('Treaty status of each country'!E121=\"X\",'Treaty status of each country'!E121=\"X*\", COUNTIF('Countries 2016+2021 Order'!C$3:C$15,A121)=1),\"Y\",IF(OR('Treaty status of each country'!F121=\"X\",'Treaty status of each country'!F121=\"X*\"),\"Y*\",IF(OR('Treaty status of each country'!B121=\"X\",'Treaty status of each country'!C121=\"X\"),\"Y**\",\"\")))","v":"Y**"},{"$f":"IF(COUNTIF('Countries 2016+2021 Order'!B$56:B$90,'Rights in UK for each country'!A121)=1,\"Y\",IF(OR('Treaty status of each country'!E121=\"X\",'Treaty status of each country'!E121=\"X*\",COUNTIF('Countries 2016+2021 Order'!B$20:B$52,'Rights in UK for each country'!A121)=1),\"Y*\",IF('Treaty status of each country'!B121=\"X\",\"Y**\",\"-\")))","v":"Y**"},{"$f":"IF(OR(COUNTIF('Countries 2016+2021 Order'!B$93:B$94,'Rights in UK for each country'!A121)=1,'Treaty status of each country'!E121=\"X\"),\"Y\",IF('Treaty status of each country'!E121=\"X*\",\"Y-\",IF('Treaty status of each country'!F121=\"X\",\"Y*\",IF('Treaty status of each country'!F121=\"X*\",\"Y*-\",IF('Treaty status of each country'!B121=\"X\",\"Y**\",\"-\")))))","v":"Y**"},{"$f":"IF(OR('Treaty status of each country'!E121=\"X\",'Treaty status of each country'!E121=\"X*\"),\"Y\",\"-\")","v":"-"}]
["Netherlands",{"$f":"IF(OR('Treaty status of each country'!B122=\"X\", 'Treaty status of each country'!C122=\"X\"), \"Y\", \"\")","v":"Y"},{"$f":"IF(OR('Treaty status of each country'!E122=\"X\",'Treaty status of each country'!E122=\"X*\", COUNTIF('Countries 2016+2021 Order'!C$3:C$15,A122)=1),\"Y\",IF(OR('Treaty status of each country'!F122=\"X\",'Treaty status of each country'!F122=\"X*\"),\"Y*\",IF(OR('Treaty status of each country'!B122=\"X\",'Treaty status of each country'!C122=\"X\"),\"Y**\",\"\")))","v":"Y"},{"$f":"IF(COUNTIF('Countries 2016+2021 Order'!B$56:B$90,'Rights in UK for each country'!A122)=1,\"Y\",IF(OR('Treaty status of each country'!E122=\"X\",'Treaty status of each country'!E122=\"X*\",COUNTIF('Countries 2016+2021 Order'!B$20:B$52,'Rights in UK for each country'!A122)=1),\"Y*\",IF('Treaty status of each country'!B122=\"X\",\"Y**\",\"-\")))","v":"Y"},{"$f":"IF(OR(COUNTIF('Countries 2016+2021 Order'!B$93:B$94,'Rights in UK for each country'!A122)=1,'Treaty status of each country'!E122=\"X\"),\"Y\",IF('Treaty status of each country'!E122=\"X*\",\"Y-\",IF('Treaty status of each country'!F122=\"X\",\"Y*\",IF('Treaty status of each country'!F122=\"X*\",\"Y*-\",IF('Treaty status of each country'!B122=\"X\",\"Y**\",\"-\")))))","v":"Y"},{"$f":"IF(OR('Treaty status of each country'!E122=\"X\",'Treaty status of each country'!E122=\"X*\"),\"Y\",\"-\")","v":"Y"}]
["New Zealand",{"$f":"IF(OR('Treaty status of each country'!B123=\"X\", 'Treaty status of each country'!C123=\"X\"), \"Y\", \"\")","v":"Y"},{"$f":"IF(OR('Treaty status of each country'!E123=\"X\",'Treaty status of each country'!E123=\"X*\", COUNTIF('Countries 2016+2021 Order'!C$3:C$15,A123)=1),\"Y\",IF(OR('Treaty status of each country'!F123=\"X\",'Treaty status of each country'!F123=\"X*\"),\"Y*\",IF(OR('Treaty status of each country'!B123=\"X\",'Treaty status of each country'!C123=\"X\"),\"Y**\",\"\")))","v":"Y*"},{"$f":"IF(COUNTIF('Countries 2016+2021 Order'!B$56:B$90,'Rights in UK for each country'!A123)=1,\"Y\",IF(OR('Treaty status of each country'!E123=\"X\",'Treaty status of each country'!E123=\"X*\",COUNTIF('Countries 2016+2021 Order'!B$20:B$52,'Rights in UK for each country'!A123)=1),\"Y*\",IF('Treaty status of each country'!B123=\"X\",\"Y**\",\"-\")))","v":"Y"},{"$f":"IF(OR(COUNTIF('Countries 2016+2021 Order'!B$93:B$94,'Rights in UK for each country'!A123)=1,'Treaty status of each country'!E123=\"X\"),\"Y\",IF('Treaty status of each country'!E123=\"X*\",\"Y-\",IF('Treaty status of each country'!F123=\"X\",\"Y*\",IF('Treaty status of each country'!F123=\"X*\",\"Y*-\",IF('Treaty status of each country'!B123=\"X\",\"Y**\",\"-\")))))","v":"Y*-"},{"$f":"IF(OR('Treaty status of each country'!E123=\"X\",'Treaty status of each country'!E123=\"X*\"),\"Y\",\"-\")","v":"-"}]
["Nicaragua",{"$f":"IF(OR('Treaty status of each country'!B124=\"X\", 'Treaty status of each country'!C124=\"X\"), \"Y\", \"\")","v":"Y"},{"$f":"IF(OR('Treaty status of each country'!E124=\"X\",'Treaty status of each country'!E124=\"X*\", COUNTIF('Countries 2016+2021 Order'!C$3:C$15,A124)=1),\"Y\",IF(OR('Treaty status of each country'!F124=\"X\",'Treaty status of each country'!F124=\"X*\"),\"Y*\",IF(OR('Treaty status of each country'!B124=\"X\",'Treaty status of each country'!C124=\"X\"),\"Y**\",\"\")))","v":"Y"},{"$f":"IF(COUNTIF('Countries 2016+2021 Order'!B$56:B$90,'Rights in UK for each country'!A124)=1,\"Y\",IF(OR('Treaty status of each country'!E124=\"X\",'Treaty status of each country'!E124=\"X*\",COUNTIF('Countries 2016+2021 Order'!B$20:B$52,'Rights in UK for each country'!A124)=1),\"Y*\",IF('Treaty status of each country'!B124=\"X\",\"Y**\",\"-\")))","v":"Y*"},{"$f":"IF(OR(COUNTIF('Countries 2016+2021 Order'!B$93:B$94,'Rights in UK for each country'!A124)=1,'Treaty status of each country'!E124=\"X\"),\"Y\",IF('Treaty status of each country'!E124=\"X*\",\"Y-\",IF('Treaty status of each country'!F124=\"X\",\"Y*\",IF('Treaty status of each country'!F124=\"X*\",\"Y*-\",IF('Treaty status of each country'!B124=\"X\",\"Y**\",\"-\")))))","v":"Y"},{"$f":"IF(OR('Treaty status of each country'!E124=\"X\",'Treaty status of each country'!E124=\"X*\"),\"Y\",\"-\")","v":"Y"}]
["Niger",{"$f":"IF(OR('Treaty status of each country'!B125=\"X\", 'Treaty status of each country'!C125=\"X\"), \"Y\", \"\")","v":"Y"},{"$f":"IF(OR('Treaty status of each country'!E125=\"X\",'Treaty status of each country'!E125=\"X*\", COUNTIF('Countries 2016+2021 Order'!C$3:C$15,A125)=1),\"Y\",IF(OR('Treaty status of each country'!F125=\"X\",'Treaty status of each country'!F125=\"X*\"),\"Y*\",IF(OR('Treaty status of each country'!B125=\"X\",'Treaty status of each country'!C125=\"X\"),\"Y**\",\"\")))","v":"Y"},{"$f":"IF(COUNTIF('Countries 2016+2021 Order'!B$56:B$90,'Rights in UK for each country'!A125)=1,\"Y\",IF(OR('Treaty status of each country'!E125=\"X\",'Treaty status of each country'!E125=\"X*\",COUNTIF('Countries 2016+2021 Order'!B$20:B$52,'Rights in UK for each country'!A125)=1),\"Y*\",IF('Treaty status of each country'!B125=\"X\",\"Y**\",\"-\")))","v":"Y*"},{"$f":"IF(OR(COUNTIF('Countries 2016+2021 Order'!B$93:B$94,'Rights in UK for each country'!A125)=1,'Treaty status of each country'!E125=\"X\"),\"Y\",IF('Treaty status of each country'!E125=\"X*\",\"Y-\",IF('Treaty status of each country'!F125=\"X\",\"Y*\",IF('Treaty status of each country'!F125=\"X*\",\"Y*-\",IF('Treaty status of each country'!B125=\"X\",\"Y**\",\"-\")))))","v":"Y-"},{"$f":"IF(OR('Treaty status of each country'!E125=\"X\",'Treaty status of each country'!E125=\"X*\"),\"Y\",\"-\")","v":"Y"}]
["Nigeria",{"$f":"IF(OR('Treaty status of each country'!B126=\"X\", 'Treaty status of each country'!C126=\"X\"), \"Y\", \"\")","v":"Y"},{"$f":"IF(OR('Treaty status of each country'!E126=\"X\",'Treaty status of each country'!E126=\"X*\", COUNTIF('Countries 2016+2021 Order'!C$3:C$15,A126)=1),\"Y\",IF(OR('Treaty status of each country'!F126=\"X\",'Treaty status of each country'!F126=\"X*\"),\"Y*\",IF(OR('Treaty status of each country'!B126=\"X\",'Treaty status of each country'!C126=\"X\"),\"Y**\",\"\")))","v":"Y*"},{"$f":"IF(COUNTIF('Countries 2016+2021 Order'!B$56:B$90,'Rights in UK for each country'!A126)=1,\"Y\",IF(OR('Treaty status of each country'!E126=\"X\",'Treaty status of each country'!E126=\"X*\",COUNTIF('Countries 2016+2021 Order'!B$20:B$52,'Rights in UK for each country'!A126)=1),\"Y*\",IF('Treaty status of each country'!B126=\"X\",\"Y**\",\"-\")))","v":"Y**"},{"$f":"IF(OR(COUNTIF('Countries 2016+2021 Order'!B$93:B$94,'Rights in UK for each country'!A126)=1,'Treaty status of each country'!E126=\"X\"),\"Y\",IF('Treaty status of each country'!E126=\"X*\",\"Y-\",IF('Treaty status of each country'!F126=\"X\",\"Y*\",IF('Treaty status of each country'!F126=\"X*\",\"Y*-\",IF('Treaty status of each country'!B126=\"X\",\"Y**\",\"-\")))))","v":"Y*"},{"$f":"IF(OR('Treaty status of each country'!E126=\"X\",'Treaty status of each country'!E126=\"X*\"),\"Y\",\"-\")","v":"-"}]
["Niue",{"$f":"IF(OR('Treaty status of each country'!B127=\"X\", 'Treaty status of each country'!C127=\"X\"), \"Y\", \"\")","v":"Y"},{"$f":"IF(OR('Treaty status of each country'!E127=\"X\",'Treaty status of each country'!E127=\"X*\", COUNTIF('Countries 2016+2021 Order'!C$3:C$15,A127)=1),\"Y\",IF(OR('Treaty status of each country'!F127=\"X\",'Treaty status of each country'!F127=\"X*\"),\"Y*\",IF(OR('Treaty status of each country'!B127=\"X\",'Treaty status of each country'!C127=\"X\"),\"Y**\",\"\")))","v":"Y**"},{"$f":"IF(COUNTIF('Countries 2016+2021 Order'!B$56:B$90,'Rights in UK for each country'!A127)=1,\"Y\",IF(OR('Treaty status of each country'!E127=\"X\",'Treaty status of each country'!E127=\"X*\",COUNTIF('Countries 2016+2021 Order'!B$20:B$52,'Rights in UK for each country'!A127)=1),\"Y*\",IF('Treaty status of each country'!B127=\"X\",\"Y**\",\"-\")))","v":"-"},{"$f":"IF(OR(COUNTIF('Countries 2016+2021 Order'!B$93:B$94,'Rights in UK for each country'!A127)=1,'Treaty status of each country'!E127=\"X\"),\"Y\",IF('Treaty status of each country'!E127=\"X*\",\"Y-\",IF('Treaty status of each country'!F127=\"X\",\"Y*\",IF('Treaty status of each country'!F127=\"X*\",\"Y*-\",IF('Treaty status of each country'!B127=\"X\",\"Y**\",\"-\")))))","v":"-"},{"$f":"IF(OR('Treaty status of each country'!E127=\"X\",'Treaty status of each country'!E127=\"X*\"),\"Y\",\"-\")","v":"-"}]
["North Macedonia",{"$f":"IF(OR('Treaty status of each country'!B128=\"X\", 'Treaty status of each country'!C128=\"X\"), \"Y\", \"\")","v":"Y"},{"$f":"IF(OR('Treaty status of each country'!E128=\"X\",'Treaty status of each country'!E128=\"X*\", COUNTIF('Countries 2016+2021 Order'!C$3:C$15,A128)=1),\"Y\",IF(OR('Treaty status of each country'!F128=\"X\",'Treaty status of each country'!F128=\"X*\"),\"Y*\",IF(OR('Treaty status of each country'!B128=\"X\",'Treaty status of each country'!C128=\"X\"),\"Y**\",\"\")))","v":"Y"},{"$f":"IF(COUNTIF('Countries 2016+2021 Order'!B$56:B$90,'Rights in UK for each country'!A128)=1,\"Y\",IF(OR('Treaty status of each country'!E128=\"X\",'Treaty status of each country'!E128=\"X*\",COUNTIF('Countries 2016+2021 Order'!B$20:B$52,'Rights in UK for each country'!A128)=1),\"Y*\",IF('Treaty status of each country'!B128=\"X\",\"Y**\",\"-\")))","v":"Y*"},{"$f":"IF(OR(COUNTIF('Countries 2016+2021 Order'!B$93:B$94,'Rights in UK for each country'!A128)=1,'Treaty status of each country'!E128=\"X\"),\"Y\",IF('Treaty status of each country'!E128=\"X*\",\"Y-\",IF('Treaty status of each country'!F128=\"X\",\"Y*\",IF('Treaty status of each country'!F128=\"X*\",\"Y*-\",IF('Treaty status of each country'!B128=\"X\",\"Y**\",\"-\")))))","v":"Y-"},{"$f":"IF(OR('Treaty status of each country'!E128=\"X\",'Treaty status of each country'!E128=\"X*\"),\"Y\",\"-\")","v":"Y"}]
["Norway",{"$f":"IF(OR('Treaty status of each country'!B129=\"X\", 'Treaty status of each country'!C129=\"X\"), \"Y\", \"\")","v":"Y"},{"$f":"IF(OR('Treaty status of each country'!E129=\"X\",'Treaty status of each country'!E129=\"X*\", COUNTIF('Countries 2016+2021 Order'!C$3:C$15,A129)=1),\"Y\",IF(OR('Treaty status of each country'!F129=\"X\",'Treaty status of each country'!F129=\"X*\"),\"Y*\",IF(OR('Treaty status of each country'!B129=\"X\",'Treaty status of each country'!C129=\"X\"),\"Y**\",\"\")))","v":"Y"},{"$f":"IF(COUNTIF('Countries 2016+2021 Order'!B$56:B$90,'Rights in UK for each country'!A129)=1,\"Y\",IF(OR('Treaty status of each country'!E129=\"X\",'Treaty status of each country'!E129=\"X*\",COUNTIF('Countries 2016+2021 Order'!B$20:B$52,'Rights in UK for each country'!A129)=1),\"Y*\",IF('Treaty status of each country'!B129=\"X\",\"Y**\",\"-\")))","v":"Y*"},{"$f":"IF(OR(COUNTIF('Countries 2016+2021 Order'!B$93:B$94,'Rights in UK for each country'!A129)=1,'Treaty status of each country'!E129=\"X\"),\"Y\",IF('Treaty status of each country'!E129=\"X*\",\"Y-\",IF('Treaty status of each country'!F129=\"X\",\"Y*\",IF('Treaty status of each country'!F129=\"X*\",\"Y*-\",IF('Treaty status of each country'!B129=\"X\",\"Y**\",\"-\")))))","v":"Y"},{"$f":"IF(OR('Treaty status of each country'!E129=\"X\",'Treaty status of each country'!E129=\"X*\"),\"Y\",\"-\")","v":"Y"}]
["Oman",{"$f":"IF(OR('Treaty status of each country'!B130=\"X\", 'Treaty status of each country'!C130=\"X\"), \"Y\", \"\")","v":"Y"},{"$f":"IF(OR('Treaty status of each country'!E130=\"X\",'Treaty status of each country'!E130=\"X*\", COUNTIF('Countries 2016+2021 Order'!C$3:C$15,A130)=1),\"Y\",IF(OR('Treaty status of each country'!F130=\"X\",'Treaty status of each country'!F130=\"X*\"),\"Y*\",IF(OR('Treaty status of each country'!B130=\"X\",'Treaty status of each country'!C130=\"X\"),\"Y**\",\"\")))","v":"Y*"},{"$f":"IF(COUNTIF('Countries 2016+2021 Order'!B$56:B$90,'Rights in UK for each country'!A130)=1,\"Y\",IF(OR('Treaty status of each country'!E130=\"X\",'Treaty status of each country'!E130=\"X*\",COUNTIF('Countries 2016+2021 Order'!B$20:B$52,'Rights in UK for each country'!A130)=1),\"Y*\",IF('Treaty status of each country'!B130=\"X\",\"Y**\",\"-\")))","v":"Y**"},{"$f":"IF(OR(COUNTIF('Countries 2016+2021 Order'!B$93:B$94,'Rights in UK for each country'!A130)=1,'Treaty status of each country'!E130=\"X\"),\"Y\",IF('Treaty status of each country'!E130=\"X*\",\"Y-\",IF('Treaty status of each country'!F130=\"X\",\"Y*\",IF('Treaty status of each country'!F130=\"X*\",\"Y*-\",IF('Treaty status of each country'!B130=\"X\",\"Y**\",\"-\")))))","v":"Y*"},{"$f":"IF(OR('Treaty status of each country'!E130=\"X\",'Treaty status of each country'!E130=\"X*\"),\"Y\",\"-\")","v":"-"}]
["Pakistan",{"$f":"IF(OR('Treaty status of each country'!B131=\"X\", 'Treaty status of each country'!C131=\"X\"), \"Y\", \"\")","v":"Y"},{"$f":"IF(OR('Treaty status of each country'!E131=\"X\",'Treaty status of each country'!E131=\"X*\", COUNTIF('Countries 2016+2021 Order'!C$3:C$15,A131)=1),\"Y\",IF(OR('Treaty status of each country'!F131=\"X\",'Treaty status of each country'!F131=\"X*\"),\"Y*\",IF(OR('Treaty status of each country'!B131=\"X\",'Treaty status of each country'!C131=\"X\"),\"Y**\",\"\")))","v":"Y**"},{"$f":"IF(COUNTIF('Countries 2016+2021 Order'!B$56:B$90,'Rights in UK for each country'!A131)=1,\"Y\",IF(OR('Treaty status of each country'!E131=\"X\",'Treaty status of each country'!E131=\"X*\",COUNTIF('Countries 2016+2021 Order'!B$20:B$52,'Rights in UK for each country'!A131)=1),\"Y*\",IF('Treaty status of each country'!B131=\"X\",\"Y**\",\"-\")))","v":"Y**"},{"$f":"IF(OR(COUNTIF('Countries 2016+2021 Order'!B$93:B$94,'Rights in UK for each country'!A131)=1,'Treaty status of each country'!E131=\"X\"),\"Y\",IF('Treaty status of each country'!E131=\"X*\",\"Y-\",IF('Treaty status of each country'!F131=\"X\",\"Y*\",IF('Treaty status of each country'!F131=\"X*\",\"Y*-\",IF('Treaty status of each country'!B131=\"X\",\"Y**\",\"-\")))))","v":"Y**"},{"$f":"IF(OR('Treaty status of each country'!E131=\"X\",'Treaty status of each country'!E131=\"X*\"),\"Y\",\"-\")","v":"-"}]
["Panama",{"$f":"IF(OR('Treaty status of each country'!B132=\"X\", 'Treaty status of each country'!C132=\"X\"), \"Y\", \"\")","v":"Y"},{"$f":"IF(OR('Treaty status of each country'!E132=\"X\",'Treaty status of each country'!E132=\"X*\", COUNTIF('Countries 2016+2021 Order'!C$3:C$15,A132)=1),\"Y\",IF(OR('Treaty status of each country'!F132=\"X\",'Treaty status of each country'!F132=\"X*\"),\"Y*\",IF(OR('Treaty status of each country'!B132=\"X\",'Treaty status of each country'!C132=\"X\"),\"Y**\",\"\")))","v":"Y"},{"$f":"IF(COUNTIF('Countries 2016+2021 Order'!B$56:B$90,'Rights in UK for each country'!A132)=1,\"Y\",IF(OR('Treaty status of each country'!E132=\"X\",'Treaty status of each country'!E132=\"X*\",COUNTIF('Countries 2016+2021 Order'!B$20:B$52,'Rights in UK for each country'!A132)=1),\"Y*\",IF('Treaty status of each country'!B132=\"X\",\"Y**\",\"-\")))","v":"Y*"},{"$f":"IF(OR(COUNTIF('Countries 2016+2021 Order'!B$93:B$94,'Rights in UK for each country'!A132)=1,'Treaty status of each country'!E132=\"X\"),\"Y\",IF('Treaty status of each country'!E132=\"X*\",\"Y-\",IF('Treaty status of each country'!F132=\"X\",\"Y*\",IF('Treaty status of each country'!F132=\"X*\",\"Y*-\",IF('Treaty status of each country'!B132=\"X\",\"Y**\",\"-\")))))","v":"Y"},{"$f":"IF(OR('Treaty status of each country'!E132=\"X\",'Treaty status of each country'!E132=\"X*\"),\"Y\",\"-\")","v":"Y"}]
["Papua New Guinea",{"$f":"IF(OR('Treaty status of each country'!B133=\"X\", 'Treaty status of each country'!C133=\"X\"), \"Y\", \"\")","v":"Y"},{"$f":"IF(OR('Treaty status of each country'!E133=\"X\",'Treaty status of each country'!E133=\"X*\", COUNTIF('Countries 2016+2021 Order'!C$3:C$15,A133)=1),\"Y\",IF(OR('Treaty status of each country'!F133=\"X\",'Treaty status of each country'!F133=\"X*\"),\"Y*\",IF(OR('Treaty status of each country'!B133=\"X\",'Treaty status of each country'!C133=\"X\"),\"Y**\",\"\")))","v":"Y**"},{"$f":"IF(COUNTIF('Countries 2016+2021 Order'!B$56:B$90,'Rights in UK for each country'!A133)=1,\"Y\",IF(OR('Treaty status of each country'!E133=\"X\",'Treaty status of each country'!E133=\"X*\",COUNTIF('Countries 2016+2021 Order'!B$20:B$52,'Rights in UK for each country'!A133)=1),\"Y*\",IF('Treaty status of each country'!B133=\"X\",\"Y**\",\"-\")))","v":"Y**"},{"$f":"IF(OR(COUNTIF('Countries 2016+2021 Order'!B$93:B$94,'Rights in UK for each country'!A133)=1,'Treaty status of each country'!E133=\"X\"),\"Y\",IF('Treaty status of each country'!E133=\"X*\",\"Y-\",IF('Treaty status of each country'!F133=\"X\",\"Y*\",IF('Treaty status of each country'!F133=\"X*\",\"Y*-\",IF('Treaty status of each country'!B133=\"X\",\"Y**\",\"-\")))))","v":"Y**"},{"$f":"IF(OR('Treaty status of each country'!E133=\"X\",'Treaty status of each country'!E133=\"X*\"),\"Y\",\"-\")","v":"-"}]
["Paraguay",{"$f":"IF(OR('Treaty status of each country'!B134=\"X\", 'Treaty status of each country'!C134=\"X\"), \"Y\", \"\")","v":"Y"},{"$f":"IF(OR('Treaty status of each country'!E134=\"X\",'Treaty status of each country'!E134=\"X*\", COUNTIF('Countries 2016+2021 Order'!C$3:C$15,A134)=1),\"Y\",IF(OR('Treaty status of each country'!F134=\"X\",'Treaty status of each country'!F134=\"X*\"),\"Y*\",IF(OR('Treaty status of each country'!B134=\"X\",'Treaty status of each country'!C134=\"X\"),\"Y**\",\"\")))","v":"Y"},{"$f":"IF(COUNTIF('Countries 2016+2021 Order'!B$56:B$90,'Rights in UK for each country'!A134)=1,\"Y\",IF(OR('Treaty status of each country'!E134=\"X\",'Treaty status of each country'!E134=\"X*\",COUNTIF('Countries 2016+2021 Order'!B$20:B$52,'Rights in UK for each country'!A134)=1),\"Y*\",IF('Treaty status of each country'!B134=\"X\",\"Y**\",\"-\")))","v":"Y*"},{"$f":"IF(OR(COUNTIF('Countries 2016+2021 Order'!B$93:B$94,'Rights in UK for each country'!A134)=1,'Treaty status of each country'!E134=\"X\"),\"Y\",IF('Treaty status of each country'!E134=\"X*\",\"Y-\",IF('Treaty status of each country'!F134=\"X\",\"Y*\",IF('Treaty status of each country'!F134=\"X*\",\"Y*-\",IF('Treaty status of each country'!B134=\"X\",\"Y**\",\"-\")))))","v":"Y"},{"$f":"IF(OR('Treaty status of each country'!E134=\"X\",'Treaty status of each country'!E134=\"X*\"),\"Y\",\"-\")","v":"Y"}]
["Peru",{"$f":"IF(OR('Treaty status of each country'!B135=\"X\", 'Treaty status of each country'!C135=\"X\"), \"Y\", \"\")","v":"Y"},{"$f":"IF(OR('Treaty status of each country'!E135=\"X\",'Treaty status of each country'!E135=\"X*\", COUNTIF('Countries 2016+2021 Order'!C$3:C$15,A135)=1),\"Y\",IF(OR('Treaty status of each country'!F135=\"X\",'Treaty status of each country'!F135=\"X*\"),\"Y*\",IF(OR('Treaty status of each country'!B135=\"X\",'Treaty status of each country'!C135=\"X\"),\"Y**\",\"\")))","v":"Y"},{"$f":"IF(COUNTIF('Countries 2016+2021 Order'!B$56:B$90,'Rights in UK for each country'!A135)=1,\"Y\",IF(OR('Treaty status of each country'!E135=\"X\",'Treaty status of each country'!E135=\"X*\",COUNTIF('Countries 2016+2021 Order'!B$20:B$52,'Rights in UK for each country'!A135)=1),\"Y*\",IF('Treaty status of each country'!B135=\"X\",\"Y**\",\"-\")))","v":"Y*"},{"$f":"IF(OR(COUNTIF('Countries 2016+2021 Order'!B$93:B$94,'Rights in UK for each country'!A135)=1,'Treaty status of each country'!E135=\"X\"),\"Y\",IF('Treaty status of each country'!E135=\"X*\",\"Y-\",IF('Treaty status of each country'!F135=\"X\",\"Y*\",IF('Treaty status of each country'!F135=\"X*\",\"Y*-\",IF('Treaty status of each country'!B135=\"X\",\"Y**\",\"-\")))))","v":"Y"},{"$f":"IF(OR('Treaty status of each country'!E135=\"X\",'Treaty status of each country'!E135=\"X*\"),\"Y\",\"-\")","v":"Y"}]
["Philippines",{"$f":"IF(OR('Treaty status of each country'!B136=\"X\", 'Treaty status of each country'!C136=\"X\"), \"Y\", \"\")","v":"Y"},{"$f":"IF(OR('Treaty status of each country'!E136=\"X\",'Treaty status of each country'!E136=\"X*\", COUNTIF('Countries 2016+2021 Order'!C$3:C$15,A136)=1),\"Y\",IF(OR('Treaty status of each country'!F136=\"X\",'Treaty status of each country'!F136=\"X*\"),\"Y*\",IF(OR('Treaty status of each country'!B136=\"X\",'Treaty status of each country'!C136=\"X\"),\"Y**\",\"\")))","v":"Y"},{"$f":"IF(COUNTIF('Countries 2016+2021 Order'!B$56:B$90,'Rights in UK for each country'!A136)=1,\"Y\",IF(OR('Treaty status of each country'!E136=\"X\",'Treaty status of each country'!E136=\"X*\",COUNTIF('Countries 2016+2021 Order'!B$20:B$52,'Rights in UK for each country'!A136)=1),\"Y*\",IF('Treaty status of each country'!B136=\"X\",\"Y**\",\"-\")))","v":"Y*"},{"$f":"IF(OR(COUNTIF('Countries 2016+2021 Order'!B$93:B$94,'Rights in UK for each country'!A136)=1,'Treaty status of each country'!E136=\"X\"),\"Y\",IF('Treaty status of each country'!E136=\"X*\",\"Y-\",IF('Treaty status of each country'!F136=\"X\",\"Y*\",IF('Treaty status of each country'!F136=\"X*\",\"Y*-\",IF('Treaty status of each country'!B136=\"X\",\"Y**\",\"-\")))))","v":"Y"},{"$f":"IF(OR('Treaty status of each country'!E136=\"X\",'Treaty status of each country'!E136=\"X*\"),\"Y\",\"-\")","v":"Y"}]
["Poland",{"$f":"IF(OR('Treaty status of each country'!B137=\"X\", 'Treaty status of each country'!C137=\"X\"), \"Y\", \"\")","v":"Y"},{"$f":"IF(OR('Treaty status of each country'!E137=\"X\",'Treaty status of each country'!E137=\"X*\", COUNTIF('Countries 2016+2021 Order'!C$3:C$15,A137)=1),\"Y\",IF(OR('Treaty status of each country'!F137=\"X\",'Treaty status of each country'!F137=\"X*\"),\"Y*\",IF(OR('Treaty status of each country'!B137=\"X\",'Treaty status of each country'!C137=\"X\"),\"Y**\",\"\")))","v":"Y"},{"$f":"IF(COUNTIF('Countries 2016+2021 Order'!B$56:B$90,'Rights in UK for each country'!A137)=1,\"Y\",IF(OR('Treaty status of each country'!E137=\"X\",'Treaty status of each country'!E137=\"X*\",COUNTIF('Countries 2016+2021 Order'!B$20:B$52,'Rights in UK for each country'!A137)=1),\"Y*\",IF('Treaty status of each country'!B137=\"X\",\"Y**\",\"-\")))","v":"Y"},{"$f":"IF(OR(COUNTIF('Countries 2016+2021 Order'!B$93:B$94,'Rights in UK for each country'!A137)=1,'Treaty status of each country'!E137=\"X\"),\"Y\",IF('Treaty status of each country'!E137=\"X*\",\"Y-\",IF('Treaty status of each country'!F137=\"X\",\"Y*\",IF('Treaty status of each country'!F137=\"X*\",\"Y*-\",IF('Treaty status of each country'!B137=\"X\",\"Y**\",\"-\")))))","v":"Y-"},{"$f":"IF(OR('Treaty status of each country'!E137=\"X\",'Treaty status of each country'!E137=\"X*\"),\"Y\",\"-\")","v":"Y"}]
["Portugal",{"$f":"IF(OR('Treaty status of each country'!B138=\"X\", 'Treaty status of each country'!C138=\"X\"), \"Y\", \"\")","v":"Y"},{"$f":"IF(OR('Treaty status of each country'!E138=\"X\",'Treaty status of each country'!E138=\"X*\", COUNTIF('Countries 2016+2021 Order'!C$3:C$15,A138)=1),\"Y\",IF(OR('Treaty status of each country'!F138=\"X\",'Treaty status of each country'!F138=\"X*\"),\"Y*\",IF(OR('Treaty status of each country'!B138=\"X\",'Treaty status of each country'!C138=\"X\"),\"Y**\",\"\")))","v":"Y"},{"$f":"IF(COUNTIF('Countries 2016+2021 Order'!B$56:B$90,'Rights in UK for each country'!A138)=1,\"Y\",IF(OR('Treaty status of each country'!E138=\"X\",'Treaty status of each country'!E138=\"X*\",COUNTIF('Countries 2016+2021 Order'!B$20:B$52,'Rights in UK for each country'!A138)=1),\"Y*\",IF('Treaty status of each country'!B138=\"X\",\"Y**\",\"-\")))","v":"Y"},{"$f":"IF(OR(COUNTIF('Countries 2016+2021 Order'!B$93:B$94,'Rights in UK for each country'!A138)=1,'Treaty status of each country'!E138=\"X\"),\"Y\",IF('Treaty status of each country'!E138=\"X*\",\"Y-\",IF('Treaty status of each country'!F138=\"X\",\"Y*\",IF('Treaty status of each country'!F138=\"X*\",\"Y*-\",IF('Treaty status of each country'!B138=\"X\",\"Y**\",\"-\")))))","v":"Y"},{"$f":"IF(OR('Treaty status of each country'!E138=\"X\",'Treaty status of each country'!E138=\"X*\"),\"Y\",\"-\")","v":"Y"}]
["Qatar",{"$f":"IF(OR('Treaty status of each country'!B139=\"X\", 'Treaty status of each country'!C139=\"X\"), \"Y\", \"\")","v":"Y"},{"$f":"IF(OR('Treaty status of each country'!E139=\"X\",'Treaty status of each country'!E139=\"X*\", COUNTIF('Countries 2016+2021 Order'!C$3:C$15,A139)=1),\"Y\",IF(OR('Treaty status of each country'!F139=\"X\",'Treaty status of each country'!F139=\"X*\"),\"Y*\",IF(OR('Treaty status of each country'!B139=\"X\",'Treaty status of each country'!C139=\"X\"),\"Y**\",\"\")))","v":"Y"},{"$f":"IF(COUNTIF('Countries 2016+2021 Order'!B$56:B$90,'Rights in UK for each country'!A139)=1,\"Y\",IF(OR('Treaty status of each country'!E139=\"X\",'Treaty status of each country'!E139=\"X*\",COUNTIF('Countries 2016+2021 Order'!B$20:B$52,'Rights in UK for each country'!A139)=1),\"Y*\",IF('Treaty status of each country'!B139=\"X\",\"Y**\",\"-\")))","v":"Y*"},{"$f":"IF(OR(COUNTIF('Countries 2016+2021 Order'!B$93:B$94,'Rights in UK for each country'!A139)=1,'Treaty status of each country'!E139=\"X\"),\"Y\",IF('Treaty status of each country'!E139=\"X*\",\"Y-\",IF('Treaty status of each country'!F139=\"X\",\"Y*\",IF('Treaty status of each country'!F139=\"X*\",\"Y*-\",IF('Treaty status of each country'!B139=\"X\",\"Y**\",\"-\")))))","v":"Y"},{"$f":"IF(OR('Treaty status of each country'!E139=\"X\",'Treaty status of each country'!E139=\"X*\"),\"Y\",\"-\")","v":"Y"}]
["Republic of Korea",{"$f":"IF(OR('Treaty status of each country'!B140=\"X\", 'Treaty status of each country'!C140=\"X\"), \"Y\", \"\")","v":"Y"},{"$f":"IF(OR('Treaty status of each country'!E140=\"X\",'Treaty status of each country'!E140=\"X*\", COUNTIF('Countries 2016+2021 Order'!C$3:C$15,A140)=1),\"Y\",IF(OR('Treaty status of each country'!F140=\"X\",'Treaty status of each country'!F140=\"X*\"),\"Y*\",IF(OR('Treaty status of each country'!B140=\"X\",'Treaty status of each country'!C140=\"X\"),\"Y**\",\"\")))","v":"Y"},{"$f":"IF(COUNTIF('Countries 2016+2021 Order'!B$56:B$90,'Rights in UK for each country'!A140)=1,\"Y\",IF(OR('Treaty status of each country'!E140=\"X\",'Treaty status of each country'!E140=\"X*\",COUNTIF('Countries 2016+2021 Order'!B$20:B$52,'Rights in UK for each country'!A140)=1),\"Y*\",IF('Treaty status of each country'!B140=\"X\",\"Y**\",\"-\")))","v":"Y"},{"$f":"IF(OR(COUNTIF('Countries 2016+2021 Order'!B$93:B$94,'Rights in UK for each country'!A140)=1,'Treaty status of each country'!E140=\"X\"),\"Y\",IF('Treaty status of each country'!E140=\"X*\",\"Y-\",IF('Treaty status of each country'!F140=\"X\",\"Y*\",IF('Treaty status of each country'!F140=\"X*\",\"Y*-\",IF('Treaty status of each country'!B140=\"X\",\"Y**\",\"-\")))))","v":"Y-"},{"$f":"IF(OR('Treaty status of each country'!E140=\"X\",'Treaty status of each country'!E140=\"X*\"),\"Y\",\"-\")","v":"Y"}]
["Republic of Moldova",{"$f":"IF(OR('Treaty status of each country'!B141=\"X\", 'Treaty status of each country'!C141=\"X\"), \"Y\", \"\")","v":"Y"},{"$f":"IF(OR('Treaty status of each country'!E141=\"X\",'Treaty status of each country'!E141=\"X*\", COUNTIF('Countries 2016+2021 Order'!C$3:C$15,A141)=1),\"Y\",IF(OR('Treaty status of each country'!F141=\"X\",'Treaty status of each country'!F141=\"X*\"),\"Y*\",IF(OR('Treaty status of each country'!B141=\"X\",'Treaty status of each country'!C141=\"X\"),\"Y**\",\"\")))","v":"Y"},{"$f":"IF(COUNTIF('Countries 2016+2021 Order'!B$56:B$90,'Rights in UK for each country'!A141)=1,\"Y\",IF(OR('Treaty status of each country'!E141=\"X\",'Treaty status of each country'!E141=\"X*\",COUNTIF('Countries 2016+2021 Order'!B$20:B$52,'Rights in UK for each country'!A141)=1),\"Y*\",IF('Treaty status of each country'!B141=\"X\",\"Y**\",\"-\")))","v":"Y*"},{"$f":"IF(OR(COUNTIF('Countries 2016+2021 Order'!B$93:B$94,'Rights in UK for each country'!A141)=1,'Treaty status of each country'!E141=\"X\"),\"Y\",IF('Treaty status of each country'!E141=\"X*\",\"Y-\",IF('Treaty status of each country'!F141=\"X\",\"Y*\",IF('Treaty status of each country'!F141=\"X*\",\"Y*-\",IF('Treaty status of each country'!B141=\"X\",\"Y**\",\"-\")))))","v":"Y-"},{"$f":"IF(OR('Treaty status of each country'!E141=\"X\",'Treaty status of each country'!E141=\"X*\"),\"Y\",\"-\")","v":"Y"}]
["Romania",{"$f":"IF(OR('Treaty status of each country'!B142=\"X\", 'Treaty status of each country'!C142=\"X\"), \"Y\", \"\")","v":"Y"},{"$f":"IF(OR('Treaty status of each country'!E142=\"X\",'Treaty status of each country'!E142=\"X*\", COUNTIF('Countries 2016+2021 Order'!C$3:C$15,A142)=1),\"Y\",IF(OR('Treaty status of each country'!F142=\"X\",'Treaty status of each country'!F142=\"X*\"),\"Y*\",IF(OR('Treaty status of each country'!B142=\"X\",'Treaty status of each country'!C142=\"X\"),\"Y**\",\"\")))","v":"Y"},{"$f":"IF(COUNTIF('Countries 2016+2021 Order'!B$56:B$90,'Rights in UK for each country'!A142)=1,\"Y\",IF(OR('Treaty status of each country'!E142=\"X\",'Treaty status of each country'!E142=\"X*\",COUNTIF('Countries 2016+2021 Order'!B$20:B$52,'Rights in UK for each country'!A142)=1),\"Y*\",IF('Treaty status of each country'!B142=\"X\",\"Y**\",\"-\")))","v":"Y"},{"$f":"IF(OR(COUNTIF('Countries 2016+2021 Order'!B$93:B$94,'Rights in UK for each country'!A142)=1,'Treaty status of each country'!E142=\"X\"),\"Y\",IF('Treaty status of each country'!E142=\"X*\",\"Y-\",IF('Treaty status of each country'!F142=\"X\",\"Y*\",IF('Treaty status of each country'!F142=\"X*\",\"Y*-\",IF('Treaty status of each country'!B142=\"X\",\"Y**\",\"-\")))))","v":"Y"},{"$f":"IF(OR('Treaty status of each country'!E142=\"X\",'Treaty status of each country'!E142=\"X*\"),\"Y\",\"-\")","v":"Y"}]
["Russian Federation",{"$f":"IF(OR('Treaty status of each country'!B143=\"X\", 'Treaty status of each country'!C143=\"X\"), \"Y\", \"\")","v":"Y"},{"$f":"IF(OR('Treaty status of each country'!E143=\"X\",'Treaty status of each country'!E143=\"X*\", COUNTIF('Countries 2016+2021 Order'!C$3:C$15,A143)=1),\"Y\",IF(OR('Treaty status of each country'!F143=\"X\",'Treaty status of each country'!F143=\"X*\"),\"Y*\",IF(OR('Treaty status of each country'!B143=\"X\",'Treaty status of each country'!C143=\"X\"),\"Y**\",\"\")))","v":"Y"},{"$f":"IF(COUNTIF('Countries 2016+2021 Order'!B$56:B$90,'Rights in UK for each country'!A143)=1,\"Y\",IF(OR('Treaty status of each country'!E143=\"X\",'Treaty status of each country'!E143=\"X*\",COUNTIF('Countries 2016+2021 Order'!B$20:B$52,'Rights in UK for each country'!A143)=1),\"Y*\",IF('Treaty status of each country'!B143=\"X\",\"Y**\",\"-\")))","v":"Y*"},{"$f":"IF(OR(COUNTIF('Countries 2016+2021 Order'!B$93:B$94,'Rights in UK for each country'!A143)=1,'Treaty status of each country'!E143=\"X\"),\"Y\",IF('Treaty status of each country'!E143=\"X*\",\"Y-\",IF('Treaty status of each country'!F143=\"X\",\"Y*\",IF('Treaty status of each country'!F143=\"X*\",\"Y*-\",IF('Treaty status of each country'!B143=\"X\",\"Y**\",\"-\")))))","v":"Y-"},{"$f":"IF(OR('Treaty status of each country'!E143=\"X\",'Treaty status of each country'!E143=\"X*\"),\"Y\",\"-\")","v":"Y"}]
["Rwanda",{"$f":"IF(OR('Treaty status of each country'!B144=\"X\", 'Treaty status of each country'!C144=\"X\"), \"Y\", \"\")","v":"Y"},{"$f":"IF(OR('Treaty status of each country'!E144=\"X\",'Treaty status of each country'!E144=\"X*\", COUNTIF('Countries 2016+2021 Order'!C$3:C$15,A144)=1),\"Y\",IF(OR('Treaty status of each country'!F144=\"X\",'Treaty status of each country'!F144=\"X*\"),\"Y*\",IF(OR('Treaty status of each country'!B144=\"X\",'Treaty status of each country'!C144=\"X\"),\"Y**\",\"\")))","v":"Y**"},{"$f":"IF(COUNTIF('Countries 2016+2021 Order'!B$56:B$90,'Rights in UK for each country'!A144)=1,\"Y\",IF(OR('Treaty status of each country'!E144=\"X\",'Treaty status of each country'!E144=\"X*\",COUNTIF('Countries 2016+2021 Order'!B$20:B$52,'Rights in UK for each country'!A144)=1),\"Y*\",IF('Treaty status of each country'!B144=\"X\",\"Y**\",\"-\")))","v":"Y**"},{"$f":"IF(OR(COUNTIF('Countries 2016+2021 Order'!B$93:B$94,'Rights in UK for each country'!A144)=1,'Treaty status of each country'!E144=\"X\"),\"Y\",IF('Treaty status of each country'!E144=\"X*\",\"Y-\",IF('Treaty status of each country'!F144=\"X\",\"Y*\",IF('Treaty status of each country'!F144=\"X*\",\"Y*-\",IF('Treaty status of each country'!B144=\"X\",\"Y**\",\"-\")))))","v":"Y**"},{"$f":"IF(OR('Treaty status of each country'!E144=\"X\",'Treaty status of each country'!E144=\"X*\"),\"Y\",\"-\")","v":"-"}]
["Saint Kitts and Nevis",{"$f":"IF(OR('Treaty status of each country'!B145=\"X\", 'Treaty status of each country'!C145=\"X\"), \"Y\", \"\")","v":"Y"},{"$f":"IF(OR('Treaty status of each country'!E145=\"X\",'Treaty status of each country'!E145=\"X*\", COUNTIF('Countries 2016+2021 Order'!C$3:C$15,A145)=1),\"Y\",IF(OR('Treaty status of each country'!F145=\"X\",'Treaty status of each country'!F145=\"X*\"),\"Y*\",IF(OR('Treaty status of each country'!B145=\"X\",'Treaty status of each country'!C145=\"X\"),\"Y**\",\"\")))","v":"Y**"},{"$f":"IF(COUNTIF('Countries 2016+2021 Order'!B$56:B$90,'Rights in UK for each country'!A145)=1,\"Y\",IF(OR('Treaty status of each country'!E145=\"X\",'Treaty status of each country'!E145=\"X*\",COUNTIF('Countries 2016+2021 Order'!B$20:B$52,'Rights in UK for each country'!A145)=1),\"Y*\",IF('Treaty status of each country'!B145=\"X\",\"Y**\",\"-\")))","v":"Y**"},{"$f":"IF(OR(COUNTIF('Countries 2016+2021 Order'!B$93:B$94,'Rights in UK for each country'!A145)=1,'Treaty status of each country'!E145=\"X\"),\"Y\",IF('Treaty status of each country'!E145=\"X*\",\"Y-\",IF('Treaty status of each country'!F145=\"X\",\"Y*\",IF('Treaty status of each country'!F145=\"X*\",\"Y*-\",IF('Treaty status of each country'!B145=\"X\",\"Y**\",\"-\")))))","v":"Y**"},{"$f":"IF(OR('Treaty status of each country'!E145=\"X\",'Treaty status of each country'!E145=\"X*\"),\"Y\",\"-\")","v":"-"}]
["Saint Lucia",{"$f":"IF(OR('Treaty status of each country'!B146=\"X\", 'Treaty status of each country'!C146=\"X\"), \"Y\", \"\")","v":"Y"},{"$f":"IF(OR('Treaty status of each country'!E146=\"X\",'Treaty status of each country'!E146=\"X*\", COUNTIF('Countries 2016+2021 Order'!C$3:C$15,A146)=1),\"Y\",IF(OR('Treaty status of each country'!F146=\"X\",'Treaty status of each country'!F146=\"X*\"),\"Y*\",IF(OR('Treaty status of each country'!B146=\"X\",'Treaty status of each country'!C146=\"X\"),\"Y**\",\"\")))","v":"Y"},{"$f":"IF(COUNTIF('Countries 2016+2021 Order'!B$56:B$90,'Rights in UK for each country'!A146)=1,\"Y\",IF(OR('Treaty status of each country'!E146=\"X\",'Treaty status of each country'!E146=\"X*\",COUNTIF('Countries 2016+2021 Order'!B$20:B$52,'Rights in UK for each country'!A146)=1),\"Y*\",IF('Treaty status of each country'!B146=\"X\",\"Y**\",\"-\")))","v":"Y*"},{"$f":"IF(OR(COUNTIF('Countries 2016+2021 Order'!B$93:B$94,'Rights in UK for each country'!A146)=1,'Treaty status of each country'!E146=\"X\"),\"Y\",IF('Treaty status of each country'!E146=\"X*\",\"Y-\",IF('Treaty status of each country'!F146=\"X\",\"Y*\",IF('Treaty status of each country'!F146=\"X*\",\"Y*-\",IF('Treaty status of each country'!B146=\"X\",\"Y**\",\"-\")))))","v":"Y"},{"$f":"IF(OR('Treaty status of each country'!E146=\"X\",'Treaty status of each country'!E146=\"X*\"),\"Y\",\"-\")","v":"Y"}]
["Saint Vincent and the Grenadines",{"$f":"IF(OR('Treaty status of each country'!B147=\"X\", 'Treaty status of each country'!C147=\"X\"), \"Y\", \"\")","v":"Y"},{"$f":"IF(OR('Treaty status of each country'!E147=\"X\",'Treaty status of each country'!E147=\"X*\", COUNTIF('Countries 2016+2021 Order'!C$3:C$15,A147)=1),\"Y\",IF(OR('Treaty status of each country'!F147=\"X\",'Treaty status of each country'!F147=\"X*\"),\"Y*\",IF(OR('Treaty status of each country'!B147=\"X\",'Treaty status of each country'!C147=\"X\"),\"Y**\",\"\")))","v":"Y*"},{"$f":"IF(COUNTIF('Countries 2016+2021 Order'!B$56:B$90,'Rights in UK for each country'!A147)=1,\"Y\",IF(OR('Treaty status of each country'!E147=\"X\",'Treaty status of each country'!E147=\"X*\",COUNTIF('Countries 2016+2021 Order'!B$20:B$52,'Rights in UK for each country'!A147)=1),\"Y*\",IF('Treaty status of each country'!B147=\"X\",\"Y**\",\"-\")))","v":"Y**"},{"$f":"IF(OR(COUNTIF('Countries 2016+2021 Order'!B$93:B$94,'Rights in UK for each country'!A147)=1,'Treaty status of each country'!E147=\"X\"),\"Y\",IF('Treaty status of each country'!E147=\"X*\",\"Y-\",IF('Treaty status of each country'!F147=\"X\",\"Y*\",IF('Treaty status of each country'!F147=\"X*\",\"Y*-\",IF('Treaty status of each country'!B147=\"X\",\"Y**\",\"-\")))))","v":"Y*"},{"$f":"IF(OR('Treaty status of each country'!E147=\"X\",'Treaty status of each country'!E147=\"X*\"),\"Y\",\"-\")","v":"-"}]
["Samoa",{"$f":"IF(OR('Treaty status of each country'!B148=\"X\", 'Treaty status of each country'!C148=\"X\"), \"Y\", \"\")","v":"Y"},{"$f":"IF(OR('Treaty status of each country'!E148=\"X\",'Treaty status of each country'!E148=\"X*\", COUNTIF('Countries 2016+2021 Order'!C$3:C$15,A148)=1),\"Y\",IF(OR('Treaty status of each country'!F148=\"X\",'Treaty status of each country'!F148=\"X*\"),\"Y*\",IF(OR('Treaty status of each country'!B148=\"X\",'Treaty status of each country'!C148=\"X\"),\"Y**\",\"\")))","v":"Y**"},{"$f":"IF(COUNTIF('Countries 2016+2021 Order'!B$56:B$90,'Rights in UK for each country'!A148)=1,\"Y\",IF(OR('Treaty status of each country'!E148=\"X\",'Treaty status of each country'!E148=\"X*\",COUNTIF('Countries 2016+2021 Order'!B$20:B$52,'Rights in UK for each country'!A148)=1),\"Y*\",IF('Treaty status of each country'!B148=\"X\",\"Y**\",\"-\")))","v":"Y**"},{"$f":"IF(OR(COUNTIF('Countries 2016+2021 Order'!B$93:B$94,'Rights in UK for each country'!A148)=1,'Treaty status of each country'!E148=\"X\"),\"Y\",IF('Treaty status of each country'!E148=\"X*\",\"Y-\",IF('Treaty status of each country'!F148=\"X\",\"Y*\",IF('Treaty status of each country'!F148=\"X*\",\"Y*-\",IF('Treaty status of each country'!B148=\"X\",\"Y**\",\"-\")))))","v":"Y**"},{"$f":"IF(OR('Treaty status of each country'!E148=\"X\",'Treaty status of each country'!E148=\"X*\"),\"Y\",\"-\")","v":"-"}]
["San Marino",{"$f":"IF(OR('Treaty status of each country'!B149=\"X\", 'Treaty status of each country'!C149=\"X\"), \"Y\", \"\")","v":"Y"},{"$f":"IF(OR('Treaty status of each country'!E149=\"X\",'Treaty status of each country'!E149=\"X*\", COUNTIF('Countries 2016+2021 Order'!C$3:C$15,A149)=1),\"Y\",IF(OR('Treaty status of each country'!F149=\"X\",'Treaty status of each country'!F149=\"X*\"),\"Y*\",IF(OR('Treaty status of each country'!B149=\"X\",'Treaty status of each country'!C149=\"X\"),\"Y**\",\"\")))","v":"Y*"},{"$f":"IF(COUNTIF('Countries 2016+2021 Order'!B$56:B$90,'Rights in UK for each country'!A149)=1,\"Y\",IF(OR('Treaty status of each country'!E149=\"X\",'Treaty status of each country'!E149=\"X*\",COUNTIF('Countries 2016+2021 Order'!B$20:B$52,'Rights in UK for each country'!A149)=1),\"Y*\",IF('Treaty status of each country'!B149=\"X\",\"Y**\",\"-\")))","v":"-"},{"$f":"IF(OR(COUNTIF('Countries 2016+2021 Order'!B$93:B$94,'Rights in UK for each country'!A149)=1,'Treaty status of each country'!E149=\"X\"),\"Y\",IF('Treaty status of each country'!E149=\"X*\",\"Y-\",IF('Treaty status of each country'!F149=\"X\",\"Y*\",IF('Treaty status of each country'!F149=\"X*\",\"Y*-\",IF('Treaty status of each country'!B149=\"X\",\"Y**\",\"-\")))))","v":"Y*"},{"$f":"IF(OR('Treaty status of each country'!E149=\"X\",'Treaty status of each country'!E149=\"X*\"),\"Y\",\"-\")","v":"-"}]
["Sao Tome and Principe",{"$f":"IF(OR('Treaty status of each country'!B150=\"X\", 'Treaty status of each country'!C150=\"X\"), \"Y\", \"\")","v":"Y"},{"$f":"IF(OR('Treaty status of each country'!E150=\"X\",'Treaty status of each country'!E150=\"X*\", COUNTIF('Countries 2016+2021 Order'!C$3:C$15,A150)=1),\"Y\",IF(OR('Treaty status of each country'!F150=\"X\",'Treaty status of each country'!F150=\"X*\"),\"Y*\",IF(OR('Treaty status of each country'!B150=\"X\",'Treaty status of each country'!C150=\"X\"),\"Y**\",\"\")))","v":"Y*"},{"$f":"IF(COUNTIF('Countries 2016+2021 Order'!B$56:B$90,'Rights in UK for each country'!A150)=1,\"Y\",IF(OR('Treaty status of each country'!E150=\"X\",'Treaty status of each country'!E150=\"X*\",COUNTIF('Countries 2016+2021 Order'!B$20:B$52,'Rights in UK for each country'!A150)=1),\"Y*\",IF('Treaty status of each country'!B150=\"X\",\"Y**\",\"-\")))","v":"-"},{"$f":"IF(OR(COUNTIF('Countries 2016+2021 Order'!B$93:B$94,'Rights in UK for each country'!A150)=1,'Treaty status of each country'!E150=\"X\"),\"Y\",IF('Treaty status of each country'!E150=\"X*\",\"Y-\",IF('Treaty status of each country'!F150=\"X\",\"Y*\",IF('Treaty status of each country'!F150=\"X*\",\"Y*-\",IF('Treaty status of each country'!B150=\"X\",\"Y**\",\"-\")))))","v":"Y*"},{"$f":"IF(OR('Treaty status of each country'!E150=\"X\",'Treaty status of each country'!E150=\"X*\"),\"Y\",\"-\")","v":"-"}]
["Saudi Arabia",{"$f":"IF(OR('Treaty status of each country'!B151=\"X\", 'Treaty status of each country'!C151=\"X\"), \"Y\", \"\")","v":"Y"},{"$f":"IF(OR('Treaty status of each country'!E151=\"X\",'Treaty status of each country'!E151=\"X*\", COUNTIF('Countries 2016+2021 Order'!C$3:C$15,A151)=1),\"Y\",IF(OR('Treaty status of each country'!F151=\"X\",'Treaty status of each country'!F151=\"X*\"),\"Y*\",IF(OR('Treaty status of each country'!B151=\"X\",'Treaty status of each country'!C151=\"X\"),\"Y**\",\"\")))","v":"Y**"},{"$f":"IF(COUNTIF('Countries 2016+2021 Order'!B$56:B$90,'Rights in UK for each country'!A151)=1,\"Y\",IF(OR('Treaty status of each country'!E151=\"X\",'Treaty status of each country'!E151=\"X*\",COUNTIF('Countries 2016+2021 Order'!B$20:B$52,'Rights in UK for each country'!A151)=1),\"Y*\",IF('Treaty status of each country'!B151=\"X\",\"Y**\",\"-\")))","v":"Y**"},{"$f":"IF(OR(COUNTIF('Countries 2016+2021 Order'!B$93:B$94,'Rights in UK for each country'!A151)=1,'Treaty status of each country'!E151=\"X\"),\"Y\",IF('Treaty status of each country'!E151=\"X*\",\"Y-\",IF('Treaty status of each country'!F151=\"X\",\"Y*\",IF('Treaty status of each country'!F151=\"X*\",\"Y*-\",IF('Treaty status of each country'!B151=\"X\",\"Y**\",\"-\")))))","v":"Y**"},{"$f":"IF(OR('Treaty status of each country'!E151=\"X\",'Treaty status of each country'!E151=\"X*\"),\"Y\",\"-\")","v":"-"}]
["Senegal",{"$f":"IF(OR('Treaty status of each country'!B152=\"X\", 'Treaty status of each country'!C152=\"X\"), \"Y\", \"\")","v":"Y"},{"$f":"IF(OR('Treaty status of each country'!E152=\"X\",'Treaty status of each country'!E152=\"X*\", COUNTIF('Countries 2016+2021 Order'!C$3:C$15,A152)=1),\"Y\",IF(OR('Treaty status of each country'!F152=\"X\",'Treaty status of each country'!F152=\"X*\"),\"Y*\",IF(OR('Treaty status of each country'!B152=\"X\",'Treaty status of each country'!C152=\"X\"),\"Y**\",\"\")))","v":"Y*"},{"$f":"IF(COUNTIF('Countries 2016+2021 Order'!B$56:B$90,'Rights in UK for each country'!A152)=1,\"Y\",IF(OR('Treaty status of each country'!E152=\"X\",'Treaty status of each country'!E152=\"X*\",COUNTIF('Countries 2016+2021 Order'!B$20:B$52,'Rights in UK for each country'!A152)=1),\"Y*\",IF('Treaty status of each country'!B152=\"X\",\"Y**\",\"-\")))","v":"Y**"},{"$f":"IF(OR(COUNTIF('Countries 2016+2021 Order'!B$93:B$94,'Rights in UK for each country'!A152)=1,'Treaty status of each country'!E152=\"X\"),\"Y\",IF('Treaty status of each country'!E152=\"X*\",\"Y-\",IF('Treaty status of each country'!F152=\"X\",\"Y*\",IF('Treaty status of each country'!F152=\"X*\",\"Y*-\",IF('Treaty status of each country'!B152=\"X\",\"Y**\",\"-\")))))","v":"Y*"},{"$f":"IF(OR('Treaty status of each country'!E152=\"X\",'Treaty status of each country'!E152=\"X*\"),\"Y\",\"-\")","v":"-"}]
["Serbia",{"$f":"IF(OR('Treaty status of each country'!B153=\"X\", 'Treaty status of each country'!C153=\"X\"), \"Y\", \"\")","v":"Y"},{"$f":"IF(OR('Treaty status of each country'!E153=\"X\",'Treaty status of each country'!E153=\"X*\", COUNTIF('Countries 2016+2021 Order'!C$3:C$15,A153)=1),\"Y\",IF(OR('Treaty status of each country'!F153=\"X\",'Treaty status of each country'!F153=\"X*\"),\"Y*\",IF(OR('Treaty status of each country'!B153=\"X\",'Treaty status of each country'!C153=\"X\"),\"Y**\",\"\")))","v":"Y"},{"$f":"IF(COUNTIF('Countries 2016+2021 Order'!B$56:B$90,'Rights in UK for each country'!A153)=1,\"Y\",IF(OR('Treaty status of each country'!E153=\"X\",'Treaty status of each country'!E153=\"X*\",COUNTIF('Countries 2016+2021 Order'!B$20:B$52,'Rights in UK for each country'!A153)=1),\"Y*\",IF('Treaty status of each country'!B153=\"X\",\"Y**\",\"-\")))","v":"Y*"},{"$f":"IF(OR(COUNTIF('Countries 2016+2021 Order'!B$93:B$94,'Rights in UK for each country'!A153)=1,'Treaty status of each country'!E153=\"X\"),\"Y\",IF('Treaty status of each country'!E153=\"X*\",\"Y-\",IF('Treaty status of each country'!F153=\"X\",\"Y*\",IF('Treaty status of each country'!F153=\"X*\",\"Y*-\",IF('Treaty status of each country'!B153=\"X\",\"Y**\",\"-\")))))","v":"Y"},{"$f":"IF(OR('Treaty status of each country'!E153=\"X\",'Treaty status of each country'!E153=\"X*\"),\"Y\",\"-\")","v":"Y"}]
["Seychelles",{"$f":"IF(OR('Treaty status of each country'!B154=\"X\", 'Treaty status of each country'!C154=\"X\"), \"Y\", \"\")","v":"Y"},{"$f":"IF(OR('Treaty status of each country'!E154=\"X\",'Treaty status of each country'!E154=\"X*\", COUNTIF('Countries 2016+2021 Order'!C$3:C$15,A154)=1),\"Y\",IF(OR('Treaty status of each country'!F154=\"X\",'Treaty status of each country'!F154=\"X*\"),\"Y*\",IF(OR('Treaty status of each country'!B154=\"X\",'Treaty status of each country'!C154=\"X\"),\"Y**\",\"\")))","v":"Y**"},{"$f":"IF(COUNTIF('Countries 2016+2021 Order'!B$56:B$90,'Rights in UK for each country'!A154)=1,\"Y\",IF(OR('Treaty status of each country'!E154=\"X\",'Treaty status of each country'!E154=\"X*\",COUNTIF('Countries 2016+2021 Order'!B$20:B$52,'Rights in UK for each country'!A154)=1),\"Y*\",IF('Treaty status of each country'!B154=\"X\",\"Y**\",\"-\")))","v":"Y**"},{"$f":"IF(OR(COUNTIF('Countries 2016+2021 Order'!B$93:B$94,'Rights in UK for each country'!A154)=1,'Treaty status of each country'!E154=\"X\"),\"Y\",IF('Treaty status of each country'!E154=\"X*\",\"Y-\",IF('Treaty status of each country'!F154=\"X\",\"Y*\",IF('Treaty status of each country'!F154=\"X*\",\"Y*-\",IF('Treaty status of each country'!B154=\"X\",\"Y**\",\"-\")))))","v":"Y**"},{"$f":"IF(OR('Treaty status of each country'!E154=\"X\",'Treaty status of each country'!E154=\"X*\"),\"Y\",\"-\")","v":"-"}]
["Sierra Leone",{"$f":"IF(OR('Treaty status of each country'!B155=\"X\", 'Treaty status of each country'!C155=\"X\"), \"Y\", \"\")","v":"Y"},{"$f":"IF(OR('Treaty status of each country'!E155=\"X\",'Treaty status of each country'!E155=\"X*\", COUNTIF('Countries 2016+2021 Order'!C$3:C$15,A155)=1),\"Y\",IF(OR('Treaty status of each country'!F155=\"X\",'Treaty status of each country'!F155=\"X*\"),\"Y*\",IF(OR('Treaty status of each country'!B155=\"X\",'Treaty status of each country'!C155=\"X\"),\"Y**\",\"\")))","v":"Y**"},{"$f":"IF(COUNTIF('Countries 2016+2021 Order'!B$56:B$90,'Rights in UK for each country'!A155)=1,\"Y\",IF(OR('Treaty status of each country'!E155=\"X\",'Treaty status of each country'!E155=\"X*\",COUNTIF('Countries 2016+2021 Order'!B$20:B$52,'Rights in UK for each country'!A155)=1),\"Y*\",IF('Treaty status of each country'!B155=\"X\",\"Y**\",\"-\")))","v":"Y**"},{"$f":"IF(OR(COUNTIF('Countries 2016+2021 Order'!B$93:B$94,'Rights in UK for each country'!A155)=1,'Treaty status of each country'!E155=\"X\"),\"Y\",IF('Treaty status of each country'!E155=\"X*\",\"Y-\",IF('Treaty status of each country'!F155=\"X\",\"Y*\",IF('Treaty status of each country'!F155=\"X*\",\"Y*-\",IF('Treaty status of each country'!B155=\"X\",\"Y**\",\"-\")))))","v":"Y**"},{"$f":"IF(OR('Treaty status of each country'!E155=\"X\",'Treaty status of each country'!E155=\"X*\"),\"Y\",\"-\")","v":"-"}]
["Singapore",{"$f":"IF(OR('Treaty status of each country'!B156=\"X\", 'Treaty status of each country'!C156=\"X\"), \"Y\", \"\")","v":"Y"},{"$f":"IF(OR('Treaty status of each country'!E156=\"X\",'Treaty status of each country'!E156=\"X*\", COUNTIF('Countries 2016+2021 Order'!C$3:C$15,A156)=1),\"Y\",IF(OR('Treaty status of each country'!F156=\"X\",'Treaty status of each country'!F156=\"X*\"),\"Y*\",IF(OR('Treaty status of each country'!B156=\"X\",'Treaty status of each country'!C156=\"X\"),\"Y**\",\"\")))","v":"Y*"},{"$f":"IF(COUNTIF('Countries 2016+2021 Order'!B$56:B$90,'Rights in UK for each country'!A156)=1,\"Y\",IF(OR('Treaty status of each country'!E156=\"X\",'Treaty status of each country'!E156=\"X*\",COUNTIF('Countries 2016+2021 Order'!B$20:B$52,'Rights in UK for each country'!A156)=1),\"Y*\",IF('Treaty status of each country'!B156=\"X\",\"Y**\",\"-\")))","v":"Y"},{"$f":"IF(OR(COUNTIF('Countries 2016+2021 Order'!B$93:B$94,'Rights in UK for each country'!A156)=1,'Treaty status of each country'!E156=\"X\"),\"Y\",IF('Treaty status of each country'!E156=\"X*\",\"Y-\",IF('Treaty status of each country'!F156=\"X\",\"Y*\",IF('Treaty status of each country'!F156=\"X*\",\"Y*-\",IF('Treaty status of each country'!B156=\"X\",\"Y**\",\"-\")))))","v":"Y*-"},{"$f":"IF(OR('Treaty status of each country'!E156=\"X\",'Treaty status of each country'!E156=\"X*\"),\"Y\",\"-\")","v":"-"}]
["Slovakia",{"$f":"IF(OR('Treaty status of each country'!B157=\"X\", 'Treaty status of each country'!C157=\"X\"), \"Y\", \"\")","v":"Y"},{"$f":"IF(OR('Treaty status of each country'!E157=\"X\",'Treaty status of each country'!E157=\"X*\", COUNTIF('Countries 2016+2021 Order'!C$3:C$15,A157)=1),\"Y\",IF(OR('Treaty status of each country'!F157=\"X\",'Treaty status of each country'!F157=\"X*\"),\"Y*\",IF(OR('Treaty status of each country'!B157=\"X\",'Treaty status of each country'!C157=\"X\"),\"Y**\",\"\")))","v":"Y"},{"$f":"IF(COUNTIF('Countries 2016+2021 Order'!B$56:B$90,'Rights in UK for each country'!A157)=1,\"Y\",IF(OR('Treaty status of each country'!E157=\"X\",'Treaty status of each country'!E157=\"X*\",COUNTIF('Countries 2016+2021 Order'!B$20:B$52,'Rights in UK for each country'!A157)=1),\"Y*\",IF('Treaty status of each country'!B157=\"X\",\"Y**\",\"-\")))","v":"Y"},{"$f":"IF(OR(COUNTIF('Countries 2016+2021 Order'!B$93:B$94,'Rights in UK for each country'!A157)=1,'Treaty status of each country'!E157=\"X\"),\"Y\",IF('Treaty status of each country'!E157=\"X*\",\"Y-\",IF('Treaty status of each country'!F157=\"X\",\"Y*\",IF('Treaty status of each country'!F157=\"X*\",\"Y*-\",IF('Treaty status of each country'!B157=\"X\",\"Y**\",\"-\")))))","v":"Y"},{"$f":"IF(OR('Treaty status of each country'!E157=\"X\",'Treaty status of each country'!E157=\"X*\"),\"Y\",\"-\")","v":"Y"}]
["Slovenia",{"$f":"IF(OR('Treaty status of each country'!B158=\"X\", 'Treaty status of each country'!C158=\"X\"), \"Y\", \"\")","v":"Y"},{"$f":"IF(OR('Treaty status of each country'!E158=\"X\",'Treaty status of each country'!E158=\"X*\", COUNTIF('Countries 2016+2021 Order'!C$3:C$15,A158)=1),\"Y\",IF(OR('Treaty status of each country'!F158=\"X\",'Treaty status of each country'!F158=\"X*\"),\"Y*\",IF(OR('Treaty status of each country'!B158=\"X\",'Treaty status of each country'!C158=\"X\"),\"Y**\",\"\")))","v":"Y"},{"$f":"IF(COUNTIF('Countries 2016+2021 Order'!B$56:B$90,'Rights in UK for each country'!A158)=1,\"Y\",IF(OR('Treaty status of each country'!E158=\"X\",'Treaty status of each country'!E158=\"X*\",COUNTIF('Countries 2016+2021 Order'!B$20:B$52,'Rights in UK for each country'!A158)=1),\"Y*\",IF('Treaty status of each country'!B158=\"X\",\"Y**\",\"-\")))","v":"Y"},{"$f":"IF(OR(COUNTIF('Countries 2016+2021 Order'!B$93:B$94,'Rights in UK for each country'!A158)=1,'Treaty status of each country'!E158=\"X\"),\"Y\",IF('Treaty status of each country'!E158=\"X*\",\"Y-\",IF('Treaty status of each country'!F158=\"X\",\"Y*\",IF('Treaty status of each country'!F158=\"X*\",\"Y*-\",IF('Treaty status of each country'!B158=\"X\",\"Y**\",\"-\")))))","v":"Y-"},{"$f":"IF(OR('Treaty status of each country'!E158=\"X\",'Treaty status of each country'!E158=\"X*\"),\"Y\",\"-\")","v":"Y"}]
["Solomon Islands",{"$f":"IF(OR('Treaty status of each country'!B159=\"X\", 'Treaty status of each country'!C159=\"X\"), \"Y\", \"\")","v":"Y"},{"$f":"IF(OR('Treaty status of each country'!E159=\"X\",'Treaty status of each country'!E159=\"X*\", COUNTIF('Countries 2016+2021 Order'!C$3:C$15,A159)=1),\"Y\",IF(OR('Treaty status of each country'!F159=\"X\",'Treaty status of each country'!F159=\"X*\"),\"Y*\",IF(OR('Treaty status of each country'!B159=\"X\",'Treaty status of each country'!C159=\"X\"),\"Y**\",\"\")))","v":"Y**"},{"$f":"IF(COUNTIF('Countries 2016+2021 Order'!B$56:B$90,'Rights in UK for each country'!A159)=1,\"Y\",IF(OR('Treaty status of each country'!E159=\"X\",'Treaty status of each country'!E159=\"X*\",COUNTIF('Countries 2016+2021 Order'!B$20:B$52,'Rights in UK for each country'!A159)=1),\"Y*\",IF('Treaty status of each country'!B159=\"X\",\"Y**\",\"-\")))","v":"Y**"},{"$f":"IF(OR(COUNTIF('Countries 2016+2021 Order'!B$93:B$94,'Rights in UK for each country'!A159)=1,'Treaty status of each country'!E159=\"X\"),\"Y\",IF('Treaty status of each country'!E159=\"X*\",\"Y-\",IF('Treaty status of each country'!F159=\"X\",\"Y*\",IF('Treaty status of each country'!F159=\"X*\",\"Y*-\",IF('Treaty status of each country'!B159=\"X\",\"Y**\",\"-\")))))","v":"Y**"},{"$f":"IF(OR('Treaty status of each country'!E159=\"X\",'Treaty status of each country'!E159=\"X*\"),\"Y\",\"-\")","v":"-"}]
["South Africa",{"$f":"IF(OR('Treaty status of each country'!B160=\"X\", 'Treaty status of each country'!C160=\"X\"), \"Y\", \"\")","v":"Y"},{"$f":"IF(OR('Treaty status of each country'!E160=\"X\",'Treaty status of each country'!E160=\"X*\", COUNTIF('Countries 2016+2021 Order'!C$3:C$15,A160)=1),\"Y\",IF(OR('Treaty status of each country'!F160=\"X\",'Treaty status of each country'!F160=\"X*\"),\"Y*\",IF(OR('Treaty status of each country'!B160=\"X\",'Treaty status of each country'!C160=\"X\"),\"Y**\",\"\")))","v":"Y**"},{"$f":"IF(COUNTIF('Countries 2016+2021 Order'!B$56:B$90,'Rights in UK for each country'!A160)=1,\"Y\",IF(OR('Treaty status of each country'!E160=\"X\",'Treaty status of each country'!E160=\"X*\",COUNTIF('Countries 2016+2021 Order'!B$20:B$52,'Rights in UK for each country'!A160)=1),\"Y*\",IF('Treaty status of each country'!B160=\"X\",\"Y**\",\"-\")))","v":"Y**"},{"$f":"IF(OR(COUNTIF('Countries 2016+2021 Order'!B$93:B$94,'Rights in UK for each country'!A160)=1,'Treaty status of each country'!E160=\"X\"),\"Y\",IF('Treaty status of each country'!E160=\"X*\",\"Y-\",IF('Treaty status of each country'!F160=\"X\",\"Y*\",IF('Treaty status of each country'!F160=\"X*\",\"Y*-\",IF('Treaty status of each country'!B160=\"X\",\"Y**\",\"-\")))))","v":"Y**"},{"$f":"IF(OR('Treaty status of each country'!E160=\"X\",'Treaty status of each country'!E160=\"X*\"),\"Y\",\"-\")","v":"-"}]
["Spain",{"$f":"IF(OR('Treaty status of each country'!B161=\"X\", 'Treaty status of each country'!C161=\"X\"), \"Y\", \"\")","v":"Y"},{"$f":"IF(OR('Treaty status of each country'!E161=\"X\",'Treaty status of each country'!E161=\"X*\", COUNTIF('Countries 2016+2021 Order'!C$3:C$15,A161)=1),\"Y\",IF(OR('Treaty status of each country'!F161=\"X\",'Treaty status of each country'!F161=\"X*\"),\"Y*\",IF(OR('Treaty status of each country'!B161=\"X\",'Treaty status of each country'!C161=\"X\"),\"Y**\",\"\")))","v":"Y"},{"$f":"IF(COUNTIF('Countries 2016+2021 Order'!B$56:B$90,'Rights in UK for each country'!A161)=1,\"Y\",IF(OR('Treaty status of each country'!E161=\"X\",'Treaty status of each country'!E161=\"X*\",COUNTIF('Countries 2016+2021 Order'!B$20:B$52,'Rights in UK for each country'!A161)=1),\"Y*\",IF('Treaty status of each country'!B161=\"X\",\"Y**\",\"-\")))","v":"Y"},{"$f":"IF(OR(COUNTIF('Countries 2016+2021 Order'!B$93:B$94,'Rights in UK for each country'!A161)=1,'Treaty status of each country'!E161=\"X\"),\"Y\",IF('Treaty status of each country'!E161=\"X*\",\"Y-\",IF('Treaty status of each country'!F161=\"X\",\"Y*\",IF('Treaty status of each country'!F161=\"X*\",\"Y*-\",IF('Treaty status of each country'!B161=\"X\",\"Y**\",\"-\")))))","v":"Y"},{"$f":"IF(OR('Treaty status of each country'!E161=\"X\",'Treaty status of each country'!E161=\"X*\"),\"Y\",\"-\")","v":"Y"}]
["Sri Lanka",{"$f":"IF(OR('Treaty status of each country'!B162=\"X\", 'Treaty status of each country'!C162=\"X\"), \"Y\", \"\")","v":"Y"},{"$f":"IF(OR('Treaty status of each country'!E162=\"X\",'Treaty status of each country'!E162=\"X*\", COUNTIF('Countries 2016+2021 Order'!C$3:C$15,A162)=1),\"Y\",IF(OR('Treaty status of each country'!F162=\"X\",'Treaty status of each country'!F162=\"X*\"),\"Y*\",IF(OR('Treaty status of each country'!B162=\"X\",'Treaty status of each country'!C162=\"X\"),\"Y**\",\"\")))","v":"Y**"},{"$f":"IF(COUNTIF('Countries 2016+2021 Order'!B$56:B$90,'Rights in UK for each country'!A162)=1,\"Y\",IF(OR('Treaty status of each country'!E162=\"X\",'Treaty status of each country'!E162=\"X*\",COUNTIF('Countries 2016+2021 Order'!B$20:B$52,'Rights in UK for each country'!A162)=1),\"Y*\",IF('Treaty status of each country'!B162=\"X\",\"Y**\",\"-\")))","v":"Y**"},{"$f":"IF(OR(COUNTIF('Countries 2016+2021 Order'!B$93:B$94,'Rights in UK for each country'!A162)=1,'Treaty status of each country'!E162=\"X\"),\"Y\",IF('Treaty status of each country'!E162=\"X*\",\"Y-\",IF('Treaty status of each country'!F162=\"X\",\"Y*\",IF('Treaty status of each country'!F162=\"X*\",\"Y*-\",IF('Treaty status of each country'!B162=\"X\",\"Y**\",\"-\")))))","v":"Y**"},{"$f":"IF(OR('Treaty status of each country'!E162=\"X\",'Treaty status of each country'!E162=\"X*\"),\"Y\",\"-\")","v":"-"}]
["Sudan",{"$f":"IF(OR('Treaty status of each country'!B163=\"X\", 'Treaty status of each country'!C163=\"X\"), \"Y\", \"\")","v":"Y"},{"$f":"IF(OR('Treaty status of each country'!E163=\"X\",'Treaty status of each country'!E163=\"X*\", COUNTIF('Countries 2016+2021 Order'!C$3:C$15,A163)=1),\"Y\",IF(OR('Treaty status of each country'!F163=\"X\",'Treaty status of each country'!F163=\"X*\"),\"Y*\",IF(OR('Treaty status of each country'!B163=\"X\",'Treaty status of each country'!C163=\"X\"),\"Y**\",\"\")))","v":"Y**"},{"$f":"IF(COUNTIF('Countries 2016+2021 Order'!B$56:B$90,'Rights in UK for each country'!A163)=1,\"Y\",IF(OR('Treaty status of each country'!E163=\"X\",'Treaty status of each country'!E163=\"X*\",COUNTIF('Countries 2016+2021 Order'!B$20:B$52,'Rights in UK for each country'!A163)=1),\"Y*\",IF('Treaty status of each country'!B163=\"X\",\"Y**\",\"-\")))","v":"-"},{"$f":"IF(OR(COUNTIF('Countries 2016+2021 Order'!B$93:B$94,'Rights in UK for each country'!A163)=1,'Treaty status of each country'!E163=\"X\"),\"Y\",IF('Treaty status of each country'!E163=\"X*\",\"Y-\",IF('Treaty status of each country'!F163=\"X\",\"Y*\",IF('Treaty status of each country'!F163=\"X*\",\"Y*-\",IF('Treaty status of each country'!B163=\"X\",\"Y**\",\"-\")))))","v":"-"},{"$f":"IF(OR('Treaty status of each country'!E163=\"X\",'Treaty status of each country'!E163=\"X*\"),\"Y\",\"-\")","v":"-"}]
["Suriname",{"$f":"IF(OR('Treaty status of each country'!B164=\"X\", 'Treaty status of each country'!C164=\"X\"), \"Y\", \"\")","v":"Y"},{"$f":"IF(OR('Treaty status of each country'!E164=\"X\",'Treaty status of each country'!E164=\"X*\", COUNTIF('Countries 2016+2021 Order'!C$3:C$15,A164)=1),\"Y\",IF(OR('Treaty status of each country'!F164=\"X\",'Treaty status of each country'!F164=\"X*\"),\"Y*\",IF(OR('Treaty status of each country'!B164=\"X\",'Treaty status of each country'!C164=\"X\"),\"Y**\",\"\")))","v":"Y**"},{"$f":"IF(COUNTIF('Countries 2016+2021 Order'!B$56:B$90,'Rights in UK for each country'!A164)=1,\"Y\",IF(OR('Treaty status of each country'!E164=\"X\",'Treaty status of each country'!E164=\"X*\",COUNTIF('Countries 2016+2021 Order'!B$20:B$52,'Rights in UK for each country'!A164)=1),\"Y*\",IF('Treaty status of each country'!B164=\"X\",\"Y**\",\"-\")))","v":"Y**"},{"$f":"IF(OR(COUNTIF('Countries 2016+2021 Order'!B$93:B$94,'Rights in UK for each country'!A164)=1,'Treaty status of each country'!E164=\"X\"),\"Y\",IF('Treaty status of each country'!E164=\"X*\",\"Y-\",IF('Treaty status of each country'!F164=\"X\",\"Y*\",IF('Treaty status of each country'!F164=\"X*\",\"Y*-\",IF('Treaty status of each country'!B164=\"X\",\"Y**\",\"-\")))))","v":"Y**"},{"$f":"IF(OR('Treaty status of each country'!E164=\"X\",'Treaty status of each country'!E164=\"X*\"),\"Y\",\"-\")","v":"-"}]
["Sweden",{"$f":"IF(OR('Treaty status of each country'!B165=\"X\", 'Treaty status of each country'!C165=\"X\"), \"Y\", \"\")","v":"Y"},{"$f":"IF(OR('Treaty status of each country'!E165=\"X\",'Treaty status of each country'!E165=\"X*\", COUNTIF('Countries 2016+2021 Order'!C$3:C$15,A165)=1),\"Y\",IF(OR('Treaty status of each country'!F165=\"X\",'Treaty status of each country'!F165=\"X*\"),\"Y*\",IF(OR('Treaty status of each country'!B165=\"X\",'Treaty status of each country'!C165=\"X\"),\"Y**\",\"\")))","v":"Y"},{"$f":"IF(COUNTIF('Countries 2016+2021 Order'!B$56:B$90,'Rights in UK for each country'!A165)=1,\"Y\",IF(OR('Treaty status of each country'!E165=\"X\",'Treaty status of each country'!E165=\"X*\",COUNTIF('Countries 2016+2021 Order'!B$20:B$52,'Rights in UK for each country'!A165)=1),\"Y*\",IF('Treaty status of each country'!B165=\"X\",\"Y**\",\"-\")))","v":"Y"},{"$f":"IF(OR(COUNTIF('Countries 2016+2021 Order'!B$93:B$94,'Rights in UK for each country'!A165)=1,'Treaty status of each country'!E165=\"X\"),\"Y\",IF('Treaty status of each country'!E165=\"X*\",\"Y-\",IF('Treaty status of each country'!F165=\"X\",\"Y*\",IF('Treaty status of each country'!F165=\"X*\",\"Y*-\",IF('Treaty status of each country'!B165=\"X\",\"Y**\",\"-\")))))","v":"Y"},{"$f":"IF(OR('Treaty status of each country'!E165=\"X\",'Treaty status of each country'!E165=\"X*\"),\"Y\",\"-\")","v":"Y"}]
["Switzerland",{"$f":"IF(OR('Treaty status of each country'!B166=\"X\", 'Treaty status of each country'!C166=\"X\"), \"Y\", \"\")","v":"Y"},{"$f":"IF(OR('Treaty status of each country'!E166=\"X\",'Treaty status of each country'!E166=\"X*\", COUNTIF('Countries 2016+2021 Order'!C$3:C$15,A166)=1),\"Y\",IF(OR('Treaty status of each country'!F166=\"X\",'Treaty status of each country'!F166=\"X*\"),\"Y*\",IF(OR('Treaty status of each country'!B166=\"X\",'Treaty status of each country'!C166=\"X\"),\"Y**\",\"\")))","v":"Y"},{"$f":"IF(COUNTIF('Countries 2016+2021 Order'!B$56:B$90,'Rights in UK for each country'!A166)=1,\"Y\",IF(OR('Treaty status of each country'!E166=\"X\",'Treaty status of each country'!E166=\"X*\",COUNTIF('Countries 2016+2021 Order'!B$20:B$52,'Rights in UK for each country'!A166)=1),\"Y*\",IF('Treaty status of each country'!B166=\"X\",\"Y**\",\"-\")))","v":"Y"},{"$f":"IF(OR(COUNTIF('Countries 2016+2021 Order'!B$93:B$94,'Rights in UK for each country'!A166)=1,'Treaty status of each country'!E166=\"X\"),\"Y\",IF('Treaty status of each country'!E166=\"X*\",\"Y-\",IF('Treaty status of each country'!F166=\"X\",\"Y*\",IF('Treaty status of each country'!F166=\"X*\",\"Y*-\",IF('Treaty status of each country'!B166=\"X\",\"Y**\",\"-\")))))","v":"Y"},{"$f":"IF(OR('Treaty status of each country'!E166=\"X\",'Treaty status of each country'!E166=\"X*\"),\"Y\",\"-\")","v":"Y"}]
["Syrian Arab Republic",{"$f":"IF(OR('Treaty status of each country'!B167=\"X\", 'Treaty status of each country'!C167=\"X\"), \"Y\", \"\")","v":"Y"},{"$f":"IF(OR('Treaty status of each country'!E167=\"X\",'Treaty status of each country'!E167=\"X*\", COUNTIF('Countries 2016+2021 Order'!C$3:C$15,A167)=1),\"Y\",IF(OR('Treaty status of each country'!F167=\"X\",'Treaty status of each country'!F167=\"X*\"),\"Y*\",IF(OR('Treaty status of each country'!B167=\"X\",'Treaty status of each country'!C167=\"X\"),\"Y**\",\"\")))","v":"Y"},{"$f":"IF(COUNTIF('Countries 2016+2021 Order'!B$56:B$90,'Rights in UK for each country'!A167)=1,\"Y\",IF(OR('Treaty status of each country'!E167=\"X\",'Treaty status of each country'!E167=\"X*\",COUNTIF('Countries 2016+2021 Order'!B$20:B$52,'Rights in UK for each country'!A167)=1),\"Y*\",IF('Treaty status of each country'!B167=\"X\",\"Y**\",\"-\")))","v":"Y*"},{"$f":"IF(OR(COUNTIF('Countries 2016+2021 Order'!B$93:B$94,'Rights in UK for each country'!A167)=1,'Treaty status of each country'!E167=\"X\"),\"Y\",IF('Treaty status of each country'!E167=\"X*\",\"Y-\",IF('Treaty status of each country'!F167=\"X\",\"Y*\",IF('Treaty status of each country'!F167=\"X*\",\"Y*-\",IF('Treaty status of each country'!B167=\"X\",\"Y**\",\"-\")))))","v":"Y"},{"$f":"IF(OR('Treaty status of each country'!E167=\"X\",'Treaty status of each country'!E167=\"X*\"),\"Y\",\"-\")","v":"Y"}]
["Taiwan",{"$f":"IF(OR('Treaty status of each country'!B168=\"X\", 'Treaty status of each country'!C168=\"X\"), \"Y\", \"\")","v":"Y"},{"$f":"IF(OR('Treaty status of each country'!E168=\"X\",'Treaty status of each country'!E168=\"X*\", COUNTIF('Countries 2016+2021 Order'!C$3:C$15,A168)=1),\"Y\",IF(OR('Treaty status of each country'!F168=\"X\",'Treaty status of each country'!F168=\"X*\"),\"Y*\",IF(OR('Treaty status of each country'!B168=\"X\",'Treaty status of each country'!C168=\"X\"),\"Y**\",\"\")))","v":"Y**"},{"$f":"IF(COUNTIF('Countries 2016+2021 Order'!B$56:B$90,'Rights in UK for each country'!A168)=1,\"Y\",IF(OR('Treaty status of each country'!E168=\"X\",'Treaty status of each country'!E168=\"X*\",COUNTIF('Countries 2016+2021 Order'!B$20:B$52,'Rights in UK for each country'!A168)=1),\"Y*\",IF('Treaty status of each country'!B168=\"X\",\"Y**\",\"-\")))","v":"Y**"},{"$f":"IF(OR(COUNTIF('Countries 2016+2021 Order'!B$93:B$94,'Rights in UK for each country'!A168)=1,'Treaty status of each country'!E168=\"X\"),\"Y\",IF('Treaty status of each country'!E168=\"X*\",\"Y-\",IF('Treaty status of each country'!F168=\"X\",\"Y*\",IF('Treaty status of each country'!F168=\"X*\",\"Y*-\",IF('Treaty status of each country'!B168=\"X\",\"Y**\",\"-\")))))","v":"Y**"},{"$f":"IF(OR('Treaty status of each country'!E168=\"X\",'Treaty status of each country'!E168=\"X*\"),\"Y\",\"-\")","v":"-"}]
["Tajikistan",{"$f":"IF(OR('Treaty status of each country'!B169=\"X\", 'Treaty status of each country'!C169=\"X\"), \"Y\", \"\")","v":"Y"},{"$f":"IF(OR('Treaty status of each country'!E169=\"X\",'Treaty status of each country'!E169=\"X*\", COUNTIF('Countries 2016+2021 Order'!C$3:C$15,A169)=1),\"Y\",IF(OR('Treaty status of each country'!F169=\"X\",'Treaty status of each country'!F169=\"X*\"),\"Y*\",IF(OR('Treaty status of each country'!B169=\"X\",'Treaty status of each country'!C169=\"X\"),\"Y**\",\"\")))","v":"Y"},{"$f":"IF(COUNTIF('Countries 2016+2021 Order'!B$56:B$90,'Rights in UK for each country'!A169)=1,\"Y\",IF(OR('Treaty status of each country'!E169=\"X\",'Treaty status of each country'!E169=\"X*\",COUNTIF('Countries 2016+2021 Order'!B$20:B$52,'Rights in UK for each country'!A169)=1),\"Y*\",IF('Treaty status of each country'!B169=\"X\",\"Y**\",\"-\")))","v":"Y*"},{"$f":"IF(OR(COUNTIF('Countries 2016+2021 Order'!B$93:B$94,'Rights in UK for each country'!A169)=1,'Treaty status of each country'!E169=\"X\"),\"Y\",IF('Treaty status of each country'!E169=\"X*\",\"Y-\",IF('Treaty status of each country'!F169=\"X\",\"Y*\",IF('Treaty status of each country'!F169=\"X*\",\"Y*-\",IF('Treaty status of each country'!B169=\"X\",\"Y**\",\"-\")))))","v":"Y"},{"$f":"IF(OR('Treaty status of each country'!E169=\"X\",'Treaty status of each country'!E169=\"X*\"),\"Y\",\"-\")","v":"Y"}]
["Thailand",{"$f":"IF(OR('Treaty status of each country'!B170=\"X\", 'Treaty status of each country'!C170=\"X\"), \"Y\", \"\")","v":"Y"},{"$f":"IF(OR('Treaty status of each country'!E170=\"X\",'Treaty status of each country'!E170=\"X*\", COUNTIF('Countries 2016+2021 Order'!C$3:C$15,A170)=1),\"Y\",IF(OR('Treaty status of each country'!F170=\"X\",'Treaty status of each country'!F170=\"X*\"),\"Y*\",IF(OR('Treaty status of each country'!B170=\"X\",'Treaty status of each country'!C170=\"X\"),\"Y**\",\"\")))","v":"Y**"},{"$f":"IF(COUNTIF('Countries 2016+2021 Order'!B$56:B$90,'Rights in UK for each country'!A170)=1,\"Y\",IF(OR('Treaty status of each country'!E170=\"X\",'Treaty status of each country'!E170=\"X*\",COUNTIF('Countries 2016+2021 Order'!B$20:B$52,'Rights in UK for each country'!A170)=1),\"Y*\",IF('Treaty status of each country'!B170=\"X\",\"Y**\",\"-\")))","v":"Y**"},{"$f":"IF(OR(COUNTIF('Countries 2016+2021 Order'!B$93:B$94,'Rights in UK for each country'!A170)=1,'Treaty status of each country'!E170=\"X\"),\"Y\",IF('Treaty status of each country'!E170=\"X*\",\"Y-\",IF('Treaty status of each country'!F170=\"X\",\"Y*\",IF('Treaty status of each country'!F170=\"X*\",\"Y*-\",IF('Treaty status of each country'!B170=\"X\",\"Y**\",\"-\")))))","v":"Y**"},{"$f":"IF(OR('Treaty status of each country'!E170=\"X\",'Treaty status of each country'!E170=\"X*\"),\"Y\",\"-\")","v":"-"}]
["Togo",{"$f":"IF(OR('Treaty status of each country'!B171=\"X\", 'Treaty status of each country'!C171=\"X\"), \"Y\", \"\")","v":"Y"},{"$f":"IF(OR('Treaty status of each country'!E171=\"X\",'Treaty status of each country'!E171=\"X*\", COUNTIF('Countries 2016+2021 Order'!C$3:C$15,A171)=1),\"Y\",IF(OR('Treaty status of each country'!F171=\"X\",'Treaty status of each country'!F171=\"X*\"),\"Y*\",IF(OR('Treaty status of each country'!B171=\"X\",'Treaty status of each country'!C171=\"X\"),\"Y**\",\"\")))","v":"Y"},{"$f":"IF(COUNTIF('Countries 2016+2021 Order'!B$56:B$90,'Rights in UK for each country'!A171)=1,\"Y\",IF(OR('Treaty status of each country'!E171=\"X\",'Treaty status of each country'!E171=\"X*\",COUNTIF('Countries 2016+2021 Order'!B$20:B$52,'Rights in UK for each country'!A171)=1),\"Y*\",IF('Treaty status of each country'!B171=\"X\",\"Y**\",\"-\")))","v":"Y*"},{"$f":"IF(OR(COUNTIF('Countries 2016+2021 Order'!B$93:B$94,'Rights in UK for each country'!A171)=1,'Treaty status of each country'!E171=\"X\"),\"Y\",IF('Treaty status of each country'!E171=\"X*\",\"Y-\",IF('Treaty status of each country'!F171=\"X\",\"Y*\",IF('Treaty status of each country'!F171=\"X*\",\"Y*-\",IF('Treaty status of each country'!B171=\"X\",\"Y**\",\"-\")))))","v":"Y"},{"$f":"IF(OR('Treaty status of each country'!E171=\"X\",'Treaty status of each country'!E171=\"X*\"),\"Y\",\"-\")","v":"Y"}]
["Tonga",{"$f":"IF(OR('Treaty status of each country'!B172=\"X\", 'Treaty status of each country'!C172=\"X\"), \"Y\", \"\")","v":"Y"},{"$f":"IF(OR('Treaty status of each country'!E172=\"X\",'Treaty status of each country'!E172=\"X*\", COUNTIF('Countries 2016+2021 Order'!C$3:C$15,A172)=1),\"Y\",IF(OR('Treaty status of each country'!F172=\"X\",'Treaty status of each country'!F172=\"X*\"),\"Y*\",IF(OR('Treaty status of each country'!B172=\"X\",'Treaty status of each country'!C172=\"X\"),\"Y**\",\"\")))","v":"Y**"},{"$f":"IF(COUNTIF('Countries 2016+2021 Order'!B$56:B$90,'Rights in UK for each country'!A172)=1,\"Y\",IF(OR('Treaty status of each country'!E172=\"X\",'Treaty status of each country'!E172=\"X*\",COUNTIF('Countries 2016+2021 Order'!B$20:B$52,'Rights in UK for each country'!A172)=1),\"Y*\",IF('Treaty status of each country'!B172=\"X\",\"Y**\",\"-\")))","v":"Y**"},{"$f":"IF(OR(COUNTIF('Countries 2016+2021 Order'!B$93:B$94,'Rights in UK for each country'!A172)=1,'Treaty status of each country'!E172=\"X\"),\"Y\",IF('Treaty status of each country'!E172=\"X*\",\"Y-\",IF('Treaty status of each country'!F172=\"X\",\"Y*\",IF('Treaty status of each country'!F172=\"X*\",\"Y*-\",IF('Treaty status of each country'!B172=\"X\",\"Y**\",\"-\")))))","v":"Y**"},{"$f":"IF(OR('Treaty status of each country'!E172=\"X\",'Treaty status of each country'!E172=\"X*\"),\"Y\",\"-\")","v":"-"}]
["Trinidad and Tobago",{"$f":"IF(OR('Treaty status of each country'!B173=\"X\", 'Treaty status of each country'!C173=\"X\"), \"Y\", \"\")","v":"Y"},{"$f":"IF(OR('Treaty status of each country'!E173=\"X\",'Treaty status of each country'!E173=\"X*\", COUNTIF('Countries 2016+2021 Order'!C$3:C$15,A173)=1),\"Y\",IF(OR('Treaty status of each country'!F173=\"X\",'Treaty status of each country'!F173=\"X*\"),\"Y*\",IF(OR('Treaty status of each country'!B173=\"X\",'Treaty status of each country'!C173=\"X\"),\"Y**\",\"\")))","v":"Y"},{"$f":"IF(COUNTIF('Countries 2016+2021 Order'!B$56:B$90,'Rights in UK for each country'!A173)=1,\"Y\",IF(OR('Treaty status of each country'!E173=\"X\",'Treaty status of each country'!E173=\"X*\",COUNTIF('Countries 2016+2021 Order'!B$20:B$52,'Rights in UK for each country'!A173)=1),\"Y*\",IF('Treaty status of each country'!B173=\"X\",\"Y**\",\"-\")))","v":"Y*"},{"$f":"IF(OR(COUNTIF('Countries 2016+2021 Order'!B$93:B$94,'Rights in UK for each country'!A173)=1,'Treaty status of each country'!E173=\"X\"),\"Y\",IF('Treaty status of each country'!E173=\"X*\",\"Y-\",IF('Treaty status of each country'!F173=\"X\",\"Y*\",IF('Treaty status of each country'!F173=\"X*\",\"Y*-\",IF('Treaty status of each country'!B173=\"X\",\"Y**\",\"-\")))))","v":"Y"},{"$f":"IF(OR('Treaty status of each country'!E173=\"X\",'Treaty status of each country'!E173=\"X*\"),\"Y\",\"-\")","v":"Y"}]
["Tunisia",{"$f":"IF(OR('Treaty status of each country'!B174=\"X\", 'Treaty status of each country'!C174=\"X\"), \"Y\", \"\")","v":"Y"},{"$f":"IF(OR('Treaty status of each country'!E174=\"X\",'Treaty status of each country'!E174=\"X*\", COUNTIF('Countries 2016+2021 Order'!C$3:C$15,A174)=1),\"Y\",IF(OR('Treaty status of each country'!F174=\"X\",'Treaty status of each country'!F174=\"X*\"),\"Y*\",IF(OR('Treaty status of each country'!B174=\"X\",'Treaty status of each country'!C174=\"X\"),\"Y**\",\"\")))","v":"Y**"},{"$f":"IF(COUNTIF('Countries 2016+2021 Order'!B$56:B$90,'Rights in UK for each country'!A174)=1,\"Y\",IF(OR('Treaty status of each country'!E174=\"X\",'Treaty status of each country'!E174=\"X*\",COUNTIF('Countries 2016+2021 Order'!B$20:B$52,'Rights in UK for each country'!A174)=1),\"Y*\",IF('Treaty status of each country'!B174=\"X\",\"Y**\",\"-\")))","v":"Y**"},{"$f":"IF(OR(COUNTIF('Countries 2016+2021 Order'!B$93:B$94,'Rights in UK for each country'!A174)=1,'Treaty status of each country'!E174=\"X\"),\"Y\",IF('Treaty status of each country'!E174=\"X*\",\"Y-\",IF('Treaty status of each country'!F174=\"X\",\"Y*\",IF('Treaty status of each country'!F174=\"X*\",\"Y*-\",IF('Treaty status of each country'!B174=\"X\",\"Y**\",\"-\")))))","v":"Y**"},{"$f":"IF(OR('Treaty status of each country'!E174=\"X\",'Treaty status of each country'!E174=\"X*\"),\"Y\",\"-\")","v":"-"}]
["Turkey",{"$f":"IF(OR('Treaty status of each country'!B175=\"X\", 'Treaty status of each country'!C175=\"X\"), \"Y\", \"\")","v":"Y"},{"$f":"IF(OR('Treaty status of each country'!E175=\"X\",'Treaty status of each country'!E175=\"X*\", COUNTIF('Countries 2016+2021 Order'!C$3:C$15,A175)=1),\"Y\",IF(OR('Treaty status of each country'!F175=\"X\",'Treaty status of each country'!F175=\"X*\"),\"Y*\",IF(OR('Treaty status of each country'!B175=\"X\",'Treaty status of each country'!C175=\"X\"),\"Y**\",\"\")))","v":"Y"},{"$f":"IF(COUNTIF('Countries 2016+2021 Order'!B$56:B$90,'Rights in UK for each country'!A175)=1,\"Y\",IF(OR('Treaty status of each country'!E175=\"X\",'Treaty status of each country'!E175=\"X*\",COUNTIF('Countries 2016+2021 Order'!B$20:B$52,'Rights in UK for each country'!A175)=1),\"Y*\",IF('Treaty status of each country'!B175=\"X\",\"Y**\",\"-\")))","v":"Y*"},{"$f":"IF(OR(COUNTIF('Countries 2016+2021 Order'!B$93:B$94,'Rights in UK for each country'!A175)=1,'Treaty status of each country'!E175=\"X\"),\"Y\",IF('Treaty status of each country'!E175=\"X*\",\"Y-\",IF('Treaty status of each country'!F175=\"X\",\"Y*\",IF('Treaty status of each country'!F175=\"X*\",\"Y*-\",IF('Treaty status of each country'!B175=\"X\",\"Y**\",\"-\")))))","v":"Y"},{"$f":"IF(OR('Treaty status of each country'!E175=\"X\",'Treaty status of each country'!E175=\"X*\"),\"Y\",\"-\")","v":"Y"}]
["Turkmenistan",{"$f":"IF(OR('Treaty status of each country'!B176=\"X\", 'Treaty status of each country'!C176=\"X\"), \"Y\", \"\")","v":"Y"},{"$f":"IF(OR('Treaty status of each country'!E176=\"X\",'Treaty status of each country'!E176=\"X*\", COUNTIF('Countries 2016+2021 Order'!C$3:C$15,A176)=1),\"Y\",IF(OR('Treaty status of each country'!F176=\"X\",'Treaty status of each country'!F176=\"X*\"),\"Y*\",IF(OR('Treaty status of each country'!B176=\"X\",'Treaty status of each country'!C176=\"X\"),\"Y**\",\"\")))","v":"Y"},{"$f":"IF(COUNTIF('Countries 2016+2021 Order'!B$56:B$90,'Rights in UK for each country'!A176)=1,\"Y\",IF(OR('Treaty status of each country'!E176=\"X\",'Treaty status of each country'!E176=\"X*\",COUNTIF('Countries 2016+2021 Order'!B$20:B$52,'Rights in UK for each country'!A176)=1),\"Y*\",IF('Treaty status of each country'!B176=\"X\",\"Y**\",\"-\")))","v":"Y*"},{"$f":"IF(OR(COUNTIF('Countries 2016+2021 Order'!B$93:B$94,'Rights in UK for each country'!A176)=1,'Treaty status of each country'!E176=\"X\"),\"Y\",IF('Treaty status of each country'!E176=\"X*\",\"Y-\",IF('Treaty status of each country'!F176=\"X\",\"Y*\",IF('Treaty status of each country'!F176=\"X*\",\"Y*-\",IF('Treaty status of each country'!B176=\"X\",\"Y**\",\"-\")))))","v":"Y"},{"$f":"IF(OR('Treaty status of each country'!E176=\"X\",'Treaty status of each country'!E176=\"X*\"),\"Y\",\"-\")","v":"Y"}]
["Tuvalu",{"$f":"IF(OR('Treaty status of each country'!B177=\"X\", 'Treaty status of each country'!C177=\"X\"), \"Y\", \"\")","v":"Y"},{"$f":"IF(OR('Treaty status of each country'!E177=\"X\",'Treaty status of each country'!E177=\"X*\", COUNTIF('Countries 2016+2021 Order'!C$3:C$15,A177)=1),\"Y\",IF(OR('Treaty status of each country'!F177=\"X\",'Treaty status of each country'!F177=\"X*\"),\"Y*\",IF(OR('Treaty status of each country'!B177=\"X\",'Treaty status of each country'!C177=\"X\"),\"Y**\",\"\")))","v":"Y**"},{"$f":"IF(COUNTIF('Countries 2016+2021 Order'!B$56:B$90,'Rights in UK for each country'!A177)=1,\"Y\",IF(OR('Treaty status of each country'!E177=\"X\",'Treaty status of each country'!E177=\"X*\",COUNTIF('Countries 2016+2021 Order'!B$20:B$52,'Rights in UK for each country'!A177)=1),\"Y*\",IF('Treaty status of each country'!B177=\"X\",\"Y**\",\"-\")))","v":"-"},{"$f":"IF(OR(COUNTIF('Countries 2016+2021 Order'!B$93:B$94,'Rights in UK for each country'!A177)=1,'Treaty status of each country'!E177=\"X\"),\"Y\",IF('Treaty status of each country'!E177=\"X*\",\"Y-\",IF('Treaty status of each country'!F177=\"X\",\"Y*\",IF('Treaty status of each country'!F177=\"X*\",\"Y*-\",IF('Treaty status of each country'!B177=\"X\",\"Y**\",\"-\")))))","v":"-"},{"$f":"IF(OR('Treaty status of each country'!E177=\"X\",'Treaty status of each country'!E177=\"X*\"),\"Y\",\"-\")","v":"-"}]
["Uganda",{"$f":"IF(OR('Treaty status of each country'!B178=\"X\", 'Treaty status of each country'!C178=\"X\"), \"Y\", \"\")","v":"Y"},{"$f":"IF(OR('Treaty status of each country'!E178=\"X\",'Treaty status of each country'!E178=\"X*\", COUNTIF('Countries 2016+2021 Order'!C$3:C$15,A178)=1),\"Y\",IF(OR('Treaty status of each country'!F178=\"X\",'Treaty status of each country'!F178=\"X*\"),\"Y*\",IF(OR('Treaty status of each country'!B178=\"X\",'Treaty status of each country'!C178=\"X\"),\"Y**\",\"\")))","v":"Y*"},{"$f":"IF(COUNTIF('Countries 2016+2021 Order'!B$56:B$90,'Rights in UK for each country'!A178)=1,\"Y\",IF(OR('Treaty status of each country'!E178=\"X\",'Treaty status of each country'!E178=\"X*\",COUNTIF('Countries 2016+2021 Order'!B$20:B$52,'Rights in UK for each country'!A178)=1),\"Y*\",IF('Treaty status of each country'!B178=\"X\",\"Y**\",\"-\")))","v":"Y**"},{"$f":"IF(OR(COUNTIF('Countries 2016+2021 Order'!B$93:B$94,'Rights in UK for each country'!A178)=1,'Treaty status of each country'!E178=\"X\"),\"Y\",IF('Treaty status of each country'!E178=\"X*\",\"Y-\",IF('Treaty status of each country'!F178=\"X\",\"Y*\",IF('Treaty status of each country'!F178=\"X*\",\"Y*-\",IF('Treaty status of each country'!B178=\"X\",\"Y**\",\"-\")))))","v":"Y*"},{"$f":"IF(OR('Treaty status of each country'!E178=\"X\",'Treaty status of each country'!E178=\"X*\"),\"Y\",\"-\")","v":"-"}]
["Ukraine",{"$f":"IF(OR('Treaty status of each country'!B179=\"X\", 'Treaty status of each country'!C179=\"X\"), \"Y\", \"\")","v":"Y"},{"$f":"IF(OR('Treaty status of each country'!E179=\"X\",'Treaty status of each country'!E179=\"X*\", COUNTIF('Countries 2016+2021 Order'!C$3:C$15,A179)=1),\"Y\",IF(OR('Treaty status of each country'!F179=\"X\",'Treaty status of each country'!F179=\"X*\"),\"Y*\",IF(OR('Treaty status of each country'!B179=\"X\",'Treaty status of each country'!C179=\"X\"),\"Y**\",\"\")))","v":"Y"},{"$f":"IF(COUNTIF('Countries 2016+2021 Order'!B$56:B$90,'Rights in UK for each country'!A179)=1,\"Y\",IF(OR('Treaty status of each country'!E179=\"X\",'Treaty status of each country'!E179=\"X*\",COUNTIF('Countries 2016+2021 Order'!B$20:B$52,'Rights in UK for each country'!A179)=1),\"Y*\",IF('Treaty status of each country'!B179=\"X\",\"Y**\",\"-\")))","v":"Y"},{"$f":"IF(OR(COUNTIF('Countries 2016+2021 Order'!B$93:B$94,'Rights in UK for each country'!A179)=1,'Treaty status of each country'!E179=\"X\"),\"Y\",IF('Treaty status of each country'!E179=\"X*\",\"Y-\",IF('Treaty status of each country'!F179=\"X\",\"Y*\",IF('Treaty status of each country'!F179=\"X*\",\"Y*-\",IF('Treaty status of each country'!B179=\"X\",\"Y**\",\"-\")))))","v":"Y"},{"$f":"IF(OR('Treaty status of each country'!E179=\"X\",'Treaty status of each country'!E179=\"X*\"),\"Y\",\"-\")","v":"Y"}]
["United Arab Emirates",{"$f":"IF(OR('Treaty status of each country'!B180=\"X\", 'Treaty status of each country'!C180=\"X\"), \"Y\", \"\")","v":"Y"},{"$f":"IF(OR('Treaty status of each country'!E180=\"X\",'Treaty status of each country'!E180=\"X*\", COUNTIF('Countries 2016+2021 Order'!C$3:C$15,A180)=1),\"Y\",IF(OR('Treaty status of each country'!F180=\"X\",'Treaty status of each country'!F180=\"X*\"),\"Y*\",IF(OR('Treaty status of each country'!B180=\"X\",'Treaty status of each country'!C180=\"X\"),\"Y**\",\"\")))","v":"Y"},{"$f":"IF(COUNTIF('Countries 2016+2021 Order'!B$56:B$90,'Rights in UK for each country'!A180)=1,\"Y\",IF(OR('Treaty status of each country'!E180=\"X\",'Treaty status of each country'!E180=\"X*\",COUNTIF('Countries 2016+2021 Order'!B$20:B$52,'Rights in UK for each country'!A180)=1),\"Y*\",IF('Treaty status of each country'!B180=\"X\",\"Y**\",\"-\")))","v":"Y*"},{"$f":"IF(OR(COUNTIF('Countries 2016+2021 Order'!B$93:B$94,'Rights in UK for each country'!A180)=1,'Treaty status of each country'!E180=\"X\"),\"Y\",IF('Treaty status of each country'!E180=\"X*\",\"Y-\",IF('Treaty status of each country'!F180=\"X\",\"Y*\",IF('Treaty status of each country'!F180=\"X*\",\"Y*-\",IF('Treaty status of each country'!B180=\"X\",\"Y**\",\"-\")))))","v":"Y"},{"$f":"IF(OR('Treaty status of each country'!E180=\"X\",'Treaty status of each country'!E180=\"X*\"),\"Y\",\"-\")","v":"Y"}]
["United Kingdom",{"$f":"IF(OR('Treaty status of each country'!B181=\"X\", 'Treaty status of each country'!C181=\"X\"), \"Y\", \"\")","v":"Y"},{"$f":"IF(OR('Treaty status of each country'!E181=\"X\",'Treaty status of each country'!E181=\"X*\", COUNTIF('Countries 2016+2021 Order'!C$3:C$15,A181)=1),\"Y\",IF(OR('Treaty status of each country'!F181=\"X\",'Treaty status of each country'!F181=\"X*\"),\"Y*\",IF(OR('Treaty status of each country'!B181=\"X\",'Treaty status of each country'!C181=\"X\"),\"Y**\",\"\")))","v":"Y"},{"$f":"IF(COUNTIF('Countries 2016+2021 Order'!B$56:B$90,'Rights in UK for each country'!A181)=1,\"Y\",IF(OR('Treaty status of each country'!E181=\"X\",'Treaty status of each country'!E181=\"X*\",COUNTIF('Countries 2016+2021 Order'!B$20:B$52,'Rights in UK for each country'!A181)=1),\"Y*\",IF('Treaty status of each country'!B181=\"X\",\"Y**\",\"-\")))","v":"Y"},{"$f":"IF(OR(COUNTIF('Countries 2016+2021 Order'!B$93:B$94,'Rights in UK for each country'!A181)=1,'Treaty status of each country'!E181=\"X\"),\"Y\",IF('Treaty status of each country'!E181=\"X*\",\"Y-\",IF('Treaty status of each country'!F181=\"X\",\"Y*\",IF('Treaty status of each country'!F181=\"X*\",\"Y*-\",IF('Treaty status of each country'!B181=\"X\",\"Y**\",\"-\")))))","v":"Y"},{"$f":"IF(OR('Treaty status of each country'!E181=\"X\",'Treaty status of each country'!E181=\"X*\"),\"Y\",\"-\")","v":"Y"}]
["United Republic of Tanzania",{"$f":"IF(OR('Treaty status of each country'!B182=\"X\", 'Treaty status of each country'!C182=\"X\"), \"Y\", \"\")","v":"Y"},{"$f":"IF(OR('Treaty status of each country'!E182=\"X\",'Treaty status of each country'!E182=\"X*\", COUNTIF('Countries 2016+2021 Order'!C$3:C$15,A182)=1),\"Y\",IF(OR('Treaty status of each country'!F182=\"X\",'Treaty status of each country'!F182=\"X*\"),\"Y*\",IF(OR('Treaty status of each country'!B182=\"X\",'Treaty status of each country'!C182=\"X\"),\"Y**\",\"\")))","v":"Y**"},{"$f":"IF(COUNTIF('Countries 2016+2021 Order'!B$56:B$90,'Rights in UK for each country'!A182)=1,\"Y\",IF(OR('Treaty status of each country'!E182=\"X\",'Treaty status of each country'!E182=\"X*\",COUNTIF('Countries 2016+2021 Order'!B$20:B$52,'Rights in UK for each country'!A182)=1),\"Y*\",IF('Treaty status of each country'!B182=\"X\",\"Y**\",\"-\")))","v":"Y**"},{"$f":"IF(OR(COUNTIF('Countries 2016+2021 Order'!B$93:B$94,'Rights in UK for each country'!A182)=1,'Treaty status of each country'!E182=\"X\"),\"Y\",IF('Treaty status of each country'!E182=\"X*\",\"Y-\",IF('Treaty status of each country'!F182=\"X\",\"Y*\",IF('Treaty status of each country'!F182=\"X*\",\"Y*-\",IF('Treaty status of each country'!B182=\"X\",\"Y**\",\"-\")))))","v":"Y**"},{"$f":"IF(OR('Treaty status of each country'!E182=\"X\",'Treaty status of each country'!E182=\"X*\"),\"Y\",\"-\")","v":"-"}]
["United States of America",{"$f":"IF(OR('Treaty status of each country'!B183=\"X\", 'Treaty status of each country'!C183=\"X\"), \"Y\", \"\")","v":"Y"},{"$f":"IF(OR('Treaty status of each country'!E183=\"X\",'Treaty status of each country'!E183=\"X*\", COUNTIF('Countries 2016+2021 Order'!C$3:C$15,A183)=1),\"Y\",IF(OR('Treaty status of each country'!F183=\"X\",'Treaty status of each country'!F183=\"X*\"),\"Y*\",IF(OR('Treaty status of each country'!B183=\"X\",'Treaty status of each country'!C183=\"X\"),\"Y**\",\"\")))","v":"Y*"},{"$f":"IF(COUNTIF('Countries 2016+2021 Order'!B$56:B$90,'Rights in UK for each country'!A183)=1,\"Y\",IF(OR('Treaty status of each country'!E183=\"X\",'Treaty status of each country'!E183=\"X*\",COUNTIF('Countries 2016+2021 Order'!B$20:B$52,'Rights in UK for each country'!A183)=1),\"Y*\",IF('Treaty status of each country'!B183=\"X\",\"Y**\",\"-\")))","v":"Y**"},{"$f":"IF(OR(COUNTIF('Countries 2016+2021 Order'!B$93:B$94,'Rights in UK for each country'!A183)=1,'Treaty status of each country'!E183=\"X\"),\"Y\",IF('Treaty status of each country'!E183=\"X*\",\"Y-\",IF('Treaty status of each country'!F183=\"X\",\"Y*\",IF('Treaty status of each country'!F183=\"X*\",\"Y*-\",IF('Treaty status of each country'!B183=\"X\",\"Y**\",\"-\")))))","v":"Y*-"},{"$f":"IF(OR('Treaty status of each country'!E183=\"X\",'Treaty status of each country'!E183=\"X*\"),\"Y\",\"-\")","v":"-"}]
["Uruguay",{"$f":"IF(OR('Treaty status of each country'!B184=\"X\", 'Treaty status of each country'!C184=\"X\"), \"Y\", \"\")","v":"Y"},{"$f":"IF(OR('Treaty status of each country'!E184=\"X\",'Treaty status of each country'!E184=\"X*\", COUNTIF('Countries 2016+2021 Order'!C$3:C$15,A184)=1),\"Y\",IF(OR('Treaty status of each country'!F184=\"X\",'Treaty status of each country'!F184=\"X*\"),\"Y*\",IF(OR('Treaty status of each country'!B184=\"X\",'Treaty status of each country'!C184=\"X\"),\"Y**\",\"\")))","v":"Y"},{"$f":"IF(COUNTIF('Countries 2016+2021 Order'!B$56:B$90,'Rights in UK for each country'!A184)=1,\"Y\",IF(OR('Treaty status of each country'!E184=\"X\",'Treaty status of each country'!E184=\"X*\",COUNTIF('Countries 2016+2021 Order'!B$20:B$52,'Rights in UK for each country'!A184)=1),\"Y*\",IF('Treaty status of each country'!B184=\"X\",\"Y**\",\"-\")))","v":"Y*"},{"$f":"IF(OR(COUNTIF('Countries 2016+2021 Order'!B$93:B$94,'Rights in UK for each country'!A184)=1,'Treaty status of each country'!E184=\"X\"),\"Y\",IF('Treaty status of each country'!E184=\"X*\",\"Y-\",IF('Treaty status of each country'!F184=\"X\",\"Y*\",IF('Treaty status of each country'!F184=\"X*\",\"Y*-\",IF('Treaty status of each country'!B184=\"X\",\"Y**\",\"-\")))))","v":"Y"},{"$f":"IF(OR('Treaty status of each country'!E184=\"X\",'Treaty status of each country'!E184=\"X*\"),\"Y\",\"-\")","v":"Y"}]
["Uzbekistan",{"$f":"IF(OR('Treaty status of each country'!B185=\"X\", 'Treaty status of each country'!C185=\"X\"), \"Y\", \"\")","v":"Y"},{"$f":"IF(OR('Treaty status of each country'!E185=\"X\",'Treaty status of each country'!E185=\"X*\", COUNTIF('Countries 2016+2021 Order'!C$3:C$15,A185)=1),\"Y\",IF(OR('Treaty status of each country'!F185=\"X\",'Treaty status of each country'!F185=\"X*\"),\"Y*\",IF(OR('Treaty status of each country'!B185=\"X\",'Treaty status of each country'!C185=\"X\"),\"Y**\",\"\")))","v":"Y*"},{"$f":"IF(COUNTIF('Countries 2016+2021 Order'!B$56:B$90,'Rights in UK for each country'!A185)=1,\"Y\",IF(OR('Treaty status of each country'!E185=\"X\",'Treaty status of each country'!E185=\"X*\",COUNTIF('Countries 2016+2021 Order'!B$20:B$52,'Rights in UK for each country'!A185)=1),\"Y*\",IF('Treaty status of each country'!B185=\"X\",\"Y**\",\"-\")))","v":"-"},{"$f":"IF(OR(COUNTIF('Countries 2016+2021 Order'!B$93:B$94,'Rights in UK for each country'!A185)=1,'Treaty status of each country'!E185=\"X\"),\"Y\",IF('Treaty status of each country'!E185=\"X*\",\"Y-\",IF('Treaty status of each country'!F185=\"X\",\"Y*\",IF('Treaty status of each country'!F185=\"X*\",\"Y*-\",IF('Treaty status of each country'!B185=\"X\",\"Y**\",\"-\")))))","v":"Y*"},{"$f":"IF(OR('Treaty status of each country'!E185=\"X\",'Treaty status of each country'!E185=\"X*\"),\"Y\",\"-\")","v":"-"}]
["Vanuatu",{"$f":"IF(OR('Treaty status of each country'!B186=\"X\", 'Treaty status of each country'!C186=\"X\"), \"Y\", \"\")","v":"Y"},{"$f":"IF(OR('Treaty status of each country'!E186=\"X\",'Treaty status of each country'!E186=\"X*\", COUNTIF('Countries 2016+2021 Order'!C$3:C$15,A186)=1),\"Y\",IF(OR('Treaty status of each country'!F186=\"X\",'Treaty status of each country'!F186=\"X*\"),\"Y*\",IF(OR('Treaty status of each country'!B186=\"X\",'Treaty status of each country'!C186=\"X\"),\"Y**\",\"\")))","v":"Y*"},{"$f":"IF(COUNTIF('Countries 2016+2021 Order'!B$56:B$90,'Rights in UK for each country'!A186)=1,\"Y\",IF(OR('Treaty status of each country'!E186=\"X\",'Treaty status of each country'!E186=\"X*\",COUNTIF('Countries 2016+2021 Order'!B$20:B$52,'Rights in UK for each country'!A186)=1),\"Y*\",IF('Treaty status of each country'!B186=\"X\",\"Y**\",\"-\")))","v":"Y**"},{"$f":"IF(OR(COUNTIF('Countries 2016+2021 Order'!B$93:B$94,'Rights in UK for each country'!A186)=1,'Treaty status of each country'!E186=\"X\"),\"Y\",IF('Treaty status of each country'!E186=\"X*\",\"Y-\",IF('Treaty status of each country'!F186=\"X\",\"Y*\",IF('Treaty status of each country'!F186=\"X*\",\"Y*-\",IF('Treaty status of each country'!B186=\"X\",\"Y**\",\"-\")))))","v":"Y*"},{"$f":"IF(OR('Treaty status of each country'!E186=\"X\",'Treaty status of each country'!E186=\"X*\"),\"Y\",\"-\")","v":"-"}]
["Venezuela (Bolivarian Republic of)",{"$f":"IF(OR('Treaty status of each country'!B187=\"X\", 'Treaty status of each country'!C187=\"X\"), \"Y\", \"\")","v":"Y"},{"$f":"IF(OR('Treaty status of each country'!E187=\"X\",'Treaty status of each country'!E187=\"X*\", COUNTIF('Countries 2016+2021 Order'!C$3:C$15,A187)=1),\"Y\",IF(OR('Treaty status of each country'!F187=\"X\",'Treaty status of each country'!F187=\"X*\"),\"Y*\",IF(OR('Treaty status of each country'!B187=\"X\",'Treaty status of each country'!C187=\"X\"),\"Y**\",\"\")))","v":"Y"},{"$f":"IF(COUNTIF('Countries 2016+2021 Order'!B$56:B$90,'Rights in UK for each country'!A187)=1,\"Y\",IF(OR('Treaty status of each country'!E187=\"X\",'Treaty status of each country'!E187=\"X*\",COUNTIF('Countries 2016+2021 Order'!B$20:B$52,'Rights in UK for each country'!A187)=1),\"Y*\",IF('Treaty status of each country'!B187=\"X\",\"Y**\",\"-\")))","v":"Y*"},{"$f":"IF(OR(COUNTIF('Countries 2016+2021 Order'!B$93:B$94,'Rights in UK for each country'!A187)=1,'Treaty status of each country'!E187=\"X\"),\"Y\",IF('Treaty status of each country'!E187=\"X*\",\"Y-\",IF('Treaty status of each country'!F187=\"X\",\"Y*\",IF('Treaty status of each country'!F187=\"X*\",\"Y*-\",IF('Treaty status of each country'!B187=\"X\",\"Y**\",\"-\")))))","v":"Y"},{"$f":"IF(OR('Treaty status of each country'!E187=\"X\",'Treaty status of each country'!E187=\"X*\"),\"Y\",\"-\")","v":"Y"}]
["Viet Nam",{"$f":"IF(OR('Treaty status of each country'!B188=\"X\", 'Treaty status of each country'!C188=\"X\"), \"Y\", \"\")","v":"Y"},{"$f":"IF(OR('Treaty status of each country'!E188=\"X\",'Treaty status of each country'!E188=\"X*\", COUNTIF('Countries 2016+2021 Order'!C$3:C$15,A188)=1),\"Y\",IF(OR('Treaty status of each country'!F188=\"X\",'Treaty status of each country'!F188=\"X*\"),\"Y*\",IF(OR('Treaty status of each country'!B188=\"X\",'Treaty status of each country'!C188=\"X\"),\"Y**\",\"\")))","v":"Y"},{"$f":"IF(COUNTIF('Countries 2016+2021 Order'!B$56:B$90,'Rights in UK for each country'!A188)=1,\"Y\",IF(OR('Treaty status of each country'!E188=\"X\",'Treaty status of each country'!E188=\"X*\",COUNTIF('Countries 2016+2021 Order'!B$20:B$52,'Rights in UK for each country'!A188)=1),\"Y*\",IF('Treaty status of each country'!B188=\"X\",\"Y**\",\"-\")))","v":"Y*"},{"$f":"IF(OR(COUNTIF('Countries 2016+2021 Order'!B$93:B$94,'Rights in UK for each country'!A188)=1,'Treaty status of each country'!E188=\"X\"),\"Y\",IF('Treaty status of each country'!E188=\"X*\",\"Y-\",IF('Treaty status of each country'!F188=\"X\",\"Y*\",IF('Treaty status of each country'!F188=\"X*\",\"Y*-\",IF('Treaty status of each country'!B188=\"X\",\"Y**\",\"-\")))))","v":"Y-"},{"$f":"IF(OR('Treaty status of each country'!E188=\"X\",'Treaty status of each country'!E188=\"X*\"),\"Y\",\"-\")","v":"Y"}]
["Yemen",{"$f":"IF(OR('Treaty status of each country'!B189=\"X\", 'Treaty status of each country'!C189=\"X\"), \"Y\", \"\")","v":"Y"},{"$f":"IF(OR('Treaty status of each country'!E189=\"X\",'Treaty status of each country'!E189=\"X*\", COUNTIF('Countries 2016+2021 Order'!C$3:C$15,A189)=1),\"Y\",IF(OR('Treaty status of each country'!F189=\"X\",'Treaty status of each country'!F189=\"X*\"),\"Y*\",IF(OR('Treaty status of each country'!B189=\"X\",'Treaty status of each country'!C189=\"X\"),\"Y**\",\"\")))","v":"Y**"},{"$f":"IF(COUNTIF('Countries 2016+2021 Order'!B$56:B$90,'Rights in UK for each country'!A189)=1,\"Y\",IF(OR('Treaty status of each country'!E189=\"X\",'Treaty status of each country'!E189=\"X*\",COUNTIF('Countries 2016+2021 Order'!B$20:B$52,'Rights in UK for each country'!A189)=1),\"Y*\",IF('Treaty status of each country'!B189=\"X\",\"Y**\",\"-\")))","v":"Y**"},{"$f":"IF(OR(COUNTIF('Countries 2016+2021 Order'!B$93:B$94,'Rights in UK for each country'!A189)=1,'Treaty status of each country'!E189=\"X\"),\"Y\",IF('Treaty status of each country'!E189=\"X*\",\"Y-\",IF('Treaty status of each country'!F189=\"X\",\"Y*\",IF('Treaty status of each country'!F189=\"X*\",\"Y*-\",IF('Treaty status of each country'!B189=\"X\",\"Y**\",\"-\")))))","v":"Y**"},{"$f":"IF(OR('Treaty status of each country'!E189=\"X\",'Treaty status of each country'!E189=\"X*\"),\"Y\",\"-\")","v":"-"}]
["Zambia",{"$f":"IF(OR('Treaty status of each country'!B190=\"X\", 'Treaty status of each country'!C190=\"X\"), \"Y\", \"\")","v":"Y"},{"$f":"IF(OR('Treaty status of each country'!E190=\"X\",'Treaty status of each country'!E190=\"X*\", COUNTIF('Countries 2016+2021 Order'!C$3:C$15,A190)=1),\"Y\",IF(OR('Treaty status of each country'!F190=\"X\",'Treaty status of each country'!F190=\"X*\"),\"Y*\",IF(OR('Treaty status of each country'!B190=\"X\",'Treaty status of each country'!C190=\"X\"),\"Y**\",\"\")))","v":"Y**"},{"$f":"IF(COUNTIF('Countries 2016+2021 Order'!B$56:B$90,'Rights in UK for each country'!A190)=1,\"Y\",IF(OR('Treaty status of each country'!E190=\"X\",'Treaty status of each country'!E190=\"X*\",COUNTIF('Countries 2016+2021 Order'!B$20:B$52,'Rights in UK for each country'!A190)=1),\"Y*\",IF('Treaty status of each country'!B190=\"X\",\"Y**\",\"-\")))","v":"Y**"},{"$f":"IF(OR(COUNTIF('Countries 2016+2021 Order'!B$93:B$94,'Rights in UK for each country'!A190)=1,'Treaty status of each country'!E190=\"X\"),\"Y\",IF('Treaty status of each country'!E190=\"X*\",\"Y-\",IF('Treaty status of each country'!F190=\"X\",\"Y*\",IF('Treaty status of each country'!F190=\"X*\",\"Y*-\",IF('Treaty status of each country'!B190=\"X\",\"Y**\",\"-\")))))","v":"Y**"},{"$f":"IF(OR('Treaty status of each country'!E190=\"X\",'Treaty status of each country'!E190=\"X*\"),\"Y\",\"-\")","v":"-"}]
["Zimbabwe",{"$f":"IF(OR('Treaty status of each country'!B191=\"X\", 'Treaty status of each country'!C191=\"X\"), \"Y\", \"\")","v":"Y"},{"$f":"IF(OR('Treaty status of each country'!E191=\"X\",'Treaty status of each country'!E191=\"X*\", COUNTIF('Countries 2016+2021 Order'!C$3:C$15,A191)=1),\"Y\",IF(OR('Treaty status of each country'!F191=\"X\",'Treaty status of each country'!F191=\"X*\"),\"Y*\",IF(OR('Treaty status of each country'!B191=\"X\",'Treaty status of each country'!C191=\"X\"),\"Y**\",\"\")))","v":"Y**"},{"$f":"IF(COUNTIF('Countries 2016+2021 Order'!B$56:B$90,'Rights in UK for each country'!A191)=1,\"Y\",IF(OR('Treaty status of each country'!E191=\"X\",'Treaty status of each country'!E191=\"X*\",COUNTIF('Countries 2016+2021 Order'!B$20:B$52,'Rights in UK for each country'!A191)=1),\"Y*\",IF('Treaty status of each country'!B191=\"X\",\"Y**\",\"-\")))","v":"Y**"},{"$f":"IF(OR(COUNTIF('Countries 2016+2021 Order'!B$93:B$94,'Rights in UK for each country'!A191)=1,'Treaty status of each country'!E191=\"X\"),\"Y\",IF('Treaty status of each country'!E191=\"X*\",\"Y-\",IF('Treaty status of each country'!F191=\"X\",\"Y*\",IF('Treaty status of each country'!F191=\"X*\",\"Y*-\",IF('Treaty status of each country'!B191=\"X\",\"Y**\",\"-\")))))","v":"Y**"},{"$f":"IF(OR('Treaty status of each country'!E191=\"X\",'Treaty status of each country'!E191=\"X*\"),\"Y\",\"-\")","v":"-"}]

{"sheet":"Countries 2016+2021 Order","index":3,"n_rows":94,"n_cols":2,"rows_kept":94,"cut":false,"hidden":true,"merged":[]}
[]
[null,"Countries in Part 1 of Schedule to 2016 Order"]
[null,"Bangladesh"]
[null,"Ghana"]
[null,"Hong Kong"]
[null,"India"]
[null,"Indonesia"]
[null,"Malawi"]
[null,"Malaysia"]
[null,"Malta"]
[null,"New Zealand"]
[null,"Pakistan"]
[null,"Singapore"]
[null,"Taiwan"]
[null,"Thailand"]
[]
[]
[]
[null,"Countries specified in 2016 Order for wireless broadcasts"]
[null,"Austria"]
[null,"Belgium"]
[null,"Bulgaria"]
[null,"Croatia"]
[null,"Cyprus"]
[null,"Czech Republic"]
[null,"Denmark"]
[null,"Estonia"]
[null,"Finland"]
[null,"France"]
[null,"Germany"]
[null,"Greece"]
[null,"Hong Kong"]
[null,"Hungary"]
[null,"Indonesia"]
[null,"Ireland"]
[null,"Italy"]
[null,"Latvia"]
[null,"Lithuania"]
[null,"Luxembourg"]
[null,"Malawi"]
[null,"Malaysia"]
[null,"Malta"]
[null,"Netherlands"]
[null,"New Zealand"]
[null,"Poland"]
[null,"Portugal"]
[null,"Romania"]
[null,"Singapore"]
[null,"Slovakia"]
[null,"Slovenia"]
[null,"Spain"]
[null,"Sweden"]
[]
[]
[null,"Countries specified in 2016 Order for wired broadcasts"]
[null,"Austria"]
[null,"Australia"]
[null,"Belgium"]
[null,"Bulgaria"]
[null,"Croatia"]
[null,"Cyprus"]
[null,"Czech Republic"]
[null,"Denmark"]
[null,"Estonia"]
[null,"Finland"]
[null,"France"]
[null,"Germany"]
[null,"Greece"]
[null,"Hungary"]
[null,"Indonesia"]
[null,"Ireland"]
[null,"Italy"]
[null,"Latvia"]
[null,"Lithuania"]
[null,"Luxembourg"]
[null,"Malta"]
[null,"Netherlands"]
[null,"New Zealand"]
[null,"Poland"]
[null,"Portugal"]
[null,"Republic of Korea"]
[null,"Romania"]
[null,"Singapore"]
[null,"Slovakia"]
[null,"Slovenia"]
[null,"Spain"]
[null,"Sweden"]
[null,"Switzerland"]
[null,"Ukraine"]
[null,"United Kingdom"]
[]
[null,"Countries specified as enjoying full protection in performances"]
[null,"Malta"]
[null,"United Kingdom"]